Directorate,Department,Expenditure Type,Ref.Doc.1,Vendor Name,Expenditure Amount (exc VAT),Payment Date
COMMERCIAL,ENVIRONMENT,Advertising,1000140201,TMP (UK) LTD,597.00,10/03/2020
COMMERCIAL,ENVIRONMENT,Advertising,1000886001,TMP (UK) LTD,615.50,16/03/2020
COMMERCIAL,ENVIRONMENT,Other Services,1000986701,Conway Aecom Ltd,"6,265.02",27/03/2020
COMMERCIAL,ENVIRONMENT,Other Services,1000986801,Conway Aecom Ltd,"45,887.75",27/03/2020
COMMERCIAL,ENVIRONMENT,Other Services,1000987201,Conway Aecom Ltd,"38,604.20",27/03/2020
COMMERCIAL,ENVIRONMENT,Other Services,1000987401,Conway Aecom Ltd,"9,397.98",27/03/2020
COMMERCIAL,ENVIRONMENT,Other Services,1000987701,Conway Aecom Ltd,"30,004.24",27/03/2020
COMMERCIAL,ENVIRONMENT,Other Services,1000989901,Conway Aecom Ltd,"26,456.00",27/03/2020
COMMERCIAL,ENVIRONMENT,Other Services,1000990101,Conway Aecom Ltd,"21,426.09",27/03/2020
COMMERCIAL,ENVIRONMENT,Other Services,1000990601,Conway Aecom Ltd,"94,316.46",30/03/2020
COMMERCIAL,ENVIRONMENT,Other Services,1000990901,Conway Aecom Ltd,"18,537.98",27/03/2020
COMMERCIAL,ENVIRONMENT,Other Services,1000991901,Conway Aecom Ltd,"14,070.96",27/03/2020
COMMERCIAL,ENVIRONMENT,Advertising,1000829201,TMP (UK) LTD,387.00,09/03/2020
COMMERCIAL,ENVIRONMENT,Advertising,1000889701,TMP (UK) LTD,378.00,16/03/2020
COMMERCIAL,ENVIRONMENT,Other Services,1000870301,Conway Aecom Ltd,"40,000.00",12/03/2020
COMMERCIAL,ENVIRONMENT,Equipment and Materials Purcha,1000043801,Conway Aecom Ltd,79.05,25/03/2020
COMMERCIAL,ENVIRONMENT,Other Services,1000552303,Conway Aecom Ltd,"27,950.36",23/03/2020
COMMERCIAL,ENVIRONMENT,Other Services,1000967301,Bouygues E&S Infrastructure UK,"2,614.10",25/03/2020
COMMERCIAL,ENVIRONMENT,Other Services,1000807601,Conway Aecom Ltd,"10,325.33",06/03/2020
COMMERCIAL,ENVIRONMENT,Advertising,1000890001,TMP (UK) LTD,593.00,16/03/2020
COMMERCIAL,ENVIRONMENT,Other Services,1000779901,RE (REGIONAL ENTERPRISE) LIMITED,"39,855.47",05/03/2020
COMMERCIAL,ENVIRONMENT,Other Services,1000774601,Conway Aecom Ltd,"35,306.73",04/03/2020
COMMERCIAL,ENVIRONMENT,Other Services,1000775801,Conway Aecom Ltd,"1,611.56",04/03/2020
COMMERCIAL,ENVIRONMENT,Other Services,1000779001,Conway Aecom Ltd,"14,504.06",04/03/2020
COMMERCIAL,ENVIRONMENT,Other Services,1000779101,Conway Aecom Ltd,"3,922.97",04/03/2020
COMMERCIAL,ENVIRONMENT,Other Services,1000835601,Conway Aecom Ltd,"10,241.15",10/03/2020
COMMERCIAL,ENVIRONMENT,Other Services,1000836801,Conway Aecom Ltd,"33,615.45",10/03/2020
COMMERCIAL,ENVIRONMENT,Other Services,1000841601,Conway Aecom Ltd,"10,241.14",10/03/2020
COMMERCIAL,ENVIRONMENT,Other Services,1000845701,Conway Aecom Ltd,"55,805.78",10/03/2020
COMMERCIAL,ENVIRONMENT,Other Services,1000990501,Conway Aecom Ltd,"3,356.87",27/03/2020
Commercial,Environment,Ashmole academy-Arlington rd-design cost,1000083501,Bouygues E&S Infrastructure UK,920.00,31/03/2020
COMMERCIAL,ENVIRONMENT,Other Services,1000958601,Conway Aecom Ltd,293.77,24/03/2020
COMMERCIAL,ENVIRONMENT,Other Services,1000944301,Pod Point,"2,103.40",23/03/2020
COMMERCIAL,ENVIRONMENT,Other Services,1000937901,Cycle Confident Ltd,"39,471.55",23/03/2020
COMMERCIAL,ENVIRONMENT,Other Services,1000986602,ST MARTIN'S SCHOOL,"1,000.00",27/03/2020
COMMERCIAL,ENVIRONMENT,Other Services,1000987902,THE HYDE EF ACADEMY,"1,000.00",27/03/2020
COMMERCIAL,ENVIRONMENT,Other Services,1000990402,Kerem School,"1,000.00",27/03/2020
COMMERCIAL,ENVIRONMENT,Other Services,1000911702,ST MARTIN'S SCHOOL,"1,100.00",25/03/2020
COMMERCIAL,ENVIRONMENT,Other Services,1000966802,Millbrook Park Primary School,"1,400.00",25/03/2020
COMMERCIAL,ENVIRONMENT,Other Services,1000907202,Alma Primary,"1,100.00",20/03/2020
COMMERCIAL,ENVIRONMENT,Other Services,1001003601,Big Wheel Theatre in Education,"8,400.00",31/03/2020
COMMERCIAL,ENVIRONMENT,Other Services,1000944401,ROAD SAFETY GB,349.00,23/03/2020
COMMERCIAL,ENVIRONMENT,Other Services,1000512902,LONDON ROAD SAFETY COUNCIL,"3,000.00",23/03/2020
COMMERCIAL,ENVIRONMENT,Other Services,1000646602,Keltic Clothing,106.90,24/03/2020
COMMERCIAL,ENVIRONMENT,Other Services,1000946101,For2feet Ltd,"9,996.00",23/03/2020
COMMERCIAL,ENVIRONMENT,Other Services,60145178,Bouygues E&S Infrastructure UK,"3,548.67",31/03/2020
COMMERCIAL,ENVIRONMENT,Other Services,1000895501,Bouygues E&S Infrastructure UK,"14,682.38",16/03/2020
COMMERCIAL,ENVIRONMENT,Other Services,1000954401,Bouygues E&S Infrastructure UK,"32,568.73",26/03/2020
COMMERCIAL,ENVIRONMENT,Other Services,1000962801,Bouygues E&S Infrastructure UK,"12,896.31",25/03/2020
COMMERCIAL,ENVIRONMENT,Other Services,1000816101,Conway Aecom Ltd,"3,051.40",09/03/2020
COMMERCIAL,ENVIRONMENT,Other Services,1000821301,Conway Aecom Ltd,"9,131.62",30/03/2020
COMMERCIAL,ENVIRONMENT,Other Services,1000821601,Conway Aecom Ltd,"1,445.16",09/03/2020
COMMERCIAL,ENVIRONMENT,Other Services,1000824201,Conway Aecom Ltd,"4,630.98",09/03/2020
COMMERCIAL,ENVIRONMENT,Other Services,1000831401,Conway Aecom Ltd,692.55,09/03/2020
COMMERCIAL,ENVIRONMENT,Other Services,1000987101,Conway Aecom Ltd,"2,331.54",27/03/2020
COMMERCIAL,ENVIRONMENT,Other Services,1000989101,Conway Aecom Ltd,"7,350.13",27/03/2020
COMMERCIAL,ENVIRONMENT,Other Services,1000774701,Conway Aecom Ltd,"22,248.00",04/03/2020
COMMERCIAL,ENVIRONMENT,Other Services,1000778401,Conway Aecom Ltd,800.00,04/03/2020
COMMERCIAL,ENVIRONMENT,Other Services,1000814901,Conway Aecom Ltd,"24,271.73",09/03/2020
COMMERCIAL,ENVIRONMENT,Other Services,1000818101,Conway Aecom Ltd,"7,847.98",09/03/2020
COMMERCIAL,ENVIRONMENT,Other Services,1000822901,Conway Aecom Ltd,"2,224.27",09/03/2020
COMMERCIAL,ENVIRONMENT,Other Services,1000825701,Conway Aecom Ltd,"2,562.80",09/03/2020
COMMERCIAL,ENVIRONMENT,Other Services,1000828401,Conway Aecom Ltd,"34,598.12",09/03/2020
COMMERCIAL,ENVIRONMENT,Other Services,1000988401,Conway Aecom Ltd,"29,013.12",27/03/2020
COMMERCIAL,ENVIRONMENT,Equipment and Materials Purcha,1000927302,HAGS PLAY LTD,"5,700.00",25/03/2020
COMMERCIAL,ENVIRONMENT,Professional Services,1000806701,BLAKEDOWN LANDSCAPE (SE) LTD,"312,439.17",06/03/2020
COMMERCIAL,ENVIRONMENT,Professional Services,1000985301,BLAKEDOWN LANDSCAPE (SE) LTD,"274,225.74",26/03/2020
COMMERCIAL,ENVIRONMENT,Advertising,1000823901,TMP (UK) LTD,315.00,09/03/2020
COMMERCIAL,ENVIRONMENT,Other Services,1000745901,Conway Aecom Ltd,630.00,02/03/2020
COMMERCIAL,ENVIRONMENT,Other Services,1000746001,Conway Aecom Ltd,"1,310.40",02/03/2020
COMMERCIAL,ENVIRONMENT,Other Services,1000746301,Conway Aecom Ltd,302.40,02/03/2020
COMMERCIAL,ENVIRONMENT,Other Services,1000746401,Conway Aecom Ltd,319.20,02/03/2020
COMMERCIAL,ENVIRONMENT,Other Services,1000746501,Conway Aecom Ltd,655.20,02/03/2020
COMMERCIAL,ENVIRONMENT,Other Services,1000746601,Conway Aecom Ltd,"2,381.40",02/03/2020
COMMERCIAL,ENVIRONMENT,Other Services,1000746701,Conway Aecom Ltd,189.00,02/03/2020
COMMERCIAL,ENVIRONMENT,Other Services,1000746901,Conway Aecom Ltd,840.00,02/03/2020
COMMERCIAL,ENVIRONMENT,Other Services,1000747001,Conway Aecom Ltd,945.00,02/03/2020
COMMERCIAL,ENVIRONMENT,Other Services,1000747101,Conway Aecom Ltd,529.20,02/03/2020
COMMERCIAL,ENVIRONMENT,Other Services,1000747401,Conway Aecom Ltd,831.60,02/03/2020
COMMERCIAL,ENVIRONMENT,Other Services,1000747601,Conway Aecom Ltd,693.00,02/03/2020
COMMERCIAL,ENVIRONMENT,Other Services,1000748401,Conway Aecom Ltd,535.50,02/03/2020
COMMERCIAL,ENVIRONMENT,Other Services,1000748601,Conway Aecom Ltd,850.50,02/03/2020
COMMERCIAL,ENVIRONMENT,Other Services,1000748901,Conway Aecom Ltd,"1,247.40",02/03/2020
COMMERCIAL,ENVIRONMENT,Other Services,1000749101,Conway Aecom Ltd,"1,134.00",02/03/2020
COMMERCIAL,ENVIRONMENT,Other Services,1000750301,Conway Aecom Ltd,"2,016.00",02/03/2020
COMMERCIAL,ENVIRONMENT,Other Services,1000751001,Conway Aecom Ltd,714.00,02/03/2020
COMMERCIAL,ENVIRONMENT,Other Services,1000751101,Conway Aecom Ltd,"1,312.50",02/03/2020
COMMERCIAL,ENVIRONMENT,Other Services,1000751201,Conway Aecom Ltd,913.50,02/03/2020
COMMERCIAL,ENVIRONMENT,Other Services,1000751701,Conway Aecom Ltd,327.60,02/03/2020
COMMERCIAL,ENVIRONMENT,Other Services,1000751802,Conway Aecom Ltd,327.60,24/03/2020
COMMERCIAL,ENVIRONMENT,Other Services,1000751901,Conway Aecom Ltd,850.50,02/03/2020
COMMERCIAL,ENVIRONMENT,Other Services,1000752001,Conway Aecom Ltd,426.30,02/03/2020
COMMERCIAL,ENVIRONMENT,Other Services,1000752201,Conway Aecom Ltd,"1,323.00",02/03/2020
COMMERCIAL,ENVIRONMENT,Other Services,1000752301,Conway Aecom Ltd,"1,020.60",02/03/2020
COMMERCIAL,ENVIRONMENT,Other Services,1000752401,Conway Aecom Ltd,907.20,02/03/2020
COMMERCIAL,ENVIRONMENT,Other Services,1000752501,Conway Aecom Ltd,470.40,02/03/2020
COMMERCIAL,ENVIRONMENT,Other Services,1000753801,Conway Aecom Ltd,378.00,02/03/2020
COMMERCIAL,ENVIRONMENT,Other Services,1000754101,Conway Aecom Ltd,"2,142.00",02/03/2020
COMMERCIAL,ENVIRONMENT,Other Services,1000754301,Conway Aecom Ltd,630.00,02/03/2020
COMMERCIAL,ENVIRONMENT,Other Services,1000756201,Conway Aecom Ltd,"1,102.50",02/03/2020
COMMERCIAL,ENVIRONMENT,Other Services,1000756601,Conway Aecom Ltd,655.20,02/03/2020
COMMERCIAL,ENVIRONMENT,Other Services,1000756901,Conway Aecom Ltd,"1,968.75",02/03/2020
COMMERCIAL,ENVIRONMENT,Other Services,1000757001,Conway Aecom Ltd,819.00,02/03/2020
COMMERCIAL,ENVIRONMENT,Other Services,1000757201,Conway Aecom Ltd,504.00,02/03/2020
COMMERCIAL,ENVIRONMENT,Other Services,1000757301,Conway Aecom Ltd,821.10,02/03/2020
COMMERCIAL,ENVIRONMENT,Other Services,1000757401,Conway Aecom Ltd,756.00,02/03/2020
COMMERCIAL,ENVIRONMENT,Other Services,1000759101,Conway Aecom Ltd,945.00,02/03/2020
COMMERCIAL,ENVIRONMENT,Other Services,1000890701,Conway Aecom Ltd,850.50,16/03/2020
COMMERCIAL,HOUSING REVENUE ACCOUNT,Other Agencies - Third Party P,1000784901,THE BARNETGROUP LIMITED,"93,628.59",05/03/2020
COMMERCIAL,HOUSING REVENUE ACCOUNT,Consultants Fees,1000791601,THE BARNETGROUP LIMITED,"404,408.90",05/03/2020
COMMERCIAL,HOUSING REVENUE ACCOUNT,Professional Services,1000915701,THE BARNETGROUP LIMITED,"2,400,000.00",20/03/2020
COMMERCIAL,HOUSING REVENUE ACCOUNT,Other Agencies - Third Party P,1000798401,THE BARNETGROUP LIMITED,"273,605.94",05/03/2020
Commercial,HRA,Consultants Fees,1000747902,THE BARNETGROUP LIMITED,"3,073.45",02/03/2020
Commercial,HRA,Consultants Fees,1000965801,TROWERS & HAMLINS,"2,107.30",25/03/2020
Commercial,HRA,Advertising,1000965701,TMP (UK) LTD,"2,850.78",25/03/2020
Commercial,HRA,Consultants Fees,1000978301,PRIORITY ESTATES PROJECT LTD,"2,654.30",26/03/2020
Commercial,HRA,Advertising,1000788901,TMP (UK) LTD,504.50,05/03/2020
Commercial,HRA,Advertising,1000965601,TMP (UK) LTD,476.50,25/03/2020
Commercial,HRA,Consultants Fees,1000784402,THE BARNETGROUP LIMITED,"5,825.97",05/03/2020
Commercial,HRA,Consultants Fees,1000969501,THE BARNETGROUP LIMITED,"9,147.43",26/03/2020
Commercial,HRA,Other Services,1000665302,THE BARNETGROUP LIMITED,"2,020,145.82",23/03/2020
Commercial,HRA,Private Contractors - Third Pa,80033390,REDACTED - PERSONAL DATA,"1,500.00",12/03/2020
Commercial,HRA,Private Contractors - Third Pa,80033395,REDACTED - PERSONAL DATA,637.20,16/03/2020
Commercial,HRA,Private Contractors - Third Pa,80033403,REDACTED - PERSONAL DATA,"2,834.48",12/03/2020
Commercial,HRA,Private Contractors - Third Pa,80033799,REDACTED - PERSONAL DATA,"1,500.00",12/03/2020
Commercial,HRA,Private Contractors - Third Pa,80034337,REDACTED - PERSONAL DATA,805.20,27/03/2020
Commercial,HRA,Consultants Fees,1000817802,THE BARNETGROUP LIMITED,697.50,11/03/2020
Commercial,HRA,Professional Services,1000827301,THE BARNETGROUP LIMITED,"47,966.96",09/03/2020
Commercial,Regional Enterprise,Equipment and Materials Purcha,1000435902,Enforcement Services Ltd,"10,420.00",24/03/2020
Commercial,Regional Enterprise,Refunds,80033861,R & S Properties (London) Ltd,337.63,10/03/2020
Commercial,Regional Enterprise,Refunds,80034042,REDACTED - PERSONAL DATA,557.00,16/03/2020
Commercial,Regional Enterprise,Other Services,1000990001,Conway Aecom Ltd,"7,749.46",27/03/2020
Commercial,Regional Enterprise,Other Services,1000998201,Conway Aecom Ltd,"7,156.48",31/03/2020
Commercial,Regional Enterprise,Other Services,10015569,KENT COUNTY COUNCIL (KCS),18.24,09/03/2020
Commercial,Regional Enterprise,Other Services,10015570,KENT COUNTY COUNCIL (KCS),15.28,09/03/2020
Commercial,Regional Enterprise,Other Services,10015571,KENT COUNTY COUNCIL (KCS),33.75,09/03/2020
Commercial,Regional Enterprise,Other Services,10015572,KENT COUNTY COUNCIL (KCS),45.94,09/03/2020
Commercial,Regional Enterprise,Other Services,1000866802,KENT COUNTY COUNCIL (KCS),56.69,12/03/2020
Commercial,Regional Enterprise,Other Services,1000750701,J C DECAUX UK LTD,"4,046.12",02/03/2020
Commercial,Regional Enterprise,Other Services,60144315,Castle Water Ltd,653.31,09/03/2020
Commercial,Regional Enterprise,Other Services,1000833302,Castle Water Ltd,8.66,11/03/2020
Commercial,Regional Enterprise,Other Services,1000835402,Castle Water Ltd,6.02,10/03/2020
Commercial,Regional Enterprise,Other Services,1000840602,Castle Water Ltd,27.21,10/03/2020
Commercial,Regional Enterprise,Other Services,1000841802,Castle Water Ltd,6.02,10/03/2020
Commercial,Regional Enterprise,Other Services,1000842002,Castle Water Ltd,24.71,10/03/2020
Commercial,Regional Enterprise,Other Services,1000750602,Affinity For Business,50.00,02/03/2020
Commercial,Regional Enterprise,Other Services,1000791902,Affinity For Business,25.26,05/03/2020
Commercial,Regional Enterprise,Other Services,1000953102,Affinity For Business,50.00,25/03/2020
Commercial,Regional Enterprise,Advertising,1000780201,TMP (UK) LTD,179.00,05/03/2020
Commercial,Regional Enterprise,Advertising,1000780401,TMP (UK) LTD,144.00,05/03/2020
Commercial,Regional Enterprise,Advertising,1000780501,TMP (UK) LTD,126.00,05/03/2020
Commercial,Regional Enterprise,Advertising,1000780601,TMP (UK) LTD,99.00,05/03/2020
Commercial,Regional Enterprise,Advertising,1000780901,TMP (UK) LTD,170.00,05/03/2020
Commercial,Regional Enterprise,Advertising,1000781701,TMP (UK) LTD,99.00,05/03/2020
Commercial,Regional Enterprise,Advertising,1000785401,TMP (UK) LTD,179.00,05/03/2020
Commercial,Regional Enterprise,Advertising,1000785801,TMP (UK) LTD,99.00,05/03/2020
Commercial,Regional Enterprise,Advertising,1000786401,TMP (UK) LTD,90.00,05/03/2020
Commercial,Regional Enterprise,Advertising,1000786501,TMP (UK) LTD,206.00,05/03/2020
Commercial,Regional Enterprise,Advertising,1000786601,TMP (UK) LTD,179.00,05/03/2020
Commercial,Regional Enterprise,Advertising,1000786801,TMP (UK) LTD,179.00,05/03/2020
Commercial,Regional Enterprise,Advertising,1000787001,TMP (UK) LTD,170.00,05/03/2020
Commercial,Regional Enterprise,Advertising,1000787401,TMP (UK) LTD,179.00,05/03/2020
Commercial,Regional Enterprise,Advertising,1000787901,TMP (UK) LTD,99.00,05/03/2020
Commercial,Regional Enterprise,Advertising,1000788001,TMP (UK) LTD,197.00,05/03/2020
Commercial,Regional Enterprise,Advertising,1000788101,TMP (UK) LTD,278.00,05/03/2020
Commercial,Regional Enterprise,Advertising,1000792001,TMP (UK) LTD,179.00,05/03/2020
Commercial,Regional Enterprise,Advertising,1000792301,TMP (UK) LTD,162.00,05/03/2020
Commercial,Regional Enterprise,Advertising,1000792401,TMP (UK) LTD,117.00,05/03/2020
Commercial,Regional Enterprise,Advertising,1000792601,TMP (UK) LTD,90.00,05/03/2020
Commercial,Regional Enterprise,Advertising,1000792801,TMP (UK) LTD,179.00,05/03/2020
Commercial,Regional Enterprise,Advertising,1000793901,TMP (UK) LTD,99.00,05/03/2020
Commercial,Regional Enterprise,Advertising,1000794001,TMP (UK) LTD,99.00,05/03/2020
Commercial,Regional Enterprise,Advertising,1000863601,TMP (UK) LTD,179.00,12/03/2020
Commercial,Regional Enterprise,Advertising,1000865401,TMP (UK) LTD,99.00,12/03/2020
Commercial,Regional Enterprise,Advertising,1000869601,TMP (UK) LTD,99.00,12/03/2020
Commercial,Regional Enterprise,Advertising,1000874501,TMP (UK) LTD,179.00,12/03/2020
Commercial,Regional Enterprise,Advertising,1000877801,TMP (UK) LTD,197.00,13/03/2020
Commercial,Regional Enterprise,Advertising,1000878401,TMP (UK) LTD,197.00,13/03/2020
Commercial,Regional Enterprise,Advertising,1000878601,TMP (UK) LTD,99.00,13/03/2020
Commercial,Regional Enterprise,Advertising,1000880501,TMP (UK) LTD,197.00,13/03/2020
Commercial,Regional Enterprise,Advertising,1000882801,TMP (UK) LTD,170.00,13/03/2020
Commercial,Regional Enterprise,Advertising,1000883601,TMP (UK) LTD,170.00,13/03/2020
Commercial,Regional Enterprise,Advertising,1000883801,TMP (UK) LTD,81.00,13/03/2020
Commercial,Regional Enterprise,Advertising,1000887401,TMP (UK) LTD,224.00,16/03/2020
Commercial,Regional Enterprise,Advertising,1000892001,TMP (UK) LTD,197.00,16/03/2020
Commercial,Regional Enterprise,Advertising,1000893001,TMP (UK) LTD,206.00,16/03/2020
Commercial,Regional Enterprise,Advertising,1000893601,TMP (UK) LTD,242.00,16/03/2020
Commercial,Regional Enterprise,Advertising,1000928901,TMP (UK) LTD,117.00,20/03/2020
Commercial,Regional Enterprise,Advertising,1000929201,TMP (UK) LTD,170.00,20/03/2020
Commercial,Regional Enterprise,Advertising,1000929801,TMP (UK) LTD,99.00,20/03/2020
Commercial,Regional Enterprise,Advertising,1000929901,TMP (UK) LTD,161.00,20/03/2020
Commercial,Regional Enterprise,Advertising,1000930201,TMP (UK) LTD,90.00,20/03/2020
Commercial,Regional Enterprise,Advertising,1000930601,TMP (UK) LTD,90.00,20/03/2020
Commercial,Regional Enterprise,Advertising,1000930701,TMP (UK) LTD,179.00,20/03/2020
Commercial,Regional Enterprise,Advertising,1000931001,TMP (UK) LTD,170.00,20/03/2020
Commercial,Regional Enterprise,Advertising,1000931601,TMP (UK) LTD,81.00,20/03/2020
Commercial,Regional Enterprise,Advertising,1000931901,TMP (UK) LTD,117.00,20/03/2020
Commercial,Regional Enterprise,Advertising,1000932101,TMP (UK) LTD,260.00,20/03/2020
Commercial,Regional Enterprise,Advertising,1000932201,TMP (UK) LTD,90.00,20/03/2020
Commercial,Regional Enterprise,Advertising,1000932901,TMP (UK) LTD,90.00,20/03/2020
Commercial,Regional Enterprise,Advertising,1000933801,TMP (UK) LTD,179.00,20/03/2020
Commercial,Regional Enterprise,Advertising,1000934201,TMP (UK) LTD,90.00,20/03/2020
Commercial,Regional Enterprise,Advertising,1000934901,TMP (UK) LTD,99.00,20/03/2020
Commercial,Regional Enterprise,Advertising,1000935101,TMP (UK) LTD,170.00,20/03/2020
Commercial,Regional Enterprise,Advertising,1000935401,TMP (UK) LTD,170.00,20/03/2020
Commercial,Regional Enterprise,Advertising,1000935901,TMP (UK) LTD,179.00,20/03/2020
Commercial,Regional Enterprise,Advertising,1000937001,TMP (UK) LTD,108.00,20/03/2020
Commercial,Regional Enterprise,Advertising,1000937301,TMP (UK) LTD,99.00,20/03/2020
Commercial,Regional Enterprise,Advertising,1000950101,TMP (UK) LTD,188.00,23/03/2020
Commercial,Regional Enterprise,Advertising,1000820901,TMP (UK) LTD,558.00,09/03/2020
Commercial,Regional Enterprise,Advertising,1000822601,TMP (UK) LTD,90.00,09/03/2020
Commercial,Regional Enterprise,Advertising,1000887801,TMP (UK) LTD,476.00,16/03/2020
Commercial,Regional Enterprise,Advertising,1000932701,TMP (UK) LTD,170.00,20/03/2020
Commercial,Regional Enterprise,Equipment and Materials Purcha,1000381202,Conway Aecom Ltd,"1,761.65",31/03/2020
Commercial,Regional Enterprise,Other Services,1000953601,RM COUNTRYSIDE SERVICES LTD,"3,102.00",26/03/2020
Commercial,Regional Enterprise,Other Services,1000989801,RM COUNTRYSIDE SERVICES LTD,"3,656.00",27/03/2020
Commercial,Regional Enterprise,Other Services,1000963801,Conway Aecom Ltd,"2,335.57",26/03/2020
Commercial,Regional Enterprise,Other Services,1000988101,Conway Aecom Ltd,"8,674.30",27/03/2020
Commercial,Regional Enterprise,Other Services,1000989001,Conway Aecom Ltd,"2,504.56",27/03/2020
Commercial,Regional Enterprise,Other Services,1000991201,Conway Aecom Ltd,"8,181.32",27/03/2020
Commercial,Regional Enterprise,Professional Services,1000946701,CITY OF LONDON,"8,021.00",23/03/2020
Commercial,Regional Enterprise,Other Services,1000885001,RM COUNTRYSIDE SERVICES LTD,495.00,13/03/2020
Commercial,Regional Enterprise,Other Services,1000963501,RM COUNTRYSIDE SERVICES LTD,"1,175.00",25/03/2020
Commercial,Regional Enterprise,Other Services,1000972101,RM COUNTRYSIDE SERVICES LTD,310.00,26/03/2020
Commercial,Regional Enterprise,Other Services,1000977001,RM COUNTRYSIDE SERVICES LTD,"1,386.00",26/03/2020
Commercial,Regional Enterprise,Other Services,1000977501,RM COUNTRYSIDE SERVICES LTD,620.00,26/03/2020
Commercial,Regional Enterprise,Other Services,60145008,Conway Aecom Ltd,47.32,26/03/2020
Commercial,Regional Enterprise,Other Services,1000778901,Conway Aecom Ltd,"8,546.30",05/03/2020
Commercial,Regional Enterprise,Refunds,80033503,REDACTED - PERSONAL DATA,584.10,11/03/2020
Commercial,Regional Enterprise,Other Services,60144445,Conway Aecom Ltd,604.80,19/03/2020
Commercial,Regional Enterprise,Refunds,80033905,Quill Developments,102.75,16/03/2020
Commercial,Regional Enterprise,RE Services Contract Payment,1000684302,RE (REGIONAL ENTERPRISE) LIMITED,"15,677.25",12/03/2020
Commercial,Regional Enterprise,Consultants Fees,1000947201,Gowling WLG,"6,037.40",23/03/2020
Commercial,Regional Enterprise,Consultants Fees,1000950501,Gowling WLG,"9,190.57",23/03/2020
Commercial,Regional Enterprise,RE Services Contract Payment,1000685402,RE (REGIONAL ENTERPRISE) LIMITED,"48,991.91",12/03/2020
Commercial,Regional Enterprise,Consultants Fees,1000943401,Gowling WLG,"2,045.54",23/03/2020
Commercial,Regional Enterprise,Professional Services,80033559,REDACTED - PERSONAL DATA,160.00,03/03/2020
Commercial,Regional Enterprise,Professional Services,60111026,RE (REGIONAL ENTERPRISE) LIMITED,"6,890.40",16/03/2020
Commercial,Regional Enterprise,Other Services,1000930401,RE (REGIONAL ENTERPRISE) LIMITED,"17,239.26",26/03/2020
Commercial,Regional Enterprise,Other Services,1000935501,RE (REGIONAL ENTERPRISE) LIMITED,"110,840.52",26/03/2020
Commercial,Regional Enterprise,Other Services,1000943602,RE (REGIONAL ENTERPRISE) LIMITED,"34,887.49",25/03/2020
Commercial,Regional Enterprise,Other Services,1000998101,RE (REGIONAL ENTERPRISE) LIMITED,"50,972.92",31/03/2020
Commercial,Regional Enterprise,Professional Services,1000929402,RE (REGIONAL ENTERPRISE) LIMITED,"7,132.56",31/03/2020
Commercial,Regional Enterprise,Professional Services,1000769201,WATES PROPERTY SERVICES LTD,296.14,03/03/2020
Commercial,Regional Enterprise,RE Services Contract Payment,1000815104,RE (REGIONAL ENTERPRISE) LIMITED,"3,707,470.00",27/03/2020
Commercial,Regional Enterprise,RE Services Contract Payment,1000916401,RE (REGIONAL ENTERPRISE) LIMITED,"2,396.57",23/03/2020
Commercial,Regional Enterprise,RE Services Contract Payment,1001002101,RE (REGIONAL ENTERPRISE) LIMITED,"126,000.00",31/03/2020
Corporate Accounting,Corporate Accounting,Other Local Authorities - Thir,80033885,GLA LEVIES,"277,822.00",11/03/2020
Corporate Accounting,Corporate Accounting,Other Local Authorities - Thir,80033890,GLA LEVIES,"4,665,343.56",11/03/2020
Corporate Accounting,Corporate Accounting,Miscellaneous Expenses,80033770,REDACTED - PERSONAL DATA,364.28,06/03/2020
Corporate Accounting,Corporate Accounting,Miscellaneous Expenses,80033814,REDACTED - PERSONAL DATA,"1,102.98",06/03/2020
Corporate Accounting,Corporate Accounting,Miscellaneous Expenses,80033815,REDACTED - PERSONAL DATA,228.44,06/03/2020
Corporate Accounting,Corporate Accounting,Miscellaneous Expenses,80033823,REDACTED - PERSONAL DATA,634.19,06/03/2020
Corporate Accounting,Corporate Accounting,Miscellaneous Expenses,80034036,REDACTED - PERSONAL DATA,"1,859.31",17/03/2020
Corporate Accounting,Corporate Accounting,Miscellaneous Expenses,80034226,REDACTED - PERSONAL DATA,500.19,25/03/2020
Corporate Accounting,Corporate Accounting,Miscellaneous Expenses,80034227,REDACTED - PERSONAL DATA,603.90,26/03/2020
Corporate Accounting,Corporate Accounting,Miscellaneous Expenses,80030137,REDACTED - PERSONAL DATA,138.96,27/03/2020
Corporate Accounting,Corporate Accounting,Grant Payments,80033777,Business Education Events Ltd,"3,300.00",12/03/2020
Corporate Accounting,Corporate Accounting,Other Transfer Payments to Soc,80033813,Wirecard (FS instant 2040880892973),"30,645.26",09/03/2020
Corporate Accounting,Corporate Accounting,Other Transfer Payments to Soc,80034263,Wirecard (FS instant 2040880892973),"11,747.79",24/03/2020
Corporate Accounting,Corporate Accounting,Other Transfer Payments to Soc,80033820,Wirecard (FS ongoing 2040881670310,"38,076.64",24/03/2020
Corporate Accounting,Corporate Accounting,Consultants Fees,1001001702,THE BARNETGROUP LIMITED,"230,000.00",31/03/2020
Corporate Accounting,Corporate Accounting,Other Agencies - Third Party P,80034233,PFS FS - Staff Payments eWallet,"20,000.00",24/03/2020
Corporate Accounting,Corporate Accounting,Other Agencies - Third Party P,80034234,PFS FS - Ongoing Payments eWallet,"30,000.00",25/03/2020
Corporate Accounting,Corporate Accounting,Other Agencies - Third Party P,80034235,PFS FS - Emergency eWallet,"20,000.00",25/03/2020
Corporate Accounting,Corporate Accounting,Fees and Charges,80033102,Modbest Buliders Ltd,"2,574.00",09/03/2020
Corporate Accounting,Corporate Accounting,Fees and Charges,80034202,BISHOPSWOOD ESTATES LTD,"1,716.00",23/03/2020
Corporate Accounting,Corporate Accounting,Fees and Charges,80034199,Abbeytown Limited,516.00,23/03/2020
Corporate Accounting,Corporate Accounting,Fees and Charges,80034001,AMG Scaffolding Ltd,564.78,25/03/2020
Corporate Accounting,Corporate Accounting,Fees and Charges,80034002,SOLT BUILD LIMITED,"3,500.00",20/03/2020
Corporate Accounting,Corporate Accounting,Fees and Charges,80034270,Collins (Contractors) LTD,"1,000.00",26/03/2020
Corporate Accounting,Corporate Accounting,Fees and Charges,80034268,Able1 Scaffolding LTD,"1,000.00",27/03/2020
Corporate Accounting,Corporate Accounting,Fees and Charges,80034269,The Loft Converter (city),564.78,26/03/2020
Corporate Accounting,Corporate Accounting,Miscellaneous Exps,80033535,REDACTED - PERSONAL DATA,"1,146.87",31/03/2020
Corporate Accounting,Corporate Accounting,Miscellaneous Exps,80033539,REDACTED - PERSONAL DATA,"8,566.20",31/03/2020
Corporate Accounting,Corporate Accounting,Miscellaneous Exps,80033837,REDACTED - PERSONAL DATA,500.00,31/03/2020
Corporate Accounting,Corporate Accounting,Miscellaneous Exps,80033841,REDACTED - PERSONAL DATA,676.16,31/03/2020
Corporate Accounting,Corporate Accounting,Miscellaneous Exps,80033844,REDACTED - PERSONAL DATA,550.00,31/03/2020
Corporate Accounting,Corporate Accounting,Miscellaneous Exps,80033845,REDACTED - PERSONAL DATA,131.99,31/03/2020
Corporate Accounting,Corporate Accounting,Miscellaneous Exps,80033866,REDACTED - PERSONAL DATA,348.20,31/03/2020
Corporate Accounting,Corporate Accounting,Miscellaneous Exps,80033953,REDACTED - PERSONAL DATA,"4,041.79",31/03/2020
Corporate Accounting,Corporate Accounting,Miscellaneous Exps,80034099,REDACTED - PERSONAL DATA,922.80,31/03/2020
Corporate Accounting,Corporate Accounting,Miscellaneous Exps,80034100,Opendoor Homes,197.72,31/03/2020
Corporate Accounting,Corporate Accounting,Miscellaneous Exps,80034224,REDACTED - PERSONAL DATA,357.18,31/03/2020
Corporate Accounting,Corporate Accounting,Miscellaneous Exps,80034228,REDACTED - PERSONAL DATA,102.15,31/03/2020
Corporate Accounting,Corporate Accounting,Miscellaneous Exps,80034291,REDACTED - PERSONAL DATA,"5,000.00",31/03/2020
Corporate Accounting,Corporate Accounting,Miscellaneous Exps,80034292,REDACTED - PERSONAL DATA,"6,582.45",31/03/2020
DELIVERY UNITS,ADULTS AND COMMUNITIES,Ttl IT & Comms,1000401302,Trojan Consultants Ltd,"3,000.00",04/03/2020
Delivery Units,Adults and Health,Software Licences & Support,1000755201,CAPITA BUSINESS SERVICES LTD,"57,443.82",05/03/2020
Delivery Units,Adults and Health,Other Services,1000984502,D S Callards,"57,443.82",27/03/2020
Delivery Units,Adults and Health,Voluntary Associations - Third,50009652,SANCTUARY HOUSING ASSOCIATION,"6,907.89",20/03/2020
Delivery Units,Adults and Health,Voluntary Associations - Third,50009649,BARNET MENCAP,"11,142.65",20/03/2020
Delivery Units,Adults and Health,Voluntary Associations - Third,50009651,METROPOLITAN SUPPORT TRUST,"3,803.81",20/03/2020
Delivery Units,Adults and Health,Other Services,60116338,Barnet Homes Assist,841.06,03/03/2020
Delivery Units,Adults and Health,Equipment and Materials Purcha,1000583802,Millbrook Healthcare Ltd,"196,738.84",20/03/2020
Delivery Units,Adults and Health,Equipment and Materials Purcha,1000938401,Millbrook Healthcare Ltd,"189,220.83",23/03/2020
Delivery Units,Adults and Health,Equipment and Materials Purcha,1000996101,Millbrook Healthcare Ltd,"37,249.45",30/03/2020
Delivery Units,Adults and Health,Other Transfer Payments to Soc,1000807402,MIDDLESEX ASSOCIATION  FOR THE BLIN,"1,512.12",06/03/2020
Delivery Units,Adults and Health,Voluntary Associations - Third,50009650,BARNET MENCAP,"18,249.68",20/03/2020
Delivery Units,Adults and Health,Other Transfer Payments to Soc,1000956302,PRT BARNET CARERS CENTRE,"84,272.75",25/03/2020
Delivery Units,Adults and Health,Voluntary Associations - Third,50009648,AGE CONCERN,"8,333.00",20/03/2020
Delivery Units,Adults and Health,Professional Services,60143886,ALZHEIMER'S SOCIETY (BARNET),"18,000.00",19/03/2020
Delivery Units,Adults and Health,Professional Services,1000454302,ALZHEIMER'S SOCIETY (BARNET),"18,000.00",20/03/2020
Delivery Units,Adults and Health,Professional Services,1000593802,ALZHEIMER'S SOCIETY (BARNET),"18,000.00",20/03/2020
Delivery Units,Adults and Health,Professional Services,1000610602,ALZHEIMER'S SOCIETY (BARNET),"18,000.00",24/03/2020
Delivery Units,Adults and Health,Professional Services,1000612302,ALZHEIMER'S SOCIETY (BARNET),"18,000.00",24/03/2020
Delivery Units,Adults and Health,Professional Services,1000681102,ALZHEIMER'S SOCIETY (BARNET),"18,000.00",24/03/2020
Delivery Units,Adults and Health,Other Services,1000582203,POhWER,"4,610.00",27/03/2020
Delivery Units,Adults and Health,Other Services,1000865002,POhWER,"3,470.00",27/03/2020
Delivery Units,Adults and Health,Other Services,1000791002,COMMUNITY BARNET,"10,666.63",05/03/2020
Delivery Units,Adults and Health,Other Establishments - Third P,1000631502,HERTFORDSHIRE PARTNERSHIP,"115,186.08",24/03/2020
Delivery Units,Adults and Health,Stationery,1000732602,Staples UK Ltd,46.21,05/03/2020
Delivery Units,Adults and Health,Travelling Expenses,1000879101,M1 EXPRESS CAR SERVICES,139.30,13/03/2020
Delivery Units,Adults and Health,Travelling Expenses,1000881201,M1 EXPRESS CAR SERVICES,222.50,13/03/2020
Delivery Units,Adults and Health,Other Services,1000532902,Mott MacDonald Ltd/Cambridge Education,580.00,23/03/2020
Delivery Units,Adults and Health,Other Transfer Payments to Soc,1000912802,Mott MacDonald Ltd/Cambridge Education,580.00,20/03/2020
Delivery Units,Adults and Health,Other Services,1000847601,D.A. Languages Ltd,40.50,12/03/2020
Delivery Units,Adults and Health,Other Services,1000849801,D.A. Languages Ltd,98.00,12/03/2020
Delivery Units,Adults and Health,Other Services,1000951701,D.A. Languages Ltd,60.75,24/03/2020
Delivery Units,Adults and Health,Other Services,1000814201,GOOD IMPRESSIONS (LONDON) LIMITED,120.00,12/03/2020
Delivery Units,Adults and Health,Other Services,1000881401,M1 EXPRESS CAR SERVICES,100.00,13/03/2020
Delivery Units,Adults and Health,Other Services,1000891801,THE BARNETGROUP LIMITED,"21,864.04",16/03/2020
Delivery Units,Adults and Health,Other Services,1000799501,D.A. Languages Ltd,24.29,12/03/2020
Delivery Units,Adults and Health,Other Services,1000801301,D.A. Languages Ltd,40.50,12/03/2020
Delivery Units,Adults and Health,Other Services,1000802201,D.A. Languages Ltd,40.50,12/03/2020
Delivery Units,Adults and Health,Other Services,1000802301,D.A. Languages Ltd,54.00,12/03/2020
Delivery Units,Adults and Health,Other Services,1000810501,D.A. Languages Ltd,33.75,12/03/2020
Delivery Units,Adults and Health,Other Services,1000811101,D.A. Languages Ltd,81.00,12/03/2020
Delivery Units,Adults and Health,Other Services,1000811501,D.A. Languages Ltd,20.51,12/03/2020
Delivery Units,Adults and Health,Other Services,1000813401,D.A. Languages Ltd,40.50,12/03/2020
Delivery Units,Adults and Health,Other Services,1000813802,D.A. Languages Ltd,27.00,12/03/2020
Delivery Units,Adults and Health,Other Services,1000813901,D.A. Languages Ltd,33.00,12/03/2020
Delivery Units,Adults and Health,Other Services,1000905601,Community Health Partnerships,"1,723.20",19/03/2020
Delivery Units,Adults and Health,Stationery,60143824,Staples UK Ltd,41.50,19/03/2020
Delivery Units,Adults and Health,Stationery,1000670502,XEROX FINANCE LTD,20.19,25/03/2020
Delivery Units,Adults and Health,Water Services,1000750201,Castle Water Ltd,13.61,02/03/2020
Delivery Units,Adults and Health,Translation Exp / Interpret,1000801801,D.A. Languages Ltd,27.00,12/03/2020
Delivery Units,Adults and Health,Translation Exp / Interpret,1000811801,D.A. Languages Ltd,27.00,12/03/2020
Delivery Units,Adults and Health,Stationery,1000998501,Staples UK Ltd,267.48,31/03/2020
Delivery Units,Adults and Health,Cleaning and domestic material,1000748801,Norse Commercial Services Ltd,583.82,02/03/2020
Delivery Units,Adults and Health,Cleaning and domestic material,1000754401,Norse Commercial Services Ltd,"2,023.96",02/03/2020
Delivery Units,Adults and Health,Cleaning and domestic material,1000754701,Norse Commercial Services Ltd,505.99,02/03/2020
Delivery Units,Adults and Health,Cleaning and domestic material,1000756401,Norse Commercial Services Ltd,583.82,02/03/2020
Delivery Units,Adults and Health,Cleaning and domestic material,1000759401,Norse Commercial Services Ltd,583.82,02/03/2020
Delivery Units,Adults and Health,Cleaning and domestic material,1000760901,Norse Commercial Services Ltd,583.82,02/03/2020
Delivery Units,Adults and Health,Cleaning and domestic material,1000761601,Norse Commercial Services Ltd,583.82,02/03/2020
Delivery Units,Adults and Health,Grounds maintenance,1000267002,REDACTED - PERSONAL DATA,100.00,25/03/2020
Delivery Units,Adults and Health,Training,1000967101,HUNTERSJOY LTD,750.00,25/03/2020
Delivery Units,Adults and Health,Training,1000771002,FRONTLINE TRAINING,850.00,03/03/2020
Delivery Units,Adults and Health,Stationery,1000702702,Staples UK Ltd,69.51,05/03/2020
Delivery Units,Adults and Health,Translation Exp / Interpret,60137154,PRIME PRODUCTION LTD,500.00,04/03/2020
Delivery Units,Adults and Health,Other Services,1000957502,REDACTED - PERSONAL DATA,"1,800.00",25/03/2020
Delivery Units,Adults and Health,Other Services,1000958502,REDACTED - PERSONAL DATA,"1,200.00",26/03/2020
Delivery Units,Adults and Health,Other Services,1000241503,HAS Technology Ltd,"1,389.75",31/03/2020
Delivery Units,Adults and Health,Other Services,1000810301,D.A. Languages Ltd,44.00,12/03/2020
Delivery Units,Adults and Health,Other Services,1000969902,D.A. Languages Ltd,122.50,26/03/2020
Delivery Units,Adults and Health,Other Services,1000749701,Mott MacDonald Ltd/Cambridge Education,54.00,04/03/2020
Delivery Units,Adults and Health,Translation Exp / Interpret,1000800801,D.A. Languages Ltd,98.00,12/03/2020
Delivery Units,Adults and Health,Translation Exp / Interpret,1000804001,D.A. Languages Ltd,47.25,12/03/2020
Delivery Units,Adults and Health,Translation Exp / Interpret,1000809901,D.A. Languages Ltd,98.00,12/03/2020
Delivery Units,Adults and Health,Translation Exp / Interpret,1000812901,D.A. Languages Ltd,11.96,12/03/2020
Delivery Units,Adults and Health,Translation Exp / Interpret,1000813101,D.A. Languages Ltd,14.56,12/03/2020
Delivery Units,Adults and Health,Translation Exp / Interpret,1000962201,D.A. Languages Ltd,54.00,25/03/2020
Delivery Units,Adults and Health,Translation Exp / Interpret,1000969201,D.A. Languages Ltd,22.00,26/03/2020
Delivery Units,Adults and Health,Translation Exp / Interpret,1000970301,D.A. Languages Ltd,12.04,26/03/2020
Delivery Units,Adults and Health,Other Services,1000877501,Waterlogic GB Limited,8.82,13/03/2020
Delivery Units,Adults and Health,Other Services,1000883001,Waterlogic GB Limited,96.91,13/03/2020
Delivery Units,Adults and Health,Other Transfer Payments to Soc,1000726102,ACTION FIRST RECRUITMENT,690.00,02/03/2020
Delivery Units,Adults and Health,Other Transfer Payments to Soc,1000768601,ACTION FIRST RECRUITMENT,"3,350.00",03/03/2020
Delivery Units,Adults and Health,Other Transfer Payments to Soc,60130094,KORU MEDICAL LTD,"3,108.49",25/03/2020
Delivery Units,Adults and Health,Other Transfer Payments to Soc,1000768701,KORU MEDICAL LTD,829.24,05/03/2020
Delivery Units,Adults and Health,Other Transfer Payments to Soc,1000880301,KORU MEDICAL LTD,"1,163.48",19/03/2020
Delivery Units,Adults and Health,Other Transfer Payments to Soc,1000973801,KORU MEDICAL LTD,"3,176.87",26/03/2020
Delivery Units,Adults and Health,Other Services,1000832901,Run Healthcare Ltd,"2,600.00",10/03/2020
Delivery Units,Adults and Health,Other Transfer Payments to Soc,1000722202,POhWER,359.62,24/03/2020
Delivery Units,Adults and Health,Other Transfer Payments to Soc,1000748001,Aisa Medical Ltd,173.37,03/03/2020
Delivery Units,Adults and Health,Other Transfer Payments to Soc,1000748202,Aisa Medical Ltd,175.11,03/03/2020
Delivery Units,Adults and Health,Other Transfer Payments to Soc,1000749801,Aisa Medical Ltd,173.37,04/03/2020
Delivery Units,Adults and Health,Other Transfer Payments to Soc,1000749901,Aisa Medical Ltd,173.37,04/03/2020
Delivery Units,Adults and Health,Other Transfer Payments to Soc,1000752701,Aisa Medical Ltd,173.37,03/03/2020
Delivery Units,Adults and Health,Other Transfer Payments to Soc,1000752801,Aisa Medical Ltd,178.14,03/03/2020
Delivery Units,Adults and Health,Other Transfer Payments to Soc,1000752901,Aisa Medical Ltd,173.37,03/03/2020
Delivery Units,Adults and Health,Other Transfer Payments to Soc,1000753501,Aisa Medical Ltd,176.55,03/03/2020
Delivery Units,Adults and Health,Other Transfer Payments to Soc,1000753701,Aisa Medical Ltd,173.37,03/03/2020
Delivery Units,Adults and Health,Other Transfer Payments to Soc,1000754501,Aisa Medical Ltd,173.37,04/03/2020
Delivery Units,Adults and Health,Other Transfer Payments to Soc,1000755001,Aisa Medical Ltd,178.88,04/03/2020
Delivery Units,Adults and Health,Other Transfer Payments to Soc,1000755101,Aisa Medical Ltd,173.68,03/03/2020
Delivery Units,Adults and Health,Other Transfer Payments to Soc,1000755401,Aisa Medical Ltd,173.37,04/03/2020
Delivery Units,Adults and Health,Other Transfer Payments to Soc,1000755703,Aisa Medical Ltd,173.37,04/03/2020
Delivery Units,Adults and Health,Other Transfer Payments to Soc,1000755802,Aisa Medical Ltd,173.37,04/03/2020
Delivery Units,Adults and Health,Other Transfer Payments to Soc,1000755902,Aisa Medical Ltd,173.37,04/03/2020
Delivery Units,Adults and Health,Other Transfer Payments to Soc,1000756301,Aisa Medical Ltd,174.11,03/03/2020
Delivery Units,Adults and Health,Other Transfer Payments to Soc,1000756701,Aisa Medical Ltd,173.37,03/03/2020
Delivery Units,Adults and Health,Other Transfer Payments to Soc,1000757602,Aisa Medical Ltd,173.37,05/03/2020
Delivery Units,Adults and Health,Other Transfer Payments to Soc,1000758201,Aisa Medical Ltd,173.37,03/03/2020
Delivery Units,Adults and Health,Other Transfer Payments to Soc,1000759501,Aisa Medical Ltd,173.37,03/03/2020
Delivery Units,Adults and Health,Other Transfer Payments to Soc,1000759801,Aisa Medical Ltd,173.37,03/03/2020
Delivery Units,Adults and Health,Other Transfer Payments to Soc,1000760001,Aisa Medical Ltd,173.37,04/03/2020
Delivery Units,Adults and Health,Other Transfer Payments to Soc,1000760201,Aisa Medical Ltd,173.37,03/03/2020
Delivery Units,Adults and Health,Other Transfer Payments to Soc,1000760401,Aisa Medical Ltd,173.37,03/03/2020
Delivery Units,Adults and Health,Other Transfer Payments to Soc,1000761501,Aisa Medical Ltd,173.37,04/03/2020
Delivery Units,Adults and Health,Other Transfer Payments to Soc,1000775101,Aisa Medical Ltd,174.96,04/03/2020
Delivery Units,Adults and Health,Other Transfer Payments to Soc,1000775601,Aisa Medical Ltd,179.78,04/03/2020
Delivery Units,Adults and Health,Other Transfer Payments to Soc,1000775701,Aisa Medical Ltd,176.12,04/03/2020
Delivery Units,Adults and Health,Other Transfer Payments to Soc,1000777001,Aisa Medical Ltd,174.16,04/03/2020
Delivery Units,Adults and Health,Other Transfer Payments to Soc,1000782701,Aisa Medical Ltd,174.96,09/03/2020
Delivery Units,Adults and Health,Other Transfer Payments to Soc,1000782901,Aisa Medical Ltd,174.58,09/03/2020
Delivery Units,Adults and Health,Other Transfer Payments to Soc,1000783401,Aisa Medical Ltd,177.92,09/03/2020
Delivery Units,Adults and Health,Other Transfer Payments to Soc,1000783601,Aisa Medical Ltd,173.37,09/03/2020
Delivery Units,Adults and Health,Other Transfer Payments to Soc,1000783701,Aisa Medical Ltd,173.37,05/03/2020
Delivery Units,Adults and Health,Other Transfer Payments to Soc,1000785001,Aisa Medical Ltd,173.37,05/03/2020
Delivery Units,Adults and Health,Other Transfer Payments to Soc,1000789602,Aisa Medical Ltd,173.37,11/03/2020
Delivery Units,Adults and Health,Other Transfer Payments to Soc,1000790101,Aisa Medical Ltd,178.14,05/03/2020
Delivery Units,Adults and Health,Other Transfer Payments to Soc,1000790901,Aisa Medical Ltd,175.01,09/03/2020
Delivery Units,Adults and Health,Other Transfer Payments to Soc,1000793501,Aisa Medical Ltd,179.67,05/03/2020
Delivery Units,Adults and Health,Other Transfer Payments to Soc,1000794901,Aisa Medical Ltd,173.37,05/03/2020
Delivery Units,Adults and Health,Other Transfer Payments to Soc,1000795401,Aisa Medical Ltd,175.70,09/03/2020
Delivery Units,Adults and Health,Other Transfer Payments to Soc,1000795801,Aisa Medical Ltd,174.05,09/03/2020
Delivery Units,Adults and Health,Other Transfer Payments to Soc,1000796201,Aisa Medical Ltd,174.37,09/03/2020
Delivery Units,Adults and Health,Other Transfer Payments to Soc,1000797402,Aisa Medical Ltd,173.79,09/03/2020
Delivery Units,Adults and Health,Other Transfer Payments to Soc,1000849101,Aisa Medical Ltd,184.81,11/03/2020
Delivery Units,Adults and Health,Other Transfer Payments to Soc,1000849301,Aisa Medical Ltd,173.37,11/03/2020
Delivery Units,Adults and Health,Other Transfer Payments to Soc,1000849401,Aisa Medical Ltd,184.81,11/03/2020
Delivery Units,Adults and Health,Other Transfer Payments to Soc,1000849901,Aisa Medical Ltd,173.37,11/03/2020
Delivery Units,Adults and Health,Other Transfer Payments to Soc,1000850002,Aisa Medical Ltd,173.37,11/03/2020
Delivery Units,Adults and Health,Other Transfer Payments to Soc,1000856301,Aisa Medical Ltd,183.77,11/03/2020
Delivery Units,Adults and Health,Other Transfer Payments to Soc,1000857201,Aisa Medical Ltd,173.37,11/03/2020
Delivery Units,Adults and Health,Other Transfer Payments to Soc,1000857401,Aisa Medical Ltd,173.37,11/03/2020
Delivery Units,Adults and Health,Other Transfer Payments to Soc,1000877601,Aisa Medical Ltd,173.37,13/03/2020
Delivery Units,Adults and Health,Other Transfer Payments to Soc,1000880101,Aisa Medical Ltd,176.07,13/03/2020
Delivery Units,Adults and Health,Other Transfer Payments to Soc,1000882001,Aisa Medical Ltd,176.81,13/03/2020
Delivery Units,Adults and Health,Other Transfer Payments to Soc,1000882201,Aisa Medical Ltd,176.39,13/03/2020
Delivery Units,Adults and Health,Other Transfer Payments to Soc,1000882902,Aisa Medical Ltd,173.37,25/03/2020
Delivery Units,Adults and Health,Other Transfer Payments to Soc,1000884502,Aisa Medical Ltd,173.37,25/03/2020
Delivery Units,Adults and Health,Other Transfer Payments to Soc,1000884601,Aisa Medical Ltd,173.37,13/03/2020
Delivery Units,Adults and Health,Other Transfer Payments to Soc,1000938802,Aisa Medical Ltd,184.81,23/03/2020
Delivery Units,Adults and Health,Other Transfer Payments to Soc,1000944502,Aisa Medical Ltd,173.37,30/03/2020
Delivery Units,Adults and Health,Other Transfer Payments to Soc,1000895801,Eduhez Ltd,"2,070.00",17/03/2020
Delivery Units,Adults and Health,Other Transfer Payments to Soc,1000814701,Peaceable Habitation Ltd,635.64,09/03/2020
Delivery Units,Adults and Health,Other Transfer Payments to Soc,1000826402,Peaceable Habitation Ltd,312.96,11/03/2020
Delivery Units,Adults and Health,Translation Exp / Interpret,1000813201,D.A. Languages Ltd,40.50,12/03/2020
Delivery Units,Adults and Health,Other Services,1000722102,Steve Chamberlain Social Care Ltd,825.00,24/03/2020
Delivery Units,Adults and Health,Other Services,1000881502,KMCA Consultancy Services Ltd,"3,217.28",18/03/2020
Delivery Units,Adults and Health,Other Services,1000731202,South East Memory Assessment Serv. Ltd,470.00,24/03/2020
Delivery Units,Adults and Health,Other Services,1000718902,Eloges Social Work Ltd,"1,750.00",24/03/2020
Delivery Units,Adults and Health,Other Services,1000726502,Carebuz,500.00,24/03/2020
Delivery Units,Adults and Health,Other Services,1000727002,Carebuz,750.00,24/03/2020
Delivery Units,Adults and Health,Other Services,1000974801,Recruitment Team Nine Limited,270.00,26/03/2020
Delivery Units,Adults and Health,Other Services,1000978601,Recruitment Team Nine Limited,270.00,26/03/2020
Delivery Units,Adults and Health,Other Services,1000979001,Recruitment Team Nine Limited,270.00,26/03/2020
Delivery Units,Adults and Health,Other Services,1000979401,Recruitment Team Nine Limited,270.00,26/03/2020
Delivery Units,Adults and Health,Other Services,1000985701,Recruitment Team Nine Limited,270.00,26/03/2020
Delivery Units,Adults and Health,Other Services,1000825601,Ambrosial Services Limited,825.00,09/03/2020
Delivery Units,Adults and Health,Other Services,1000955401,Ambrosial Services Limited,"1,100.00",24/03/2020
Delivery Units,Adults and Health,Other Services,1000679902,Sparkes Medical Services Ltd,180.00,24/03/2020
Delivery Units,Adults and Health,Other Services,80033765,Imperial Social Care Ltd,267.10,04/03/2020
Delivery Units,Adults and Health,Other Services,80033768,SM 365 LTD,212.00,06/03/2020
Delivery Units,Adults and Health,Other Services,80033792,DR MASOOD ASLAM LTD,173.37,05/03/2020
Delivery Units,Adults and Health,Other Services,1000807802,REDACTED - PERSONAL DATA,322.50,17/03/2020
Delivery Units,Adults and Health,Other Services,10015567,BACK CARE SOLUTIONS LIMITED,75.00,03/03/2020
Delivery Units,Adults and Health,Other Services,1000617702,BACK CARE SOLUTIONS LIMITED,600.00,24/03/2020
Delivery Units,Adults and Health,Other Services,1000740201,Hasca Ltd,800.00,05/03/2020
Delivery Units,Adults and Health,Other Agencies - Third Party P,90240571,JEWISH CARE,"1,010.09",17/03/2020
Delivery Units,Adults and Health,Other Agencies - Third Party P,90240576,JEWISH CARE,"2,649.36",17/03/2020
Delivery Units,Adults and Health,Other Agencies - Third Party P,90240590,JEWISH CARE,"2,649.36",17/03/2020
Delivery Units,Adults and Health,Other Agencies - Third Party P,90240592,JEWISH CARE,"2,649.36",17/03/2020
Delivery Units,Adults and Health,Other Agencies - Third Party P,90240593,JEWISH CARE,"2,410.28",17/03/2020
Delivery Units,Adults and Health,Other Agencies - Third Party P,90240594,JEWISH CARE,"2,649.36",17/03/2020
Delivery Units,Adults and Health,Other Agencies - Third Party P,90240615,JEWISH CARE,"8,682.28",17/03/2020
Delivery Units,Adults and Health,Other Agencies - Third Party P,90240626,JEWISH CARE,"2,410.28",17/03/2020
Delivery Units,Adults and Health,Other Agencies - Third Party P,90240635,JEWISH CARE,"2,410.28",17/03/2020
Delivery Units,Adults and Health,Other Agencies - Third Party P,90240639,JEWISH CARE,"2,410.28",17/03/2020
Delivery Units,Adults and Health,Other Agencies - Third Party P,90240661,JEWISH CARE,"2,410.28",17/03/2020
Delivery Units,Adults and Health,Other Agencies - Third Party P,90240662,JEWISH CARE,"2,410.28",17/03/2020
Delivery Units,Adults and Health,Other Agencies - Third Party P,90240669,JEWISH CARE,"2,410.28",17/03/2020
Delivery Units,Adults and Health,Other Agencies - Third Party P,90240682,JEWISH CARE,"2,380.92",17/03/2020
Delivery Units,Adults and Health,Other Agencies - Third Party P,90240687,JEWISH CARE,"2,410.28",17/03/2020
Delivery Units,Adults and Health,Other Agencies - Third Party P,90240689,JEWISH CARE,918.16,17/03/2020
Delivery Units,Adults and Health,Other Agencies - Third Party P,90240695,JEWISH CARE,"3,489.64",17/03/2020
Delivery Units,Adults and Health,Other Agencies - Third Party P,90240697,JEWISH CARE,"2,410.28",17/03/2020
Delivery Units,Adults and Health,Other Agencies - Third Party P,90240703,JEWISH CARE,"2,649.36",17/03/2020
Delivery Units,Adults and Health,Other Agencies - Third Party P,90240708,JEWISH CARE,"2,410.28",17/03/2020
Delivery Units,Adults and Health,Other Agencies - Third Party P,90240710,JEWISH CARE,"2,410.28",17/03/2020
Delivery Units,Adults and Health,Other Agencies - Third Party P,90244137,JEWISH CARE,"12,567.89",24/03/2020
Delivery Units,Adults and Health,Other Agencies - Third Party P,90244156,JEWISH CARE,"2,410.28",24/03/2020
Delivery Units,Adults and Health,Other Agencies - Third Party P,90244157,JEWISH CARE,"2,410.28",24/03/2020
Delivery Units,Adults and Health,Other Agencies - Third Party P,90244164,JEWISH CARE,"2,410.28",24/03/2020
Delivery Units,Adults and Health,Other Agencies - Third Party P,90244177,JEWISH CARE,"2,380.92",24/03/2020
Delivery Units,Adults and Health,Other Agencies - Third Party P,90244181,JEWISH CARE,"2,410.28",24/03/2020
Delivery Units,Adults and Health,Other Agencies - Third Party P,90244197,JEWISH CARE,"8,682.28",24/03/2020
Delivery Units,Adults and Health,Other Agencies - Third Party P,90244207,JEWISH CARE,"2,649.36",24/03/2020
Delivery Units,Adults and Health,Other Agencies - Third Party P,90244221,JEWISH CARE,"2,649.36",24/03/2020
Delivery Units,Adults and Health,Other Agencies - Third Party P,90244223,JEWISH CARE,"2,649.36",24/03/2020
Delivery Units,Adults and Health,Other Agencies - Third Party P,90244224,JEWISH CARE,"2,410.28",24/03/2020
Delivery Units,Adults and Health,Other Agencies - Third Party P,90244225,JEWISH CARE,"2,649.36",24/03/2020
Delivery Units,Adults and Health,Other Agencies - Third Party P,90244230,JEWISH CARE,"2,410.28",24/03/2020
Delivery Units,Adults and Health,Other Agencies - Third Party P,90244237,JEWISH CARE,"3,489.64",24/03/2020
Delivery Units,Adults and Health,Other Agencies - Third Party P,90244239,JEWISH CARE,"2,410.28",24/03/2020
Delivery Units,Adults and Health,Other Agencies - Third Party P,90244245,JEWISH CARE,"2,649.36",24/03/2020
Delivery Units,Adults and Health,Other Agencies - Third Party P,90244250,JEWISH CARE,"2,410.28",24/03/2020
Delivery Units,Adults and Health,Other Agencies - Third Party P,90244252,JEWISH CARE,"2,410.28",24/03/2020
Delivery Units,Adults and Health,Other Agencies - Third Party P,90244260,JEWISH CARE,"2,410.28",24/03/2020
Delivery Units,Adults and Health,Other Agencies - Third Party P,90244269,JEWISH CARE,"2,410.28",24/03/2020
Delivery Units,Adults and Health,Other Agencies - Third Party P,90244273,JEWISH CARE,172.16,24/03/2020
Delivery Units,Adults and Health,Other Agencies - Third Party P,90244276,JEWISH CARE,"2,680.09",24/03/2020
Delivery Units,Adults and Health,Other Agencies - Third Party P,90236553,FERNBANK NURSING HOME.,"3,199.84",05/03/2020
Delivery Units,Adults and Health,Other Agencies - Third Party P,90238444,FERNBANK NURSING HOME.,"1,435.34",09/03/2020
Delivery Units,Adults and Health,Other Agencies - Third Party P,90238446,FERNBANK NURSING HOME.,"1,128.32",09/03/2020
Delivery Units,Adults and Health,Other Agencies - Third Party P,90238447,FERNBANK NURSING HOME.,"1,236.68",09/03/2020
Delivery Units,Adults and Health,Other Agencies - Third Party P,90238448,FERNBANK NURSING HOME.,"3,321.34",09/03/2020
Delivery Units,Adults and Health,Other Agencies - Third Party P,90238449,FERNBANK NURSING HOME.,"3,299.80",10/03/2020
Delivery Units,Adults and Health,Other Agencies - Third Party P,90244584,FERNBANK NURSING HOME.,"3,542.68",24/03/2020
Delivery Units,Adults and Health,Other Agencies - Third Party P,90244585,FERNBANK NURSING HOME.,"3,321.34",24/03/2020
Delivery Units,Adults and Health,Other Agencies - Third Party P,90244586,FERNBANK NURSING HOME.,"3,653.35",24/03/2020
Delivery Units,Adults and Health,Other Agencies - Third Party P,90244587,FERNBANK NURSING HOME.,"3,542.68",24/03/2020
Delivery Units,Adults and Health,Other Agencies - Third Party P,90236600,CEDARS NURSING HOME,"-3,520.71",18/03/2020
Delivery Units,Adults and Health,Other Agencies - Third Party P,90241853,CEDARS NURSING HOME,"4,207.14",18/03/2020
Delivery Units,Adults and Health,Other Agencies - Third Party P,90241854,CEDARS NURSING HOME,"2,964.93",18/03/2020
Delivery Units,Adults and Health,Other Agencies - Third Party P,90241855,CEDARS NURSING HOME,"2,508.08",18/03/2020
Delivery Units,Adults and Health,Other Agencies - Third Party P,90241856,CEDARS NURSING HOME,"3,919.29",18/03/2020
Delivery Units,Adults and Health,Other Agencies - Third Party P,90241858,CEDARS NURSING HOME,"2,657.14",18/03/2020
Delivery Units,Adults and Health,Other Agencies - Third Party P,90241859,CEDARS NURSING HOME,"4,428.57",18/03/2020
Delivery Units,Adults and Health,Other Agencies - Third Party P,90231854,BUPA NURSING HOMES LTD - ARKLEY,158.25,05/03/2020
Delivery Units,Adults and Health,Other Agencies - Third Party P,90231855,BUPA NURSING HOMES LTD - ARKLEY,158.25,05/03/2020
Delivery Units,Adults and Health,Other Agencies - Third Party P,90231857,BUPA NURSING HOMES LTD - ARKLEY,158.25,05/03/2020
Delivery Units,Adults and Health,Other Agencies - Third Party P,90231858,BUPA NURSING HOMES LTD - ARKLEY,158.25,05/03/2020
Delivery Units,Adults and Health,Other Agencies - Third Party P,90231860,BUPA NURSING HOMES LTD - ARKLEY,"-2,318.76",05/03/2020
Delivery Units,Adults and Health,Other Agencies - Third Party P,90231862,BUPA NURSING HOMES LTD - ARKLEY,"-2,318.76",05/03/2020
Delivery Units,Adults and Health,Other Agencies - Third Party P,90231863,BUPA NURSING HOMES LTD - ARKLEY,"-2,318.76",05/03/2020
Delivery Units,Adults and Health,Other Agencies - Third Party P,90231864,BUPA NURSING HOMES LTD - ARKLEY,"-2,318.76",05/03/2020
Delivery Units,Adults and Health,Other Agencies - Third Party P,90237780,BUPA NURSING HOMES LTD - ARKLEY,"3,800.00",05/03/2020
Delivery Units,Adults and Health,Other Agencies - Third Party P,90237782,BUPA NURSING HOMES LTD - ARKLEY,"4,400.00",05/03/2020
Delivery Units,Adults and Health,Other Agencies - Third Party P,90237783,BUPA NURSING HOMES LTD - ARKLEY,"2,265.36",05/03/2020
Delivery Units,Adults and Health,Other Agencies - Third Party P,90237784,BUPA NURSING HOMES LTD - ARKLEY,"3,337.76",05/03/2020
Delivery Units,Adults and Health,Other Agencies - Third Party P,90240186,BUPA NURSING HOMES LTD - ARKLEY,"2,568.57",12/03/2020
Delivery Units,Adults and Health,Other Agencies - Third Party P,90240187,BUPA NURSING HOMES LTD - ARKLEY,"2,568.57",12/03/2020
Delivery Units,Adults and Health,Other Agencies - Third Party P,90240188,BUPA NURSING HOMES LTD - ARKLEY,"2,568.57",12/03/2020
Delivery Units,Adults and Health,Other Agencies - Third Party P,90240190,BUPA NURSING HOMES LTD - ARKLEY,"2,568.57",12/03/2020
Delivery Units,Adults and Health,Other Agencies - Third Party P,90240191,BUPA NURSING HOMES LTD - ARKLEY,"2,568.57",12/03/2020
Delivery Units,Adults and Health,Other Agencies - Third Party P,90240192,BUPA NURSING HOMES LTD - ARKLEY,"2,568.57",12/03/2020
Delivery Units,Adults and Health,Other Agencies - Third Party P,90240193,BUPA NURSING HOMES LTD - ARKLEY,"2,745.71",12/03/2020
Delivery Units,Adults and Health,Other Agencies - Third Party P,90240194,BUPA NURSING HOMES LTD - ARKLEY,"2,745.72",12/03/2020
Delivery Units,Adults and Health,Other Agencies - Third Party P,90240195,BUPA NURSING HOMES LTD - ARKLEY,"2,745.72",12/03/2020
Delivery Units,Adults and Health,Other Agencies - Third Party P,90240197,BUPA NURSING HOMES LTD - ARKLEY,"2,745.72",12/03/2020
Delivery Units,Adults and Health,Other Agencies - Third Party P,90240198,BUPA NURSING HOMES LTD - ARKLEY,"2,745.72",12/03/2020
Delivery Units,Adults and Health,Other Agencies - Third Party P,90240199,BUPA NURSING HOMES LTD - ARKLEY,"2,745.72",12/03/2020
Delivery Units,Adults and Health,Other Agencies - Third Party P,90240200,BUPA NURSING HOMES LTD - ARKLEY,"2,745.72",12/03/2020
Delivery Units,Adults and Health,Other Agencies - Third Party P,90240201,BUPA NURSING HOMES LTD - ARKLEY,"2,745.72",12/03/2020
Delivery Units,Adults and Health,Other Agencies - Third Party P,90240202,BUPA NURSING HOMES LTD - ARKLEY,"2,745.72",12/03/2020
Delivery Units,Adults and Health,Other Agencies - Third Party P,90240205,BUPA NURSING HOMES LTD - ARKLEY,"2,745.72",12/03/2020
Delivery Units,Adults and Health,Other Agencies - Third Party P,90240207,BUPA NURSING HOMES LTD - ARKLEY,189.15,12/03/2020
Delivery Units,Adults and Health,Other Agencies - Third Party P,90240208,BUPA NURSING HOMES LTD - ARKLEY,520.33,12/03/2020
Delivery Units,Adults and Health,Other Agencies - Third Party P,90240512,BUPA NURSING HOMES LTD - ARKLEY,"2,460.84",17/03/2020
Delivery Units,Adults and Health,Other Agencies - Third Party P,90240513,BUPA NURSING HOMES LTD - ARKLEY,"3,737.76",17/03/2020
Delivery Units,Adults and Health,Other Agencies - Third Party P,90240514,BUPA NURSING HOMES LTD - ARKLEY,-133.50,17/03/2020
Delivery Units,Adults and Health,Other Agencies - Third Party P,90240515,BUPA NURSING HOMES LTD - ARKLEY,"3,400.00",17/03/2020
Delivery Units,Adults and Health,Other Agencies - Third Party P,90240516,BUPA NURSING HOMES LTD - ARKLEY,"3,400.00",17/03/2020
Delivery Units,Adults and Health,Other Agencies - Third Party P,90240517,BUPA NURSING HOMES LTD - ARKLEY,"1,214.29",17/03/2020
Delivery Units,Adults and Health,Other Agencies - Third Party P,90241949,AGUDAS ISRAEL HOUSING ASSCTN LTD,"2,736.86",18/03/2020
Delivery Units,Adults and Health,Other Agencies - Third Party P,90240492,WESTMINSTER HEALTH CARE LTD,"2,346.27",19/03/2020
Delivery Units,Adults and Health,Other Agencies - Third Party P,90240494,WESTMINSTER HEALTH CARE LTD,"4,699.82",19/03/2020
Delivery Units,Adults and Health,Other Agencies - Third Party P,90240495,WESTMINSTER HEALTH CARE LTD,"2,692.86",19/03/2020
Delivery Units,Adults and Health,Other Agencies - Third Party P,90240496,WESTMINSTER HEALTH CARE LTD,"2,508.08",17/03/2020
Delivery Units,Adults and Health,Other Agencies - Third Party P,90240500,WESTMINSTER HEALTH CARE LTD,"2,508.08",17/03/2020
Delivery Units,Adults and Health,Other Agencies - Third Party P,90240502,WESTMINSTER HEALTH CARE LTD,"5,023.95",17/03/2020
Delivery Units,Adults and Health,Other Agencies - Third Party P,90240503,WESTMINSTER HEALTH CARE LTD,"2,878.57",17/03/2020
Delivery Units,Adults and Health,Other Agencies - Third Party P,90241907,METHODIST HOMES FOR THE AGED,"2,400.00",18/03/2020
Delivery Units,Adults and Health,Other Agencies - Third Party P,90240585,HENRY NIHILL HOUSE,"2,265.36",17/03/2020
Delivery Units,Adults and Health,Other Agencies - Third Party P,90240608,HENRY NIHILL HOUSE,"2,265.36",17/03/2020
Delivery Units,Adults and Health,Other Agencies - Third Party P,90240609,HENRY NIHILL HOUSE,"2,265.36",17/03/2020
Delivery Units,Adults and Health,Other Agencies - Third Party P,90240611,HENRY NIHILL HOUSE,-970.87,17/03/2020
Delivery Units,Adults and Health,Other Agencies - Third Party P,90240625,HENRY NIHILL HOUSE,"2,265.36",17/03/2020
Delivery Units,Adults and Health,Other Agencies - Third Party P,90240637,HENRY NIHILL HOUSE,"2,265.36",17/03/2020
Delivery Units,Adults and Health,Other Agencies - Third Party P,90240640,HENRY NIHILL HOUSE,"3,000.00",17/03/2020
Delivery Units,Adults and Health,Other Agencies - Third Party P,90240704,HENRY NIHILL HOUSE,0.12,17/03/2020
Delivery Units,Adults and Health,Other Agencies - Third Party P,90244191,HENRY NIHILL HOUSE,"2,265.36",24/03/2020
Delivery Units,Adults and Health,Other Agencies - Third Party P,90244192,HENRY NIHILL HOUSE,"2,265.36",24/03/2020
Delivery Units,Adults and Health,Other Agencies - Third Party P,90244216,HENRY NIHILL HOUSE,"2,265.36",24/03/2020
Delivery Units,Adults and Health,Other Agencies - Third Party P,90244246,HENRY NIHILL HOUSE,"2,265.38",24/03/2020
Delivery Units,Adults and Health,Other Agencies - Third Party P,90244259,HENRY NIHILL HOUSE,"2,265.36",24/03/2020
Delivery Units,Adults and Health,Other Agencies - Third Party P,90244271,HENRY NIHILL HOUSE,"2,265.36",24/03/2020
Delivery Units,Adults and Health,Other Agencies - Third Party P,90244274,HENRY NIHILL HOUSE,"3,000.00",24/03/2020
Delivery Units,Adults and Health,Other Agencies - Third Party P,90241467,THE LEONARD CHESHIRE FOUNDATION,"6,634.00",17/03/2020
Delivery Units,Adults and Health,Other Agencies - Third Party P,90236584,LIFESTYLE CARE PLC,"2,671.94",04/03/2020
Delivery Units,Adults and Health,Other Agencies - Third Party P,90242737,CARETECH COMMUNITY SERVICES LTD,"4,654.58",20/03/2020
Delivery Units,Adults and Health,Other Agencies - Third Party P,90242740,CARETECH COMMUNITY SERVICES LTD,"4,975.59",20/03/2020
Delivery Units,Adults and Health,Other Agencies - Third Party P,90242002,SONESTA NURSING HOME LTD.,"2,399.58",18/03/2020
Delivery Units,Adults and Health,Other Agencies - Third Party P,90242005,SONESTA NURSING HOME LTD.,"2,397.72",18/03/2020
Delivery Units,Adults and Health,Other Agencies - Third Party P,90242007,SONESTA NURSING HOME LTD.,"2,508.08",18/03/2020
Delivery Units,Adults and Health,Other Agencies - Third Party P,90242008,SONESTA NURSING HOME LTD.,"2,878.57",18/03/2020
Delivery Units,Adults and Health,Other Agencies - Third Party P,90241468,MEERA NURSING HOME LIMITED,"2,900.00",17/03/2020
Delivery Units,Adults and Health,Other Agencies - Third Party P,90241991,MEERA NURSING HOME LIMITED,"3,100.00",18/03/2020
Delivery Units,Adults and Health,Other Agencies - Third Party P,90242242,MEERA NURSING HOME LIMITED,"3,506.72",19/03/2020
Delivery Units,Adults and Health,Other Agencies - Third Party P,90240504,NEWCENTURY CARE LTD,"3,400.00",17/03/2020
Delivery Units,Adults and Health,Other Agencies - Third Party P,90240505,NEWCENTURY CARE LTD,"3,494.12",17/03/2020
Delivery Units,Adults and Health,Other Agencies - Third Party P,90240506,NEWCENTURY CARE LTD,"4,028.48",17/03/2020
Delivery Units,Adults and Health,Other Agencies - Third Party P,90240507,NEWCENTURY CARE LTD,"3,699.64",17/03/2020
Delivery Units,Adults and Health,Other Agencies - Third Party P,90240508,NEWCENTURY CARE LTD,"3,232.00",17/03/2020
Delivery Units,Adults and Health,Other Agencies - Third Party P,90240509,NEWCENTURY CARE LTD,"3,400.00",17/03/2020
Delivery Units,Adults and Health,Other Agencies - Third Party P,90240510,NEWCENTURY CARE LTD,"3,600.00",17/03/2020
Delivery Units,Adults and Health,Other Agencies - Third Party P,90240314,BUPA CARE HOMES,"2,713.57",12/03/2020
Delivery Units,Adults and Health,Other Agencies - Third Party P,90240315,BUPA CARE HOMES,"2,713.57",12/03/2020
Delivery Units,Adults and Health,Other Agencies - Third Party P,90240316,BUPA CARE HOMES,"2,713.57",12/03/2020
Delivery Units,Adults and Health,Other Agencies - Third Party P,90240317,BUPA CARE HOMES,"2,713.57",12/03/2020
Delivery Units,Adults and Health,Other Agencies - Third Party P,90240318,BUPA CARE HOMES,"2,713.57",12/03/2020
Delivery Units,Adults and Health,Other Agencies - Third Party P,90240319,BUPA CARE HOMES,"2,900.71",12/03/2020
Delivery Units,Adults and Health,Other Agencies - Third Party P,90240320,BUPA CARE HOMES,"2,900.72",12/03/2020
Delivery Units,Adults and Health,Other Agencies - Third Party P,90240321,BUPA CARE HOMES,"2,900.72",12/03/2020
Delivery Units,Adults and Health,Other Agencies - Third Party P,90240322,BUPA CARE HOMES,"2,900.72",12/03/2020
Delivery Units,Adults and Health,Other Agencies - Third Party P,90240323,BUPA CARE HOMES,"2,900.73",12/03/2020
Delivery Units,Adults and Health,Other Agencies - Third Party P,90240324,BUPA CARE HOMES,"2,900.72",12/03/2020
Delivery Units,Adults and Health,Other Agencies - Third Party P,90240326,BUPA CARE HOMES,"2,900.71",12/03/2020
Delivery Units,Adults and Health,Other Agencies - Third Party P,90240327,BUPA CARE HOMES,"2,339.30",12/03/2020
Delivery Units,Adults and Health,Other Agencies - Third Party P,90240328,BUPA CARE HOMES,733.19,12/03/2020
Delivery Units,Adults and Health,Other Agencies - Third Party P,90241450,BUPA CARE HOMES,"-1,403.57",18/03/2020
Delivery Units,Adults and Health,Other Agencies - Third Party P,90240155,BUPA CARE HOMES,"2,568.57",12/03/2020
Delivery Units,Adults and Health,Other Agencies - Third Party P,90240157,BUPA CARE HOMES,"2,568.57",12/03/2020
Delivery Units,Adults and Health,Other Agencies - Third Party P,90240158,BUPA CARE HOMES,"2,568.50",12/03/2020
Delivery Units,Adults and Health,Other Agencies - Third Party P,90240159,BUPA CARE HOMES,"2,568.57",12/03/2020
Delivery Units,Adults and Health,Other Agencies - Third Party P,90240160,BUPA CARE HOMES,"2,568.57",12/03/2020
Delivery Units,Adults and Health,Other Agencies - Third Party P,90240161,BUPA CARE HOMES,"2,568.54",12/03/2020
Delivery Units,Adults and Health,Other Agencies - Third Party P,90240162,BUPA CARE HOMES,"2,568.57",12/03/2020
Delivery Units,Adults and Health,Other Agencies - Third Party P,90240163,BUPA CARE HOMES,"2,568.57",12/03/2020
Delivery Units,Adults and Health,Other Agencies - Third Party P,90240164,BUPA CARE HOMES,"2,568.57",12/03/2020
Delivery Units,Adults and Health,Other Agencies - Third Party P,90240165,BUPA CARE HOMES,"2,745.72",12/03/2020
Delivery Units,Adults and Health,Other Agencies - Third Party P,90240167,BUPA CARE HOMES,"2,745.72",12/03/2020
Delivery Units,Adults and Health,Other Agencies - Third Party P,90240168,BUPA CARE HOMES,"2,745.72",12/03/2020
Delivery Units,Adults and Health,Other Agencies - Third Party P,90240169,BUPA CARE HOMES,"2,745.72",12/03/2020
Delivery Units,Adults and Health,Other Agencies - Third Party P,90240170,BUPA CARE HOMES,"2,745.72",12/03/2020
Delivery Units,Adults and Health,Other Agencies - Third Party P,90240171,BUPA CARE HOMES,"2,745.72",12/03/2020
Delivery Units,Adults and Health,Other Agencies - Third Party P,90240172,BUPA CARE HOMES,"2,745.72",12/03/2020
Delivery Units,Adults and Health,Other Agencies - Third Party P,90240173,BUPA CARE HOMES,"2,745.72",12/03/2020
Delivery Units,Adults and Health,Other Agencies - Third Party P,90240174,BUPA CARE HOMES,620.00,12/03/2020
Delivery Units,Adults and Health,Other Agencies - Third Party P,90240175,BUPA CARE HOMES,"2,125.71",12/03/2020
Delivery Units,Adults and Health,Other Agencies - Third Party P,90240176,BUPA CARE HOMES,"2,745.72",12/03/2020
Delivery Units,Adults and Health,Other Agencies - Third Party P,90240178,BUPA CARE HOMES,"2,745.72",12/03/2020
Delivery Units,Adults and Health,Other Agencies - Third Party P,90240179,BUPA CARE HOMES,"2,745.73",12/03/2020
Delivery Units,Adults and Health,Other Agencies - Third Party P,90240180,BUPA CARE HOMES,"2,745.72",12/03/2020
Delivery Units,Adults and Health,Other Agencies - Third Party P,90240181,BUPA CARE HOMES,"2,745.72",12/03/2020
Delivery Units,Adults and Health,Other Agencies - Third Party P,90240182,BUPA CARE HOMES,"2,745.72",12/03/2020
Delivery Units,Adults and Health,Other Agencies - Third Party P,90240183,BUPA CARE HOMES,"2,745.72",12/03/2020
Delivery Units,Adults and Health,Other Agencies - Third Party P,90240184,BUPA CARE HOMES,"2,745.72",12/03/2020
Delivery Units,Adults and Health,Other Agencies - Third Party P,90240185,BUPA CARE HOMES,"2,745.72",12/03/2020
Delivery Units,Adults and Health,Other Agencies - Third Party P,90240225,BUPA CARE HOMES,"3,033.61",12/03/2020
Delivery Units,Adults and Health,Other Agencies - Third Party P,90242016,ASPEN VILLAGES LTD,"2,657.14",18/03/2020
Delivery Units,Adults and Health,Other Agencies - Third Party P,90236593,FOUR SEASONS HEALTH CARE,"1,097.14",02/03/2020
Delivery Units,Adults and Health,Other Agencies - Third Party P,90236594,FOUR SEASONS HEALTH CARE,"2,560.00",02/03/2020
Delivery Units,Adults and Health,Other Agencies - Third Party P,90236595,FOUR SEASONS HEALTH CARE,"2,560.00",02/03/2020
Delivery Units,Adults and Health,Other Agencies - Third Party P,90236596,FOUR SEASONS HEALTH CARE,"2,560.00",02/03/2020
Delivery Units,Adults and Health,Other Agencies - Third Party P,90236597,FOUR SEASONS HEALTH CARE,"2,560.00",02/03/2020
Delivery Units,Adults and Health,Other Agencies - Third Party P,90235704,SANCTUARY CARE LTD,"2,377.13",02/03/2020
Delivery Units,Adults and Health,Other Agencies - Third Party P,90242000,SANCTUARY CARE LTD,"2,541.07",18/03/2020
Delivery Units,Adults and Health,Other Agencies - Third Party P,90240474,BUPA CARE HOMES,"2,582.12",17/03/2020
Delivery Units,Adults and Health,Other Agencies - Third Party P,90240477,BUPA CARE HOMES,"3,360.06",17/03/2020
Delivery Units,Adults and Health,Other Agencies - Third Party P,90240479,BUPA CARE HOMES,"2,425.60",17/03/2020
Delivery Units,Adults and Health,Other Agencies - Third Party P,90240480,BUPA CARE HOMES,"3,416.37",17/03/2020
Delivery Units,Adults and Health,Other Agencies - Third Party P,90240244,SAGE NURSING HOME,"3,935.71",12/03/2020
Delivery Units,Adults and Health,Other Agencies - Third Party P,90240247,SAGE NURSING HOME,"2,608.43",12/03/2020
Delivery Units,Adults and Health,Other Agencies - Third Party P,90240248,SAGE NURSING HOME,"2,355.17",12/03/2020
Delivery Units,Adults and Health,Other Agencies - Third Party P,90240251,SAGE NURSING HOME,"3,935.71",12/03/2020
Delivery Units,Adults and Health,Other Agencies - Third Party P,90241993,M D HOMES,"3,072.32",18/03/2020
Delivery Units,Adults and Health,Other Agencies - Third Party P,90241957,ST VINCENTS NURSING HOME,"1,783.16",18/03/2020
Delivery Units,Adults and Health,Other Agencies - Third Party P,90241959,ST VINCENTS NURSING HOME,"6,642.86",18/03/2020
Delivery Units,Adults and Health,Other Agencies - Third Party P,90243032,ST VINCENTS NURSING HOME,"1,668.12",23/03/2020
Delivery Units,Adults and Health,Other Agencies - Third Party P,90243034,ST VINCENTS NURSING HOME,"6,214.29",23/03/2020
Delivery Units,Adults and Health,Other Agencies - Third Party P,90236570,APPLE TREE COURT CARE HOME,"2,582.12",05/03/2020
Delivery Units,Adults and Health,Other Agencies - Third Party P,90236572,APPLE TREE COURT CARE HOME,"4,557.14",05/03/2020
Delivery Units,Adults and Health,Other Agencies - Third Party P,90236576,APPLE TREE COURT CARE HOME,"3,898.43",05/03/2020
Delivery Units,Adults and Health,Other Agencies - Third Party P,90236577,APPLE TREE COURT CARE HOME,"3,664.11",05/03/2020
Delivery Units,Adults and Health,Other Agencies - Third Party P,90236578,APPLE TREE COURT CARE HOME,"3,097.76",02/03/2020
Delivery Units,Adults and Health,Other Agencies - Third Party P,90236581,APPLE TREE COURT CARE HOME,"3,429.66",04/03/2020
Delivery Units,Adults and Health,Other Agencies - Third Party P,90236582,APPLE TREE COURT CARE HOME,"3,728.57",04/03/2020
Delivery Units,Adults and Health,Other Agencies - Third Party P,90236583,APPLE TREE COURT CARE HOME,"3,935.71",04/03/2020
Delivery Units,Adults and Health,Other Agencies - Third Party P,90238417,AUTUMN GARDENS,"3,440.00",09/03/2020
Delivery Units,Adults and Health,Other Agencies - Third Party P,90238418,AUTUMN GARDENS,"4,800.00",09/03/2020
Delivery Units,Adults and Health,Other Agencies - Third Party P,90238421,AUTUMN GARDENS,"4,800.00",09/03/2020
Delivery Units,Adults and Health,Other Agencies - Third Party P,90240436,SUNRISE SENIOR LIVING,"5,970.52",17/03/2020
Delivery Units,Adults and Health,Other Agencies - Third Party P,90241470,ABBEY RAVENSCROFT PARK NURSING HOME,"3,521.43",17/03/2020
Delivery Units,Adults and Health,Other Agencies - Third Party P,90241471,ABBEY RAVENSCROFT PARK NURSING HOME,"3,521.43",17/03/2020
Delivery Units,Adults and Health,Other Agencies - Third Party P,90241881,ABBEY RAVENSCROFT PARK NURSING HOME,"3,764.29",18/03/2020
Delivery Units,Adults and Health,Other Agencies - Third Party P,90241882,ABBEY RAVENSCROFT PARK NURSING HOME,"3,764.29",18/03/2020
Delivery Units,Adults and Health,Other Agencies - Third Party P,90241883,ABBEY RAVENSCROFT PARK NURSING HOME,"3,764.29",18/03/2020
Delivery Units,Adults and Health,Other Agencies - Third Party P,90241884,ABBEY RAVENSCROFT PARK NURSING HOME,"3,764.29",18/03/2020
Delivery Units,Adults and Health,Other Agencies - Third Party P,90241886,ABBEY RAVENSCROFT PARK NURSING HOME,"3,321.43",18/03/2020
Delivery Units,Adults and Health,Other Agencies - Third Party P,90241890,ABBEY RAVENSCROFT PARK NURSING HOME,"2,788.32",18/03/2020
Delivery Units,Adults and Health,Other Agencies - Third Party P,90241891,ABBEY RAVENSCROFT PARK NURSING HOME,"4,995.43",18/03/2020
Delivery Units,Adults and Health,Other Agencies - Third Party P,90241892,ABBEY RAVENSCROFT PARK NURSING HOME,"3,321.43",18/03/2020
Delivery Units,Adults and Health,Other Agencies - Third Party P,90241893,ABBEY RAVENSCROFT PARK NURSING HOME,"3,321.43",18/03/2020
Delivery Units,Adults and Health,Other Agencies - Third Party P,90241894,ABBEY RAVENSCROFT PARK NURSING HOME,"2,788.32",18/03/2020
Delivery Units,Adults and Health,Other Agencies - Third Party P,90241896,ABBEY RAVENSCROFT PARK NURSING HOME,"3,321.43",18/03/2020
Delivery Units,Adults and Health,Other Agencies - Third Party P,90241897,ABBEY RAVENSCROFT PARK NURSING HOME,"2,788.32",18/03/2020
Delivery Units,Adults and Health,Other Agencies - Third Party P,90241899,ABBEY RAVENSCROFT PARK NURSING HOME,"2,788.32",18/03/2020
Delivery Units,Adults and Health,Other Agencies - Third Party P,90241902,ABBEY RAVENSCROFT PARK NURSING HOME,"3,321.43",18/03/2020
Delivery Units,Adults and Health,Other Agencies - Third Party P,90241903,ABBEY RAVENSCROFT PARK NURSING HOME,"3,321.43",18/03/2020
Delivery Units,Adults and Health,Other Agencies - Third Party P,90241915,CARLTON COURT (TLC GROUP),"3,736.61",18/03/2020
Delivery Units,Adults and Health,Other Agencies - Third Party P,90241923,CARLTON COURT (TLC GROUP),"2,448.78",18/03/2020
Delivery Units,Adults and Health,Other Agencies - Third Party P,90241924,CARLTON COURT (TLC GROUP),"3,764.29",18/03/2020
Delivery Units,Adults and Health,Other Agencies - Third Party P,90241925,CARLTON COURT (TLC GROUP),"4,428.57",18/03/2020
Delivery Units,Adults and Health,Other Agencies - Third Party P,90242464,CARLTON COURT (TLC GROUP),"5,200.00",19/03/2020
Delivery Units,Adults and Health,Other Agencies - Third Party P,90236550,HUSKARDS NEW CARE LTD,"1,192.60",02/03/2020
Delivery Units,Adults and Health,Other Agencies - Third Party P,90241938,HUSKARDS NEW CARE LTD,"2,397.72",18/03/2020
Delivery Units,Adults and Health,Other Agencies - Third Party P,90238416,ASHTON LODGE CARE CENTRE,499.72,09/03/2020
Delivery Units,Adults and Health,Other Agencies - Third Party P,90240149,ASHTON LODGE CARE CENTRE,"3,619.34",12/03/2020
Delivery Units,Adults and Health,Other Agencies - Third Party P,90240150,ASHTON LODGE CARE CENTRE,"3,502.59",12/03/2020
Delivery Units,Adults and Health,Other Agencies - Third Party P,90240151,ASHTON LODGE CARE CENTRE,"3,619.34",12/03/2020
Delivery Units,Adults and Health,Other Agencies - Third Party P,90240152,ASHTON LODGE CARE CENTRE,"3,502.59",12/03/2020
Delivery Units,Adults and Health,Other Agencies - Third Party P,90240153,ASHTON LODGE CARE CENTRE,"3,619.34",12/03/2020
Delivery Units,Adults and Health,Other Agencies - Third Party P,90240154,ASHTON LODGE CARE CENTRE,"3,619.34",12/03/2020
Delivery Units,Adults and Health,Other Agencies - Third Party P,90240285,ASHTON LODGE CARE CENTRE,"3,456.97",12/03/2020
Delivery Units,Adults and Health,Other Agencies - Third Party P,90242492,ASHTON LODGE CARE CENTRE,"3,391.67",19/03/2020
Delivery Units,Adults and Health,Other Agencies - Third Party P,90242493,ASHTON LODGE CARE CENTRE,"4,212.72",19/03/2020
Delivery Units,Adults and Health,Other Agencies - Third Party P,90242494,ASHTON LODGE CARE CENTRE,"3,541.79",19/03/2020
Delivery Units,Adults and Health,Other Agencies - Third Party P,90242496,ASHTON LODGE CARE CENTRE,"3,414.69",19/03/2020
Delivery Units,Adults and Health,Other Agencies - Third Party P,90242497,ASHTON LODGE CARE CENTRE,"3,846.97",19/03/2020
Delivery Units,Adults and Health,Other Agencies - Third Party P,90242498,ASHTON LODGE CARE CENTRE,"3,159.70",19/03/2020
Delivery Units,Adults and Health,Other Agencies - Third Party P,90242500,ASHTON LODGE CARE CENTRE,"4,138.23",19/03/2020
Delivery Units,Adults and Health,Other Agencies - Third Party P,90242501,ASHTON LODGE CARE CENTRE,"3,158.59",19/03/2020
Delivery Units,Adults and Health,Other Agencies - Third Party P,90242502,ASHTON LODGE CARE CENTRE,"3,779.34",19/03/2020
Delivery Units,Adults and Health,Other Agencies - Third Party P,90242505,ASHTON LODGE CARE CENTRE,"3,018.60",19/03/2020
Delivery Units,Adults and Health,Other Agencies - Third Party P,90242506,ASHTON LODGE CARE CENTRE,"3,619.34",19/03/2020
Delivery Units,Adults and Health,Other Agencies - Third Party P,90242507,ASHTON LODGE CARE CENTRE,"2,923.96",19/03/2020
Delivery Units,Adults and Health,Other Agencies - Third Party P,90242508,ASHTON LODGE CARE CENTRE,"5,245.38",19/03/2020
Delivery Units,Adults and Health,Other Agencies - Third Party P,90242509,ASHTON LODGE CARE CENTRE,"3,541.79",19/03/2020
Delivery Units,Adults and Health,Other Agencies - Third Party P,90242510,ASHTON LODGE CARE CENTRE,"3,695.38",19/03/2020
Delivery Units,Adults and Health,Other Agencies - Third Party P,90242511,ASHTON LODGE CARE CENTRE,"4,436.37",19/03/2020
Delivery Units,Adults and Health,Other Agencies - Third Party P,90242512,ASHTON LODGE CARE CENTRE,"3,164.04",19/03/2020
Delivery Units,Adults and Health,Other Agencies - Third Party P,90242513,ASHTON LODGE CARE CENTRE,"4,359.66",19/03/2020
Delivery Units,Adults and Health,Other Agencies - Third Party P,90242514,ASHTON LODGE CARE CENTRE,"3,605.17",19/03/2020
Delivery Units,Adults and Health,Other Agencies - Third Party P,90242515,ASHTON LODGE CARE CENTRE,"2,923.96",19/03/2020
Delivery Units,Adults and Health,Other Agencies - Third Party P,90242516,ASHTON LODGE CARE CENTRE,"3,695.38",19/03/2020
Delivery Units,Adults and Health,Other Agencies - Third Party P,90242518,ASHTON LODGE CARE CENTRE,"3,642.32",19/03/2020
Delivery Units,Adults and Health,Other Agencies - Third Party P,90242519,ASHTON LODGE CARE CENTRE,"2,640.05",19/03/2020
Delivery Units,Adults and Health,Other Agencies - Third Party P,90240482,WESTGATE HOUSE CARE CENTRE,"3,485.39",17/03/2020
Delivery Units,Adults and Health,Other Agencies - Third Party P,90242461,WESTGATE HOUSE CARE CENTRE,"3,725.76",19/03/2020
Delivery Units,Adults and Health,Other Agencies - Third Party P,90235696,WILSMERE HOUSE CARE CENTRE,"4,658.10",02/03/2020
Delivery Units,Adults and Health,Other Agencies - Third Party P,90241983,WILSMERE HOUSE CARE CENTRE,"4,979.35",18/03/2020
Delivery Units,Adults and Health,Other Agencies - Third Party P,90240226,NHS BARNET CCG,"10,520.07",12/03/2020
Delivery Units,Adults and Health,Other Agencies - Third Party P,90240256,Victoria Care Centre,"2,768.05",12/03/2020
Delivery Units,Adults and Health,Other Agencies - Third Party P,90241926,Karuna Manor,"4,392.43",18/03/2020
Delivery Units,Adults and Health,Other Agencies - Third Party P,90241928,Karuna Manor,"2,373.71",18/03/2020
Delivery Units,Adults and Health,Other Agencies - Third Party P,90241929,Karuna Manor,"4,207.14",18/03/2020
Delivery Units,Adults and Health,Other Agencies - Third Party P,90240235,St Anns Home-Little Sisters of the Poor,"2,265.44",12/03/2020
Delivery Units,Adults and Health,Other Agencies - Third Party P,90240236,St Anns Home-Little Sisters of the Poor,"2,421.68",12/03/2020
Delivery Units,Adults and Health,Other Agencies - Third Party P,90241877,Pinelodge Care Home,"2,655.55",18/03/2020
Delivery Units,Adults and Health,Other Agencies - Third Party P,90242726,Pinelodge Care Home,"2,484.22",20/03/2020
Delivery Units,Adults and Health,Other Agencies - Third Party P,90241908,Aarandale Manor Care Home,"2,570.56",18/03/2020
Delivery Units,Adults and Health,Other Agencies - Third Party P,90241961,Aarandale Manor Care Home,"4,428.57",18/03/2020
Delivery Units,Adults and Health,Other Agencies - Third Party P,90241962,Aarandale Manor Care Home,"2,129.79",18/03/2020
Delivery Units,Adults and Health,Other Agencies - Third Party P,90240715,Queens Court Nursing Home,"4,176.00",17/03/2020
Delivery Units,Adults and Health,Other Agencies - Third Party P,90240716,Queens Court Nursing Home,894.86,17/03/2020
Delivery Units,Adults and Health,Other Agencies - Third Party P,90239842,Contemplation Homes,"3,409.78",11/03/2020
Delivery Units,Adults and Health,Other Agencies - Third Party P,90238427,Lansglade Homes Limited,"2,547.65",09/03/2020
Delivery Units,Adults and Health,Other Agencies - Third Party P,90241860,Lansglade Homes Limited,"2,723.35",18/03/2020
Delivery Units,Adults and Health,Other Agencies - Third Party P,90240209,HC One Beamish Ltd,"2,539.54",12/03/2020
Delivery Units,Adults and Health,Other Agencies - Third Party P,90240210,HC One Beamish Ltd,"2,624.19",12/03/2020
Delivery Units,Adults and Health,Other Agencies - Third Party P,90240211,HC One Beamish Ltd,"2,624.19",12/03/2020
Delivery Units,Adults and Health,Other Agencies - Third Party P,90240212,HC One Beamish Ltd,"2,454.89",12/03/2020
Delivery Units,Adults and Health,Other Agencies - Third Party P,90241444,HC One Beamish Ltd,"2,624.19",17/03/2020
Delivery Units,Adults and Health,Other Agencies - Third Party P,90241447,HC One Beamish Ltd,"1,608.38",17/03/2020
Delivery Units,Adults and Health,Other Agencies - Third Party P,90240292,DR FRENCH MEMORIAL HOME LTD,"2,601.88",12/03/2020
Delivery Units,Adults and Health,Other Agencies - Third Party P,90240293,DR FRENCH MEMORIAL HOME LTD,"3,542.86",12/03/2020
Delivery Units,Adults and Health,Other Agencies - Third Party P,90240294,DR FRENCH MEMORIAL HOME LTD,"3,542.86",12/03/2020
Delivery Units,Adults and Health,Other Agencies - Third Party P,90240295,DR FRENCH MEMORIAL HOME LTD,"3,764.29",12/03/2020
Delivery Units,Adults and Health,Other Agencies - Third Party P,90240296,DR FRENCH MEMORIAL HOME LTD,"3,764.29",12/03/2020
Delivery Units,Adults and Health,Other Agencies - Third Party P,90240297,DR FRENCH MEMORIAL HOME LTD,"3,764.29",12/03/2020
Delivery Units,Adults and Health,Other Agencies - Third Party P,90240298,DR FRENCH MEMORIAL HOME LTD,"3,764.29",12/03/2020
Delivery Units,Adults and Health,Other Agencies - Third Party P,90240299,DR FRENCH MEMORIAL HOME LTD,"3,764.29",12/03/2020
Delivery Units,Adults and Health,Other Agencies - Third Party P,90240300,DR FRENCH MEMORIAL HOME LTD,"3,764.29",12/03/2020
Delivery Units,Adults and Health,Other Agencies - Third Party P,90240301,DR FRENCH MEMORIAL HOME LTD,"3,764.29",12/03/2020
Delivery Units,Adults and Health,Other Agencies - Third Party P,90240302,DR FRENCH MEMORIAL HOME LTD,"3,764.29",12/03/2020
Delivery Units,Adults and Health,Other Agencies - Third Party P,90240303,DR FRENCH MEMORIAL HOME LTD,"2,434.01",12/03/2020
Delivery Units,Adults and Health,Other Agencies - Third Party P,90240304,DR FRENCH MEMORIAL HOME LTD,"3,314.29",12/03/2020
Delivery Units,Adults and Health,Other Agencies - Third Party P,90240305,DR FRENCH MEMORIAL HOME LTD,"3,314.29",12/03/2020
Delivery Units,Adults and Health,Other Agencies - Third Party P,90240306,DR FRENCH MEMORIAL HOME LTD,"3,521.43",12/03/2020
Delivery Units,Adults and Health,Other Agencies - Third Party P,90240307,DR FRENCH MEMORIAL HOME LTD,"3,521.43",12/03/2020
Delivery Units,Adults and Health,Other Agencies - Third Party P,90240308,DR FRENCH MEMORIAL HOME LTD,"3,521.43",12/03/2020
Delivery Units,Adults and Health,Other Agencies - Third Party P,90240309,DR FRENCH MEMORIAL HOME LTD,"3,521.43",12/03/2020
Delivery Units,Adults and Health,Other Agencies - Third Party P,90240310,DR FRENCH MEMORIAL HOME LTD,"3,521.43",12/03/2020
Delivery Units,Adults and Health,Other Agencies - Third Party P,90240311,DR FRENCH MEMORIAL HOME LTD,"3,521.43",12/03/2020
Delivery Units,Adults and Health,Other Agencies - Third Party P,90240312,DR FRENCH MEMORIAL HOME LTD,"3,521.43",12/03/2020
Delivery Units,Adults and Health,Other Agencies - Third Party P,90240313,DR FRENCH MEMORIAL HOME LTD,"3,764.29",12/03/2020
Delivery Units,Adults and Health,Other Agencies - Third Party P,90242468,DR FRENCH MEMORIAL HOME LTD,"2,601.88",19/03/2020
Delivery Units,Adults and Health,Other Agencies - Third Party P,90242469,DR FRENCH MEMORIAL HOME LTD,"3,542.86",19/03/2020
Delivery Units,Adults and Health,Other Agencies - Third Party P,90242470,DR FRENCH MEMORIAL HOME LTD,"3,542.86",19/03/2020
Delivery Units,Adults and Health,Other Agencies - Third Party P,90242471,DR FRENCH MEMORIAL HOME LTD,"3,764.29",19/03/2020
Delivery Units,Adults and Health,Other Agencies - Third Party P,90242472,DR FRENCH MEMORIAL HOME LTD,"3,764.29",19/03/2020
Delivery Units,Adults and Health,Other Agencies - Third Party P,90242473,DR FRENCH MEMORIAL HOME LTD,"3,764.29",19/03/2020
Delivery Units,Adults and Health,Other Agencies - Third Party P,90242474,DR FRENCH MEMORIAL HOME LTD,"3,764.29",19/03/2020
Delivery Units,Adults and Health,Other Agencies - Third Party P,90242475,DR FRENCH MEMORIAL HOME LTD,"3,764.29",19/03/2020
Delivery Units,Adults and Health,Other Agencies - Third Party P,90242476,DR FRENCH MEMORIAL HOME LTD,"3,764.29",19/03/2020
Delivery Units,Adults and Health,Other Agencies - Third Party P,90242477,DR FRENCH MEMORIAL HOME LTD,"3,764.29",19/03/2020
Delivery Units,Adults and Health,Other Agencies - Third Party P,90236555,ROSEACRES CARE HOME LIMITED,"3,107.14",02/03/2020
Delivery Units,Adults and Health,Other Agencies - Third Party P,90236556,ROSEACRES CARE HOME LIMITED,"2,386.29",02/03/2020
Delivery Units,Adults and Health,Other Agencies - Third Party P,90236557,ROSEACRES CARE HOME LIMITED,"2,386.29",02/03/2020
Delivery Units,Adults and Health,Other Agencies - Third Party P,90236559,ROSEACRES CARE HOME LIMITED,"3,521.43",02/03/2020
Delivery Units,Adults and Health,Other Agencies - Third Party P,90236560,ROSEACRES CARE HOME LIMITED,"2,386.29",02/03/2020
Delivery Units,Adults and Health,Other Agencies - Third Party P,90236561,ROSEACRES CARE HOME LIMITED,"2,386.29",02/03/2020
Delivery Units,Adults and Health,Other Agencies - Third Party P,90236563,ROSEACRES CARE HOME LIMITED,"2,795.72",02/03/2020
Delivery Units,Adults and Health,Other Agencies - Third Party P,90236564,ROSEACRES CARE HOME LIMITED,"3,107.14",02/03/2020
Delivery Units,Adults and Health,Other Agencies - Third Party P,90236565,ROSEACRES CARE HOME LIMITED,"3,107.14",02/03/2020
Delivery Units,Adults and Health,Other Agencies - Third Party P,90236566,ROSEACRES CARE HOME LIMITED,"3,521.43",02/03/2020
Delivery Units,Adults and Health,Other Agencies - Third Party P,90236567,ROSEACRES CARE HOME LIMITED,"2,386.29",02/03/2020
Delivery Units,Adults and Health,Other Agencies - Third Party P,90236568,ROSEACRES CARE HOME LIMITED,"3,107.14",02/03/2020
Delivery Units,Adults and Health,Other Agencies - Third Party P,90236592,ROSEACRES CARE HOME LIMITED,771.23,02/03/2020
Delivery Units,Adults and Health,Other Agencies - Third Party P,90242025,ROSEACRES CARE HOME LIMITED,"3,321.43",18/03/2020
Delivery Units,Adults and Health,Other Agencies - Third Party P,90242026,ROSEACRES CARE HOME LIMITED,"2,550.86",18/03/2020
Delivery Units,Adults and Health,Other Agencies - Third Party P,90242027,ROSEACRES CARE HOME LIMITED,"2,550.86",18/03/2020
Delivery Units,Adults and Health,Other Agencies - Third Party P,90242029,ROSEACRES CARE HOME LIMITED,"3,764.29",18/03/2020
Delivery Units,Adults and Health,Other Agencies - Third Party P,90242030,ROSEACRES CARE HOME LIMITED,"2,550.86",18/03/2020
Delivery Units,Adults and Health,Other Agencies - Third Party P,90242031,ROSEACRES CARE HOME LIMITED,"2,550.86",18/03/2020
Delivery Units,Adults and Health,Other Agencies - Third Party P,90242033,ROSEACRES CARE HOME LIMITED,"2,988.53",18/03/2020
Delivery Units,Adults and Health,Other Agencies - Third Party P,90242034,ROSEACRES CARE HOME LIMITED,"3,321.43",18/03/2020
Delivery Units,Adults and Health,Other Agencies - Third Party P,90242035,ROSEACRES CARE HOME LIMITED,"2,550.86",18/03/2020
Delivery Units,Adults and Health,Other Agencies - Third Party P,90242036,ROSEACRES CARE HOME LIMITED,"3,321.43",18/03/2020
Delivery Units,Adults and Health,Other Agencies - Third Party P,90242038,ROSEACRES CARE HOME LIMITED,"3,764.29",18/03/2020
Delivery Units,Adults and Health,Other Agencies - Third Party P,90241472,NIGHTINGALE HOUSE,"3,072.01",17/03/2020
Delivery Units,Adults and Health,Other Agencies - Third Party P,90235479,ELEANOR PALMER TRUST NO 2 A/C.,"-2,877.16",12/03/2020
Delivery Units,Adults and Health,Other Agencies - Third Party P,90240269,ELEANOR PALMER TRUST NO 2 A/C.,"1,285.71",12/03/2020
Delivery Units,Adults and Health,Other Agencies - Third Party P,90240270,ELEANOR PALMER TRUST NO 2 A/C.,964.29,12/03/2020
Delivery Units,Adults and Health,Other Agencies - Third Party P,90240271,ELEANOR PALMER TRUST NO 2 A/C.,"3,107.14",12/03/2020
Delivery Units,Adults and Health,Other Agencies - Third Party P,90240272,ELEANOR PALMER TRUST NO 2 A/C.,"3,321.43",12/03/2020
Delivery Units,Adults and Health,Other Agencies - Third Party P,90240273,ELEANOR PALMER TRUST NO 2 A/C.,"2,892.86",12/03/2020
Delivery Units,Adults and Health,Other Agencies - Third Party P,90240274,ELEANOR PALMER TRUST NO 2 A/C.,"3,321.43",12/03/2020
Delivery Units,Adults and Health,Other Agencies - Third Party P,90242198,ELEANOR PALMER TRUST NO 2 A/C.,"3,321.43",19/03/2020
Delivery Units,Adults and Health,Other Agencies - Third Party P,90242199,ELEANOR PALMER TRUST NO 2 A/C.,"3,321.43",19/03/2020
Delivery Units,Adults and Health,Other Agencies - Third Party P,90242200,ELEANOR PALMER TRUST NO 2 A/C.,"3,354.64",19/03/2020
Delivery Units,Adults and Health,Other Agencies - Third Party P,90242201,ELEANOR PALMER TRUST NO 2 A/C.,"3,354.64",19/03/2020
Delivery Units,Adults and Health,Other Agencies - Third Party P,90242202,ELEANOR PALMER TRUST NO 2 A/C.,"2,630.35",19/03/2020
Delivery Units,Adults and Health,Other Agencies - Third Party P,90242203,ELEANOR PALMER TRUST NO 2 A/C.,"2,630.35",19/03/2020
Delivery Units,Adults and Health,Other Agencies - Third Party P,90242204,ELEANOR PALMER TRUST NO 2 A/C.,"2,421.19",19/03/2020
Delivery Units,Adults and Health,Other Agencies - Third Party P,90242205,ELEANOR PALMER TRUST NO 2 A/C.,"3,321.43",19/03/2020
Delivery Units,Adults and Health,Other Agencies - Third Party P,90242206,ELEANOR PALMER TRUST NO 2 A/C.,"3,430.46",19/03/2020
Delivery Units,Adults and Health,Other Agencies - Third Party P,90242207,ELEANOR PALMER TRUST NO 2 A/C.,"3,321.43",19/03/2020
Delivery Units,Adults and Health,Other Agencies - Third Party P,90242208,ELEANOR PALMER TRUST NO 2 A/C.,"3,430.46",19/03/2020
Delivery Units,Adults and Health,Other Agencies - Third Party P,90242209,ELEANOR PALMER TRUST NO 2 A/C.,"2,421.19",19/03/2020
Delivery Units,Adults and Health,Other Agencies - Third Party P,90242210,ELEANOR PALMER TRUST NO 2 A/C.,"2,630.35",19/03/2020
Delivery Units,Adults and Health,Other Agencies - Third Party P,90242211,ELEANOR PALMER TRUST NO 2 A/C.,"3,354.64",19/03/2020
Delivery Units,Adults and Health,Other Agencies - Third Party P,90242212,ELEANOR PALMER TRUST NO 2 A/C.,"3,321.43",19/03/2020
Delivery Units,Adults and Health,Other Agencies - Third Party P,90242213,ELEANOR PALMER TRUST NO 2 A/C.,"3,430.46",19/03/2020
Delivery Units,Adults and Health,Other Agencies - Third Party P,90242785,ELM PARK LODGE,"6,275.83",26/03/2020
Delivery Units,Adults and Health,Other Agencies - Third Party P,90240447,TORRINGTON HOMES,"2,104.32",17/03/2020
Delivery Units,Adults and Health,Other Agencies - Third Party P,90240449,TORRINGTON HOMES,"3,728.57",17/03/2020
Delivery Units,Adults and Health,Other Agencies - Third Party P,90240450,TORRINGTON HOMES,"2,290.79",17/03/2020
Delivery Units,Adults and Health,Other Agencies - Third Party P,90241736,TORRINGTON HOMES,"3,764.29",18/03/2020
Delivery Units,Adults and Health,Other Agencies - Third Party P,90241738,TORRINGTON HOMES,"2,249.45",18/03/2020
Delivery Units,Adults and Health,Other Agencies - Third Party P,90241739,TORRINGTON HOMES,"3,985.71",18/03/2020
Delivery Units,Adults and Health,Other Agencies - Third Party P,90241740,TORRINGTON HOMES,"2,448.78",18/03/2020
Delivery Units,Adults and Health,Other Agencies - Third Party P,90238436,THE GRANGE,"2,600.00",09/03/2020
Delivery Units,Adults and Health,Other Agencies - Third Party P,90238438,THE GRANGE,"2,350.08",09/03/2020
Delivery Units,Adults and Health,Other Agencies - Third Party P,90241970,THE GRANGE,"2,600.00",18/03/2020
Delivery Units,Adults and Health,Other Agencies - Third Party P,90241972,THE GRANGE,"2,350.08",18/03/2020
Delivery Units,Adults and Health,Other Agencies - Third Party P,90240286,ELMHURST RESIDENTIAL HOME,"38,128.57",12/03/2020
Delivery Units,Adults and Health,Other Agencies - Third Party P,90236585,JEWISH CARE,701.82,02/03/2020
Delivery Units,Adults and Health,Other Agencies - Third Party P,90236586,JEWISH CARE,"1,206.64",02/03/2020
Delivery Units,Adults and Health,Other Agencies - Third Party P,90240572,JEWISH CARE,"10,293.18",17/03/2020
Delivery Units,Adults and Health,Other Agencies - Third Party P,90240577,JEWISH CARE,"2,484.56",17/03/2020
Delivery Units,Adults and Health,Other Agencies - Third Party P,90240580,JEWISH CARE,"2,296.24",17/03/2020
Delivery Units,Adults and Health,Other Agencies - Third Party P,90240582,JEWISH CARE,"2,296.24",17/03/2020
Delivery Units,Adults and Health,Other Agencies - Third Party P,90240583,JEWISH CARE,"2,479.68",17/03/2020
Delivery Units,Adults and Health,Other Agencies - Third Party P,90240586,JEWISH CARE,"2,482.36",17/03/2020
Delivery Units,Adults and Health,Other Agencies - Third Party P,90240587,JEWISH CARE,"2,482.36",17/03/2020
Delivery Units,Adults and Health,Other Agencies - Third Party P,90240588,JEWISH CARE,"2,479.68",17/03/2020
Delivery Units,Adults and Health,Other Agencies - Third Party P,90240589,JEWISH CARE,"2,296.24",17/03/2020
Delivery Units,Adults and Health,Other Agencies - Third Party P,90240596,JEWISH CARE,"2,480.92",17/03/2020
Delivery Units,Adults and Health,Other Agencies - Third Party P,90240598,JEWISH CARE,"2,296.24",17/03/2020
Delivery Units,Adults and Health,Other Agencies - Third Party P,90240601,JEWISH CARE,"2,482.36",17/03/2020
Delivery Units,Adults and Health,Other Agencies - Third Party P,90240607,JEWISH CARE,"2,484.56",17/03/2020
Delivery Units,Adults and Health,Other Agencies - Third Party P,90240612,JEWISH CARE,"2,484.56",17/03/2020
Delivery Units,Adults and Health,Other Agencies - Third Party P,90240613,JEWISH CARE,"2,484.56",17/03/2020
Delivery Units,Adults and Health,Other Agencies - Third Party P,90240614,JEWISH CARE,"2,296.24",17/03/2020
Delivery Units,Adults and Health,Other Agencies - Third Party P,90240616,JEWISH CARE,"2,296.24",17/03/2020
Delivery Units,Adults and Health,Other Agencies - Third Party P,90240617,JEWISH CARE,"2,296.24",17/03/2020
Delivery Units,Adults and Health,Other Agencies - Third Party P,90240618,JEWISH CARE,"2,480.92",17/03/2020
Delivery Units,Adults and Health,Other Agencies - Third Party P,90240619,JEWISH CARE,"2,484.56",17/03/2020
Delivery Units,Adults and Health,Other Agencies - Third Party P,90240624,JEWISH CARE,"2,296.24",17/03/2020
Delivery Units,Adults and Health,Other Agencies - Third Party P,90240632,JEWISH CARE,"2,296.24",17/03/2020
Delivery Units,Adults and Health,Other Agencies - Third Party P,90240633,JEWISH CARE,"2,296.24",17/03/2020
Delivery Units,Adults and Health,Other Agencies - Third Party P,90240638,JEWISH CARE,"2,296.24",17/03/2020
Delivery Units,Adults and Health,Other Agencies - Third Party P,90240643,JEWISH CARE,"2,479.68",17/03/2020
Delivery Units,Adults and Health,Other Agencies - Third Party P,90240644,JEWISH CARE,"2,480.92",17/03/2020
Delivery Units,Adults and Health,Other Agencies - Third Party P,90240645,JEWISH CARE,"2,480.92",17/03/2020
Delivery Units,Adults and Health,Other Agencies - Third Party P,90240646,JEWISH CARE,"2,479.68",17/03/2020
Delivery Units,Adults and Health,Other Agencies - Third Party P,90240647,JEWISH CARE,"4,265.48",17/03/2020
Delivery Units,Adults and Health,Other Agencies - Third Party P,90240649,JEWISH CARE,"2,280.32",17/03/2020
Delivery Units,Adults and Health,Other Agencies - Third Party P,90240650,JEWISH CARE,"2,296.24",17/03/2020
Delivery Units,Adults and Health,Other Agencies - Third Party P,90240652,JEWISH CARE,"2,156.80",17/03/2020
Delivery Units,Adults and Health,Other Agencies - Third Party P,90240657,JEWISH CARE,"2,480.92",17/03/2020
Delivery Units,Adults and Health,Other Agencies - Third Party P,90240658,JEWISH CARE,"2,482.36",17/03/2020
Delivery Units,Adults and Health,Other Agencies - Third Party P,90240659,JEWISH CARE,"2,296.24",17/03/2020
Delivery Units,Adults and Health,Other Agencies - Third Party P,90240665,JEWISH CARE,"2,482.36",17/03/2020
Delivery Units,Adults and Health,Other Agencies - Third Party P,90240666,JEWISH CARE,"2,479.68",17/03/2020
Delivery Units,Adults and Health,Other Agencies - Third Party P,90240668,JEWISH CARE,"2,480.92",17/03/2020
Delivery Units,Adults and Health,Other Agencies - Third Party P,90240670,JEWISH CARE,"2,479.68",17/03/2020
Delivery Units,Adults and Health,Other Agencies - Third Party P,90240672,JEWISH CARE,"2,649.36",17/03/2020
Delivery Units,Adults and Health,Other Agencies - Third Party P,90240673,JEWISH CARE,"2,480.92",17/03/2020
Delivery Units,Adults and Health,Other Agencies - Third Party P,90240675,JEWISH CARE,"2,479.68",17/03/2020
Delivery Units,Adults and Health,Other Agencies - Third Party P,90240677,JEWISH CARE,"2,479.68",17/03/2020
Delivery Units,Adults and Health,Other Agencies - Third Party P,90240678,JEWISH CARE,"2,482.36",17/03/2020
Delivery Units,Adults and Health,Other Agencies - Third Party P,90240679,JEWISH CARE,"2,484.56",17/03/2020
Delivery Units,Adults and Health,Other Agencies - Third Party P,90240681,JEWISH CARE,"2,484.56",17/03/2020
Delivery Units,Adults and Health,Other Agencies - Third Party P,90240683,JEWISH CARE,"2,296.24",17/03/2020
Delivery Units,Adults and Health,Other Agencies - Third Party P,90240688,JEWISH CARE,"2,296.24",17/03/2020
Delivery Units,Adults and Health,Other Agencies - Third Party P,90240690,JEWISH CARE,"4,922.72",17/03/2020
Delivery Units,Adults and Health,Other Agencies - Third Party P,90240696,JEWISH CARE,"2,480.92",17/03/2020
Delivery Units,Adults and Health,Other Agencies - Third Party P,90240699,JEWISH CARE,"2,479.68",17/03/2020
Delivery Units,Adults and Health,Other Agencies - Third Party P,90240701,JEWISH CARE,"2,479.68",17/03/2020
Delivery Units,Adults and Health,Other Agencies - Third Party P,90240702,JEWISH CARE,"2,484.56",17/03/2020
Delivery Units,Adults and Health,Other Agencies - Third Party P,90240705,JEWISH CARE,"2,484.56",17/03/2020
Delivery Units,Adults and Health,Other Agencies - Third Party P,90240706,JEWISH CARE,"4,825.16",17/03/2020
Delivery Units,Adults and Health,Other Agencies - Third Party P,90240707,JEWISH CARE,"2,480.92",17/03/2020
Delivery Units,Adults and Health,Other Agencies - Third Party P,90240709,JEWISH CARE,"2,484.56",17/03/2020
Delivery Units,Adults and Health,Other Agencies - Third Party P,90240711,JEWISH CARE,"2,296.24",17/03/2020
Delivery Units,Adults and Health,Other Agencies - Third Party P,90240712,JEWISH CARE,"2,479.68",17/03/2020
Delivery Units,Adults and Health,Other Agencies - Third Party P,90240713,JEWISH CARE,902.07,17/03/2020
Delivery Units,Adults and Health,Other Agencies - Third Party P,90240714,JEWISH CARE,"4,253.01",17/03/2020
Delivery Units,Adults and Health,Other Agencies - Third Party P,90244139,JEWISH CARE,"2,479.68",24/03/2020
Delivery Units,Adults and Health,Other Agencies - Third Party P,90244140,JEWISH CARE,"2,480.92",24/03/2020
Delivery Units,Adults and Health,Other Agencies - Third Party P,90244141,JEWISH CARE,"2,480.92",24/03/2020
Delivery Units,Adults and Health,Other Agencies - Third Party P,90244142,JEWISH CARE,"2,479.68",24/03/2020
Delivery Units,Adults and Health,Other Agencies - Third Party P,90244143,JEWISH CARE,"4,265.48",24/03/2020
Delivery Units,Adults and Health,Other Agencies - Third Party P,90244145,JEWISH CARE,"2,280.32",24/03/2020
Delivery Units,Adults and Health,Other Agencies - Third Party P,90244146,JEWISH CARE,"2,296.24",24/03/2020
Delivery Units,Adults and Health,Other Agencies - Third Party P,90244148,JEWISH CARE,"2,156.80",24/03/2020
Delivery Units,Adults and Health,Other Agencies - Third Party P,90244153,JEWISH CARE,"2,480.92",24/03/2020
Delivery Units,Adults and Health,Other Agencies - Third Party P,90244154,JEWISH CARE,"2,482.36",24/03/2020
Delivery Units,Adults and Health,Other Agencies - Third Party P,90244155,JEWISH CARE,"2,296.24",24/03/2020
Delivery Units,Adults and Health,Other Agencies - Third Party P,90244160,JEWISH CARE,"2,482.36",24/03/2020
Delivery Units,Adults and Health,Other Agencies - Third Party P,90244161,JEWISH CARE,"2,479.68",24/03/2020
Delivery Units,Adults and Health,Other Agencies - Third Party P,90244163,JEWISH CARE,"2,480.92",24/03/2020
Delivery Units,Adults and Health,Other Agencies - Third Party P,90244165,JEWISH CARE,"2,479.68",24/03/2020
Delivery Units,Adults and Health,Other Agencies - Third Party P,90244167,JEWISH CARE,"2,649.36",24/03/2020
Delivery Units,Adults and Health,Other Agencies - Third Party P,90244168,JEWISH CARE,"2,480.92",24/03/2020
Delivery Units,Adults and Health,Other Agencies - Third Party P,90244170,JEWISH CARE,"2,479.68",24/03/2020
Delivery Units,Adults and Health,Other Agencies - Third Party P,90244172,JEWISH CARE,"2,479.68",24/03/2020
Delivery Units,Adults and Health,Other Agencies - Third Party P,90244173,JEWISH CARE,"2,482.36",24/03/2020
Delivery Units,Adults and Health,Other Agencies - Third Party P,90244174,JEWISH CARE,"2,484.56",24/03/2020
Delivery Units,Adults and Health,Other Agencies - Third Party P,90244176,JEWISH CARE,"2,484.56",24/03/2020
Delivery Units,Adults and Health,Other Agencies - Third Party P,90244178,JEWISH CARE,"2,296.24",24/03/2020
Delivery Units,Adults and Health,Other Agencies - Third Party P,90244182,JEWISH CARE,"2,296.24",24/03/2020
Delivery Units,Adults and Health,Other Agencies - Third Party P,90244185,JEWISH CARE,"2,482.36",24/03/2020
Delivery Units,Adults and Health,Other Agencies - Third Party P,90244190,JEWISH CARE,"2,484.56",24/03/2020
Delivery Units,Adults and Health,Other Agencies - Third Party P,90244194,JEWISH CARE,"2,484.56",24/03/2020
Delivery Units,Adults and Health,Other Agencies - Third Party P,90244195,JEWISH CARE,"2,484.56",24/03/2020
Delivery Units,Adults and Health,Other Agencies - Third Party P,90244196,JEWISH CARE,"2,296.24",24/03/2020
Delivery Units,Adults and Health,Other Agencies - Third Party P,90244198,JEWISH CARE,"2,296.24",24/03/2020
Delivery Units,Adults and Health,Other Agencies - Third Party P,90244199,JEWISH CARE,"2,296.24",24/03/2020
Delivery Units,Adults and Health,Other Agencies - Third Party P,90244200,JEWISH CARE,"2,480.92",24/03/2020
Delivery Units,Adults and Health,Other Agencies - Third Party P,90244201,JEWISH CARE,"2,484.56",24/03/2020
Delivery Units,Adults and Health,Other Agencies - Third Party P,90244208,JEWISH CARE,"2,484.56",24/03/2020
Delivery Units,Adults and Health,Other Agencies - Third Party P,90244211,JEWISH CARE,"2,296.24",24/03/2020
Delivery Units,Adults and Health,Other Agencies - Third Party P,90244213,JEWISH CARE,"2,296.24",24/03/2020
Delivery Units,Adults and Health,Other Agencies - Third Party P,90244214,JEWISH CARE,"2,479.68",24/03/2020
Delivery Units,Adults and Health,Other Agencies - Third Party P,90244217,JEWISH CARE,"2,482.36",24/03/2020
Delivery Units,Adults and Health,Other Agencies - Third Party P,90244218,JEWISH CARE,"2,482.36",24/03/2020
Delivery Units,Adults and Health,Other Agencies - Third Party P,90244219,JEWISH CARE,"2,479.68",24/03/2020
Delivery Units,Adults and Health,Other Agencies - Third Party P,90244220,JEWISH CARE,"2,296.24",24/03/2020
Delivery Units,Adults and Health,Other Agencies - Third Party P,90244227,JEWISH CARE,"2,480.92",24/03/2020
Delivery Units,Adults and Health,Other Agencies - Third Party P,90244229,JEWISH CARE,"2,296.24",24/03/2020
Delivery Units,Adults and Health,Other Agencies - Third Party P,90244231,JEWISH CARE,"4,922.72",24/03/2020
Delivery Units,Adults and Health,Other Agencies - Third Party P,90244238,JEWISH CARE,"2,480.92",24/03/2020
Delivery Units,Adults and Health,Other Agencies - Third Party P,90244241,JEWISH CARE,"2,479.68",24/03/2020
Delivery Units,Adults and Health,Other Agencies - Third Party P,90244243,JEWISH CARE,"2,479.68",24/03/2020
Delivery Units,Adults and Health,Other Agencies - Third Party P,90244244,JEWISH CARE,"2,484.56",24/03/2020
Delivery Units,Adults and Health,Other Agencies - Third Party P,90244247,JEWISH CARE,"2,484.56",24/03/2020
Delivery Units,Adults and Health,Other Agencies - Third Party P,90244248,JEWISH CARE,"4,825.16",24/03/2020
Delivery Units,Adults and Health,Other Agencies - Third Party P,90244249,JEWISH CARE,"2,480.92",24/03/2020
Delivery Units,Adults and Health,Other Agencies - Third Party P,90244251,JEWISH CARE,"2,484.56",24/03/2020
Delivery Units,Adults and Health,Other Agencies - Third Party P,90244253,JEWISH CARE,"2,296.24",24/03/2020
Delivery Units,Adults and Health,Other Agencies - Third Party P,90244254,JEWISH CARE,"2,479.68",24/03/2020
Delivery Units,Adults and Health,Other Agencies - Third Party P,90244255,JEWISH CARE,"2,480.92",24/03/2020
Delivery Units,Adults and Health,Other Agencies - Third Party P,90244258,JEWISH CARE,"2,296.24",24/03/2020
Delivery Units,Adults and Health,Other Agencies - Third Party P,90244266,JEWISH CARE,"2,296.24",24/03/2020
Delivery Units,Adults and Health,Other Agencies - Third Party P,90244267,JEWISH CARE,"2,296.24",24/03/2020
Delivery Units,Adults and Health,Other Agencies - Third Party P,90244272,JEWISH CARE,"2,296.24",24/03/2020
Delivery Units,Adults and Health,Other Agencies - Third Party P,90240288,CLOVELLY HOUSE RESID. HOME LTD,"1,499.99",12/03/2020
Delivery Units,Adults and Health,Other Agencies - Third Party P,90241462,CLOVELLY HOUSE RESID. HOME LTD,"2,892.86",17/03/2020
Delivery Units,Adults and Health,Other Agencies - Third Party P,90240224,QUANTUM CARE LIMITED,"3,314.29",12/03/2020
Delivery Units,Adults and Health,Other Agencies - Third Party P,90240231,QUANTUM CARE LIMITED,"3,107.14",12/03/2020
Delivery Units,Adults and Health,Other Agencies - Third Party P,90240232,QUANTUM CARE LIMITED,"3,935.71",12/03/2020
Delivery Units,Adults and Health,Other Agencies - Third Party P,90242015,CEDARS NURSING HOME,"4,428.57",18/03/2020
Delivery Units,Adults and Health,Other Agencies - Third Party P,90242714,CATHERINE LODGE,"3,321.43",20/03/2020
Delivery Units,Adults and Health,Other Agencies - Third Party P,90242716,CATHERINE LODGE,"2,601.87",20/03/2020
Delivery Units,Adults and Health,Other Agencies - Third Party P,90242717,CATHERINE LODGE,"3,764.29",20/03/2020
Delivery Units,Adults and Health,Other Agencies - Third Party P,90242722,CATHERINE LODGE,"2,601.87",20/03/2020
Delivery Units,Adults and Health,Other Agencies - Third Party P,90242723,CATHERINE LODGE,"3,764.29",20/03/2020
Delivery Units,Adults and Health,Other Agencies - Third Party P,90231856,BUPA NURSING HOMES LTD - ARKLEY,151.44,05/03/2020
Delivery Units,Adults and Health,Other Agencies - Third Party P,90231859,BUPA NURSING HOMES LTD - ARKLEY,"-2,167.68",05/03/2020
Delivery Units,Adults and Health,Other Agencies - Third Party P,90231861,BUPA NURSING HOMES LTD - ARKLEY,"-2,218.04",05/03/2020
Delivery Units,Adults and Health,Other Agencies - Third Party P,90240511,BUPA NURSING HOMES LTD - ARKLEY,494.97,17/03/2020
Delivery Units,Adults and Health,Other Agencies - Third Party P,90241909,SUNRIDGE HOUSING ASSOCIATION LTD,"2,989.58",18/03/2020
Delivery Units,Adults and Health,Other Agencies - Third Party P,90242214,NAZARETH HOUSE,"2,186.88",19/03/2020
Delivery Units,Adults and Health,Other Agencies - Third Party P,90242215,NAZARETH HOUSE,"2,350.08",19/03/2020
Delivery Units,Adults and Health,Other Agencies - Third Party P,90242216,NAZARETH HOUSE,"2,186.88",19/03/2020
Delivery Units,Adults and Health,Other Agencies - Third Party P,90242217,NAZARETH HOUSE,"2,186.88",19/03/2020
Delivery Units,Adults and Health,Other Agencies - Third Party P,90242218,NAZARETH HOUSE,"2,186.88",19/03/2020
Delivery Units,Adults and Health,Other Agencies - Third Party P,90242219,NAZARETH HOUSE,"2,186.88",19/03/2020
Delivery Units,Adults and Health,Other Agencies - Third Party P,90242220,NAZARETH HOUSE,"2,350.08",19/03/2020
Delivery Units,Adults and Health,Other Agencies - Third Party P,90242221,NAZARETH HOUSE,"2,186.88",19/03/2020
Delivery Units,Adults and Health,Other Agencies - Third Party P,90242222,NAZARETH HOUSE,"2,186.88",19/03/2020
Delivery Units,Adults and Health,Other Agencies - Third Party P,90242223,NAZARETH HOUSE,"2,350.08",19/03/2020
Delivery Units,Adults and Health,Other Agencies - Third Party P,90242224,NAZARETH HOUSE,"2,186.88",19/03/2020
Delivery Units,Adults and Health,Other Agencies - Third Party P,90242225,NAZARETH HOUSE,"2,186.88",19/03/2020
Delivery Units,Adults and Health,Other Agencies - Third Party P,90242226,NAZARETH HOUSE,"2,144.00",19/03/2020
Delivery Units,Adults and Health,Other Agencies - Third Party P,90242227,NAZARETH HOUSE,"2,186.88",19/03/2020
Delivery Units,Adults and Health,Other Agencies - Third Party P,90242229,NAZARETH HOUSE,"2,650.40",19/03/2020
Delivery Units,Adults and Health,Other Agencies - Third Party P,90242230,NAZARETH HOUSE,"2,186.88",19/03/2020
Delivery Units,Adults and Health,Other Agencies - Third Party P,90242231,NAZARETH HOUSE,"2,350.08",19/03/2020
Delivery Units,Adults and Health,Other Agencies - Third Party P,90242232,NAZARETH HOUSE,"2,186.88",19/03/2020
Delivery Units,Adults and Health,Other Agencies - Third Party P,90242233,NAZARETH HOUSE,"2,186.88",19/03/2020
Delivery Units,Adults and Health,Other Agencies - Third Party P,90242234,NAZARETH HOUSE,"2,186.88",19/03/2020
Delivery Units,Adults and Health,Other Agencies - Third Party P,90242235,NAZARETH HOUSE,"2,186.88",19/03/2020
Delivery Units,Adults and Health,Other Agencies - Third Party P,90242236,NAZARETH HOUSE,"2,350.08",19/03/2020
Delivery Units,Adults and Health,Other Agencies - Third Party P,90242237,NAZARETH HOUSE,"2,350.08",19/03/2020
Delivery Units,Adults and Health,Other Agencies - Third Party P,90242238,NAZARETH HOUSE,"2,186.88",19/03/2020
Delivery Units,Adults and Health,Other Agencies - Third Party P,90242239,NAZARETH HOUSE,"2,186.88",19/03/2020
Delivery Units,Adults and Health,Other Agencies - Third Party P,90242240,NAZARETH HOUSE,"2,186.88",19/03/2020
Delivery Units,Adults and Health,Other Agencies - Third Party P,90242241,NAZARETH HOUSE,"2,186.88",19/03/2020
Delivery Units,Adults and Health,Other Agencies - Third Party P,90242462,NAZARETH HOUSE,"2,186.88",19/03/2020
Delivery Units,Adults and Health,Other Agencies - Third Party P,90241876,Kestrel Grove Nursing Home,"3,060.14",18/03/2020
Delivery Units,Adults and Health,Other Agencies - Third Party P,90235426,FRIARY LODGE,"3,107.14",05/03/2020
Delivery Units,Adults and Health,Other Agencies - Third Party P,90235427,FRIARY LODGE,"3,107.14",05/03/2020
Delivery Units,Adults and Health,Other Agencies - Third Party P,90235429,FRIARY LODGE,"4,055.71",05/03/2020
Delivery Units,Adults and Health,Other Agencies - Third Party P,90240445,THE WOODSIDE HOME,"2,186.88",17/03/2020
Delivery Units,Adults and Health,Other Agencies - Third Party P,90240451,THE WOODSIDE HOME,"2,186.88",17/03/2020
Delivery Units,Adults and Health,Other Agencies - Third Party P,90240452,THE WOODSIDE HOME,"2,186.88",17/03/2020
Delivery Units,Adults and Health,Other Agencies - Third Party P,90241726,THE WOODSIDE HOME,"2,343.00",19/03/2020
Delivery Units,Adults and Health,Other Agencies - Third Party P,90241727,THE WOODSIDE HOME,"2,343.00",19/03/2020
Delivery Units,Adults and Health,Other Agencies - Third Party P,90242467,THE WOODSIDE HOME,"2,343.00",19/03/2020
Delivery Units,Adults and Health,Other Agencies - Third Party P,90240493,WESTMINSTER HEALTH CARE LTD,"3,498.44",19/03/2020
Delivery Units,Adults and Health,Other Agencies - Third Party P,90240501,WESTMINSTER HEALTH CARE LTD,"3,739.71",17/03/2020
Delivery Units,Adults and Health,Other Agencies - Third Party P,90240488,METHODIST HOMES FOR THE AGED,"2,631.76",17/03/2020
Delivery Units,Adults and Health,Other Agencies - Third Party P,90240489,METHODIST HOMES FOR THE AGED,"2,631.76",17/03/2020
Delivery Units,Adults and Health,Other Agencies - Third Party P,90241904,METHODIST HOMES FOR THE AGED,"2,631.76",18/03/2020
Delivery Units,Adults and Health,Other Agencies - Third Party P,90240685,HENRY NIHILL HOUSE,"-2,265.36",17/03/2020
Delivery Units,Adults and Health,Other Agencies - Third Party P,90235680,SYDMAR LODGE,"2,344.57",02/03/2020
Delivery Units,Adults and Health,Other Agencies - Third Party P,90235681,SYDMAR LODGE,"4,557.14",02/03/2020
Delivery Units,Adults and Health,Other Agencies - Third Party P,90235682,SYDMAR LODGE,"2,630.71",02/03/2020
Delivery Units,Adults and Health,Other Agencies - Third Party P,90235683,SYDMAR LODGE,"2,310.10",02/03/2020
Delivery Units,Adults and Health,Other Agencies - Third Party P,90235684,SYDMAR LODGE,"4,805.71",02/03/2020
Delivery Units,Adults and Health,Other Agencies - Third Party P,90235685,SYDMAR LODGE,"2,344.57",02/03/2020
Delivery Units,Adults and Health,Other Agencies - Third Party P,90239843,SYDMAR LODGE,"2,506.26",11/03/2020
Delivery Units,Adults and Health,Other Agencies - Third Party P,90239844,SYDMAR LODGE,"5,137.14",11/03/2020
Delivery Units,Adults and Health,Other Agencies - Third Party P,90239845,SYDMAR LODGE,"2,506.26",11/03/2020
Delivery Units,Adults and Health,Other Agencies - Third Party P,90239846,SYDMAR LODGE,"4,871.43",11/03/2020
Delivery Units,Adults and Health,Other Agencies - Third Party P,90239847,SYDMAR LODGE,"2,469.42",11/03/2020
Delivery Units,Adults and Health,Other Agencies - Third Party P,90240591,THE LIMES RESIDENTIAL HOME,"2,350.08",17/03/2020
Delivery Units,Adults and Health,Other Agencies - Third Party P,90240595,THE LIMES RESIDENTIAL HOME,"2,350.08",17/03/2020
Delivery Units,Adults and Health,Other Agencies - Third Party P,90240600,THE LIMES RESIDENTIAL HOME,"2,186.88",17/03/2020
Delivery Units,Adults and Health,Other Agencies - Third Party P,90240610,THE LIMES RESIDENTIAL HOME,"2,350.08",17/03/2020
Delivery Units,Adults and Health,Other Agencies - Third Party P,90240620,THE LIMES RESIDENTIAL HOME,"2,186.88",17/03/2020
Delivery Units,Adults and Health,Other Agencies - Third Party P,90240621,THE LIMES RESIDENTIAL HOME,"3,040.00",17/03/2020
Delivery Units,Adults and Health,Other Agencies - Third Party P,90240641,THE LIMES RESIDENTIAL HOME,"3,321.43",17/03/2020
Delivery Units,Adults and Health,Other Agencies - Third Party P,90240642,THE LIMES RESIDENTIAL HOME,"2,304.00",17/03/2020
Delivery Units,Adults and Health,Other Agencies - Third Party P,90240651,THE LIMES RESIDENTIAL HOME,"2,350.08",17/03/2020
Delivery Units,Adults and Health,Other Agencies - Third Party P,90240654,THE LIMES RESIDENTIAL HOME,"2,350.08",17/03/2020
Delivery Units,Adults and Health,Other Agencies - Third Party P,90240655,THE LIMES RESIDENTIAL HOME,"2,350.08",17/03/2020
Delivery Units,Adults and Health,Other Agencies - Third Party P,90240663,THE LIMES RESIDENTIAL HOME,"2,186.88",17/03/2020
Delivery Units,Adults and Health,Other Agencies - Third Party P,90240664,THE LIMES RESIDENTIAL HOME,"2,350.08",17/03/2020
Delivery Units,Adults and Health,Other Agencies - Third Party P,90240676,THE LIMES RESIDENTIAL HOME,"2,350.08",17/03/2020
Delivery Units,Adults and Health,Other Agencies - Third Party P,90240694,THE LIMES RESIDENTIAL HOME,"2,304.00",17/03/2020
Delivery Units,Adults and Health,Other Agencies - Third Party P,90240700,THE LIMES RESIDENTIAL HOME,"2,350.08",17/03/2020
Delivery Units,Adults and Health,Other Agencies - Third Party P,90244138,THE LIMES RESIDENTIAL HOME,"2,304.00",24/03/2020
Delivery Units,Adults and Health,Other Agencies - Third Party P,90244147,THE LIMES RESIDENTIAL HOME,"2,350.08",24/03/2020
Delivery Units,Adults and Health,Other Agencies - Third Party P,90244150,THE LIMES RESIDENTIAL HOME,"2,350.08",24/03/2020
Delivery Units,Adults and Health,Other Agencies - Third Party P,90244151,THE LIMES RESIDENTIAL HOME,"2,350.08",24/03/2020
Delivery Units,Adults and Health,Other Agencies - Third Party P,90244158,THE LIMES RESIDENTIAL HOME,"2,186.88",24/03/2020
Delivery Units,Adults and Health,Other Agencies - Third Party P,90244159,THE LIMES RESIDENTIAL HOME,"2,350.08",24/03/2020
Delivery Units,Adults and Health,Other Agencies - Third Party P,90244171,THE LIMES RESIDENTIAL HOME,"2,350.08",24/03/2020
Delivery Units,Adults and Health,Other Agencies - Third Party P,90244184,THE LIMES RESIDENTIAL HOME,"2,186.88",24/03/2020
Delivery Units,Adults and Health,Other Agencies - Third Party P,90244193,THE LIMES RESIDENTIAL HOME,"2,350.08",24/03/2020
Delivery Units,Adults and Health,Other Agencies - Third Party P,90244202,THE LIMES RESIDENTIAL HOME,"2,186.88",24/03/2020
Delivery Units,Adults and Health,Other Agencies - Third Party P,90244203,THE LIMES RESIDENTIAL HOME,"3,040.00",24/03/2020
Delivery Units,Adults and Health,Other Agencies - Third Party P,90244222,THE LIMES RESIDENTIAL HOME,"2,350.08",24/03/2020
Delivery Units,Adults and Health,Other Agencies - Third Party P,90244226,THE LIMES RESIDENTIAL HOME,"2,350.08",24/03/2020
Delivery Units,Adults and Health,Other Agencies - Third Party P,90244235,THE LIMES RESIDENTIAL HOME,"2,304.00",24/03/2020
Delivery Units,Adults and Health,Other Agencies - Third Party P,90244242,THE LIMES RESIDENTIAL HOME,"2,350.08",24/03/2020
Delivery Units,Adults and Health,Other Agencies - Third Party P,90244275,THE LIMES RESIDENTIAL HOME,"3,000.00",24/03/2020
Delivery Units,Adults and Health,Other Agencies - Third Party P,90241457,SPRINGDENE,"4,743.57",17/03/2020
Delivery Units,Adults and Health,Other Agencies - Third Party P,90241955,SCIMITAR CARE HOTELS PLC,"3,764.29",18/03/2020
Delivery Units,Adults and Health,Other Agencies - Third Party P,90241956,SCIMITAR CARE HOTELS PLC,"4,207.14",18/03/2020
Delivery Units,Adults and Health,Other Agencies - Third Party P,90241469,MEERA NURSING HOME LIMITED,"3,314.29",17/03/2020
Delivery Units,Adults and Health,Other Agencies - Third Party P,90241992,MEERA NURSING HOME LIMITED,"3,542.86",18/03/2020
Delivery Units,Adults and Health,Other Agencies - Third Party P,90235701,BUPA CARE HOMES,"2,406.25",02/03/2020
Delivery Units,Adults and Health,Other Agencies - Third Party P,90240222,BUPA CARE HOMES,"2,225.71",12/03/2020
Delivery Units,Adults and Health,Other Agencies - Third Party P,90240223,BUPA CARE HOMES,"3,631.43",12/03/2020
Delivery Units,Adults and Health,Other Agencies - Third Party P,90241878,BUPA CARE HOMES,"2,572.20",18/03/2020
Delivery Units,Adults and Health,Other Agencies - Third Party P,90241879,BUPA CARE HOMES,"3,631.43",18/03/2020
Delivery Units,Adults and Health,Other Agencies - Third Party P,90242711,BUPA CARE HOMES,"3,397.14",20/03/2020
Delivery Units,Adults and Health,Other Agencies - Third Party P,90238424,ANASTASIA LODGE,"3,800.00",09/03/2020
Delivery Units,Adults and Health,Other Agencies - Third Party P,90238038,HILTON LODGE LTD.,"2,880.00",04/03/2020
Delivery Units,Adults and Health,Other Agencies - Third Party P,90242731,HILTON LODGE LTD.,"2,880.00",20/03/2020
Delivery Units,Adults and Health,Other Agencies - Third Party P,90238026,VENTRY RESIDENTIAL CARE LTD,300.00,04/03/2020
Delivery Units,Adults and Health,Other Agencies - Third Party P,90239836,B & M CARE,"3,764.29",11/03/2020
Delivery Units,Adults and Health,Other Agencies - Third Party P,90240004,B & M CARE,"-1,316.57",11/03/2020
Delivery Units,Adults and Health,Other Agencies - Third Party P,90240217,B & M CARE,678.57,12/03/2020
Delivery Units,Adults and Health,Other Agencies - Third Party P,90241852,B & M CARE,"4,207.14",18/03/2020
Delivery Units,Adults and Health,Other Agencies - Third Party P,90240246,SAGE NURSING HOME,"2,485.71",12/03/2020
Delivery Units,Adults and Health,Other Agencies - Third Party P,90240249,SAGE NURSING HOME,"2,506.43",12/03/2020
Delivery Units,Adults and Health,Other Agencies - Third Party P,90240250,SAGE NURSING HOME,"2,264.98",12/03/2020
Delivery Units,Adults and Health,Other Agencies - Third Party P,90240252,SAGE NURSING HOME,"2,900.00",12/03/2020
Delivery Units,Adults and Health,Other Agencies - Third Party P,90240281,EASTSIDE HOUSE CARE HOME,"3,580.00",12/03/2020
Delivery Units,Adults and Health,Other Agencies - Third Party P,90240282,EASTSIDE HOUSE CARE HOME,"3,500.00",12/03/2020
Delivery Units,Adults and Health,Other Agencies - Third Party P,90240284,EASTSIDE HOUSE CARE HOME,"3,500.00",12/03/2020
Delivery Units,Adults and Health,Other Agencies - Third Party P,90242478,EASTSIDE HOUSE CARE HOME,"3,500.00",19/03/2020
Delivery Units,Adults and Health,Other Agencies - Third Party P,90243033,ST VINCENTS NURSING HOME,"1,678.15",23/03/2020
Delivery Units,Adults and Health,Other Agencies - Third Party P,90236574,APPLE TREE COURT CARE HOME,"3,521.43",05/03/2020
Delivery Units,Adults and Health,Other Agencies - Third Party P,90236575,APPLE TREE COURT CARE HOME,"3,521.43",05/03/2020
Delivery Units,Adults and Health,Other Agencies - Third Party P,90236579,APPLE TREE COURT CARE HOME,"3,208.39",04/03/2020
Delivery Units,Adults and Health,Other Agencies - Third Party P,90236580,APPLE TREE COURT CARE HOME,"3,208.39",04/03/2020
Delivery Units,Adults and Health,Other Agencies - Third Party P,90235690,TENTERDEN HOUSE,"3,702.18",02/03/2020
Delivery Units,Adults and Health,Other Agencies - Third Party P,90243005,TENTERDEN HOUSE,"3,957.50",23/03/2020
Delivery Units,Adults and Health,Other Agencies - Third Party P,90240227,SWANBOROUGH HOUSE,"3,855.38",12/03/2020
Delivery Units,Adults and Health,Other Agencies - Third Party P,90238420,AUTUMN GARDENS,"3,560.00",09/03/2020
Delivery Units,Adults and Health,Other Agencies - Third Party P,90238422,AUTUMN GARDENS,"3,160.00",09/03/2020
Delivery Units,Adults and Health,Other Agencies - Third Party P,90238423,AUTUMN GARDENS,"2,880.00",09/03/2020
Delivery Units,Adults and Health,Other Agencies - Third Party P,90238426,AUTUMN GARDENS,"9,594.29",09/03/2020
Delivery Units,Adults and Health,Other Agencies - Third Party P,90241978,AUTUMN GARDENS,"3,560.00",18/03/2020
Delivery Units,Adults and Health,Other Agencies - Third Party P,90236552,THE CHRISTIAN CARE TRUST,"2,350.08",05/03/2020
Delivery Units,Adults and Health,Other Agencies - Third Party P,90240009,THE CHRISTIAN CARE TRUST,"2,350.08",12/03/2020
Delivery Units,Adults and Health,Other Agencies - Third Party P,90241960,THE CHRISTIAN CARE TRUST,"2,350.08",18/03/2020
Delivery Units,Adults and Health,Other Agencies - Third Party P,90241900,ABBEY RAVENSCROFT PARK NURSING HOME,"3,321.43",18/03/2020
Delivery Units,Adults and Health,Other Agencies - Third Party P,90241901,ABBEY RAVENSCROFT PARK NURSING HOME,"3,321.43",18/03/2020
Delivery Units,Adults and Health,Other Agencies - Third Party P,90241911,CARLTON COURT (TLC GROUP),"2,249.45",18/03/2020
Delivery Units,Adults and Health,Other Agencies - Third Party P,90242495,ASHTON LODGE CARE CENTRE,"4,359.66",19/03/2020
Delivery Units,Adults and Health,Other Agencies - Third Party P,90238023,LIVABILITY,"3,211.80",04/03/2020
Delivery Units,Adults and Health,Other Agencies - Third Party P,90238024,LIVABILITY,"3,458.24",04/03/2020
Delivery Units,Adults and Health,Other Agencies - Third Party P,90241866,LIVABILITY,"3,211.80",18/03/2020
Delivery Units,Adults and Health,Other Agencies - Third Party P,90241871,LIVABILITY,"3,458.24",18/03/2020
Delivery Units,Adults and Health,Other Agencies - Third Party P,80034323,THE BARNETGROUP LIMITED,"41,827.14",26/03/2020
Delivery Units,Adults and Health,Other Agencies - Third Party P,90237920,THE BARNETGROUP LIMITED,"2,304.00",11/03/2020
Delivery Units,Adults and Health,Other Agencies - Third Party P,90237923,THE BARNETGROUP LIMITED,"2,144.00",11/03/2020
Delivery Units,Adults and Health,Other Agencies - Third Party P,90237924,THE BARNETGROUP LIMITED,"2,304.00",11/03/2020
Delivery Units,Adults and Health,Other Agencies - Third Party P,90237925,THE BARNETGROUP LIMITED,"2,304.00",11/03/2020
Delivery Units,Adults and Health,Other Agencies - Third Party P,90237926,THE BARNETGROUP LIMITED,"2,144.00",11/03/2020
Delivery Units,Adults and Health,Other Agencies - Third Party P,90237927,THE BARNETGROUP LIMITED,"2,304.00",11/03/2020
Delivery Units,Adults and Health,Other Agencies - Third Party P,90237928,THE BARNETGROUP LIMITED,"3,567.52",11/03/2020
Delivery Units,Adults and Health,Other Agencies - Third Party P,90237930,THE BARNETGROUP LIMITED,"2,144.00",11/03/2020
Delivery Units,Adults and Health,Other Agencies - Third Party P,90237931,THE BARNETGROUP LIMITED,"2,144.00",11/03/2020
Delivery Units,Adults and Health,Other Agencies - Third Party P,90237932,THE BARNETGROUP LIMITED,"2,304.00",11/03/2020
Delivery Units,Adults and Health,Other Agencies - Third Party P,90237933,THE BARNETGROUP LIMITED,"2,144.00",11/03/2020
Delivery Units,Adults and Health,Other Agencies - Third Party P,90237936,THE BARNETGROUP LIMITED,"2,304.00",11/03/2020
Delivery Units,Adults and Health,Other Agencies - Third Party P,90237937,THE BARNETGROUP LIMITED,"2,304.00",11/03/2020
Delivery Units,Adults and Health,Other Agencies - Third Party P,90237938,THE BARNETGROUP LIMITED,"2,144.00",11/03/2020
Delivery Units,Adults and Health,Other Agencies - Third Party P,90237939,THE BARNETGROUP LIMITED,"2,144.00",11/03/2020
Delivery Units,Adults and Health,Other Agencies - Third Party P,90237940,THE BARNETGROUP LIMITED,"2,144.00",11/03/2020
Delivery Units,Adults and Health,Other Agencies - Third Party P,90237941,THE BARNETGROUP LIMITED,"2,144.00",11/03/2020
Delivery Units,Adults and Health,Other Agencies - Third Party P,90237942,THE BARNETGROUP LIMITED,"2,144.00",11/03/2020
Delivery Units,Adults and Health,Other Agencies - Third Party P,90237944,THE BARNETGROUP LIMITED,"4,062.40",11/03/2020
Delivery Units,Adults and Health,Other Agencies - Third Party P,90237945,THE BARNETGROUP LIMITED,"2,304.00",11/03/2020
Delivery Units,Adults and Health,Other Agencies - Third Party P,90237946,THE BARNETGROUP LIMITED,"2,144.00",11/03/2020
Delivery Units,Adults and Health,Other Agencies - Third Party P,90237947,THE BARNETGROUP LIMITED,"2,144.00",11/03/2020
Delivery Units,Adults and Health,Other Agencies - Third Party P,90237948,THE BARNETGROUP LIMITED,"2,304.00",11/03/2020
Delivery Units,Adults and Health,Other Agencies - Third Party P,90237949,THE BARNETGROUP LIMITED,"2,144.00",11/03/2020
Delivery Units,Adults and Health,Other Agencies - Third Party P,90237950,THE BARNETGROUP LIMITED,"2,304.00",11/03/2020
Delivery Units,Adults and Health,Other Agencies - Third Party P,90237951,THE BARNETGROUP LIMITED,"2,144.00",11/03/2020
Delivery Units,Adults and Health,Other Agencies - Third Party P,90237952,THE BARNETGROUP LIMITED,"2,144.00",11/03/2020
Delivery Units,Adults and Health,Other Agencies - Third Party P,90237953,THE BARNETGROUP LIMITED,"2,144.00",11/03/2020
Delivery Units,Adults and Health,Other Agencies - Third Party P,90237954,THE BARNETGROUP LIMITED,"2,400.00",11/03/2020
Delivery Units,Adults and Health,Other Agencies - Third Party P,90237955,THE BARNETGROUP LIMITED,"2,144.00",11/03/2020
Delivery Units,Adults and Health,Other Agencies - Third Party P,90237956,THE BARNETGROUP LIMITED,"2,304.00",11/03/2020
Delivery Units,Adults and Health,Other Agencies - Third Party P,90237957,THE BARNETGROUP LIMITED,"2,144.00",11/03/2020
Delivery Units,Adults and Health,Other Agencies - Third Party P,90237958,THE BARNETGROUP LIMITED,"2,304.00",11/03/2020
Delivery Units,Adults and Health,Other Agencies - Third Party P,90237959,THE BARNETGROUP LIMITED,"2,304.00",11/03/2020
Delivery Units,Adults and Health,Other Agencies - Third Party P,90237960,THE BARNETGROUP LIMITED,"2,694.00",11/03/2020
Delivery Units,Adults and Health,Other Agencies - Third Party P,90237961,THE BARNETGROUP LIMITED,"52,192.04",11/03/2020
Delivery Units,Adults and Health,Other Agencies - Third Party P,90237963,THE BARNETGROUP LIMITED,"2,144.00",11/03/2020
Delivery Units,Adults and Health,Other Agencies - Third Party P,90237964,THE BARNETGROUP LIMITED,"2,144.00",11/03/2020
Delivery Units,Adults and Health,Other Agencies - Third Party P,90237966,THE BARNETGROUP LIMITED,"2,304.00",11/03/2020
Delivery Units,Adults and Health,Other Agencies - Third Party P,90237968,THE BARNETGROUP LIMITED,"2,144.00",11/03/2020
Delivery Units,Adults and Health,Other Agencies - Third Party P,90237969,THE BARNETGROUP LIMITED,"2,144.00",11/03/2020
Delivery Units,Adults and Health,Other Agencies - Third Party P,90237970,THE BARNETGROUP LIMITED,"2,144.00",11/03/2020
Delivery Units,Adults and Health,Other Agencies - Third Party P,90237971,THE BARNETGROUP LIMITED,"2,144.00",11/03/2020
Delivery Units,Adults and Health,Other Agencies - Third Party P,90237973,THE BARNETGROUP LIMITED,"2,144.00",11/03/2020
Delivery Units,Adults and Health,Other Agencies - Third Party P,90237974,THE BARNETGROUP LIMITED,"2,144.00",11/03/2020
Delivery Units,Adults and Health,Other Agencies - Third Party P,90237975,THE BARNETGROUP LIMITED,"2,144.00",11/03/2020
Delivery Units,Adults and Health,Other Agencies - Third Party P,90237977,THE BARNETGROUP LIMITED,"4,080.00",11/03/2020
Delivery Units,Adults and Health,Other Agencies - Third Party P,90237978,THE BARNETGROUP LIMITED,"2,144.00",11/03/2020
Delivery Units,Adults and Health,Other Agencies - Third Party P,90237979,THE BARNETGROUP LIMITED,"2,144.00",11/03/2020
Delivery Units,Adults and Health,Other Agencies - Third Party P,90237980,THE BARNETGROUP LIMITED,"2,144.00",11/03/2020
Delivery Units,Adults and Health,Other Agencies - Third Party P,90237981,THE BARNETGROUP LIMITED,"2,144.00",11/03/2020
Delivery Units,Adults and Health,Other Agencies - Third Party P,90237982,THE BARNETGROUP LIMITED,"2,304.00",11/03/2020
Delivery Units,Adults and Health,Other Agencies - Third Party P,90237983,THE BARNETGROUP LIMITED,"2,144.00",11/03/2020
Delivery Units,Adults and Health,Other Agencies - Third Party P,90237984,THE BARNETGROUP LIMITED,"2,144.00",11/03/2020
Delivery Units,Adults and Health,Other Agencies - Third Party P,90237985,THE BARNETGROUP LIMITED,"2,304.00",11/03/2020
Delivery Units,Adults and Health,Other Agencies - Third Party P,90237987,THE BARNETGROUP LIMITED,"2,304.00",11/03/2020
Delivery Units,Adults and Health,Other Agencies - Third Party P,90237988,THE BARNETGROUP LIMITED,"2,304.00",11/03/2020
Delivery Units,Adults and Health,Other Agencies - Third Party P,90237989,THE BARNETGROUP LIMITED,"2,144.00",11/03/2020
Delivery Units,Adults and Health,Other Agencies - Third Party P,90237990,THE BARNETGROUP LIMITED,"2,304.00",11/03/2020
Delivery Units,Adults and Health,Other Agencies - Third Party P,90237991,THE BARNETGROUP LIMITED,"2,144.00",11/03/2020
Delivery Units,Adults and Health,Other Agencies - Third Party P,90237992,THE BARNETGROUP LIMITED,"2,144.00",11/03/2020
Delivery Units,Adults and Health,Other Agencies - Third Party P,90237993,THE BARNETGROUP LIMITED,"1,640.16",11/03/2020
Delivery Units,Adults and Health,Other Agencies - Third Party P,90237994,THE BARNETGROUP LIMITED,"2,304.00",11/03/2020
Delivery Units,Adults and Health,Other Agencies - Third Party P,90237995,THE BARNETGROUP LIMITED,"2,304.00",11/03/2020
Delivery Units,Adults and Health,Other Agencies - Third Party P,90237997,THE BARNETGROUP LIMITED,"2,304.00",11/03/2020
Delivery Units,Adults and Health,Other Agencies - Third Party P,90237998,THE BARNETGROUP LIMITED,"2,304.00",11/03/2020
Delivery Units,Adults and Health,Other Agencies - Third Party P,90237999,THE BARNETGROUP LIMITED,"2,304.00",11/03/2020
Delivery Units,Adults and Health,Other Agencies - Third Party P,90238000,THE BARNETGROUP LIMITED,"2,304.00",11/03/2020
Delivery Units,Adults and Health,Other Agencies - Third Party P,90238001,THE BARNETGROUP LIMITED,"2,304.00",11/03/2020
Delivery Units,Adults and Health,Other Agencies - Third Party P,90238002,THE BARNETGROUP LIMITED,"2,144.00",11/03/2020
Delivery Units,Adults and Health,Other Agencies - Third Party P,90238003,THE BARNETGROUP LIMITED,"2,144.00",11/03/2020
Delivery Units,Adults and Health,Other Agencies - Third Party P,90238004,THE BARNETGROUP LIMITED,"2,304.00",11/03/2020
Delivery Units,Adults and Health,Other Agencies - Third Party P,90238005,THE BARNETGROUP LIMITED,"2,144.00",11/03/2020
Delivery Units,Adults and Health,Other Agencies - Third Party P,90238006,THE BARNETGROUP LIMITED,"3,000.00",11/03/2020
Delivery Units,Adults and Health,Other Agencies - Third Party P,90238007,THE BARNETGROUP LIMITED,"1,316.34",11/03/2020
Delivery Units,Adults and Health,Other Agencies - Third Party P,90238008,THE BARNETGROUP LIMITED,"2,304.00",11/03/2020
Delivery Units,Adults and Health,Other Agencies - Third Party P,90238009,THE BARNETGROUP LIMITED,"2,144.00",11/03/2020
Delivery Units,Adults and Health,Other Agencies - Third Party P,90238010,THE BARNETGROUP LIMITED,"1,481.14",11/03/2020
Delivery Units,Adults and Health,Other Agencies - Third Party P,90241743,THE BARNETGROUP LIMITED,0.04,18/03/2020
Delivery Units,Adults and Health,Other Agencies - Third Party P,90241744,THE BARNETGROUP LIMITED,"-2,057.14",25/03/2020
Delivery Units,Adults and Health,Other Agencies - Third Party P,90241747,THE BARNETGROUP LIMITED,"2,144.00",25/03/2020
Delivery Units,Adults and Health,Other Agencies - Third Party P,90241748,THE BARNETGROUP LIMITED,"2,304.00",25/03/2020
Delivery Units,Adults and Health,Other Agencies - Third Party P,90241749,THE BARNETGROUP LIMITED,"2,304.00",25/03/2020
Delivery Units,Adults and Health,Other Agencies - Third Party P,90241750,THE BARNETGROUP LIMITED,"2,144.00",25/03/2020
Delivery Units,Adults and Health,Other Agencies - Third Party P,90241751,THE BARNETGROUP LIMITED,"2,304.00",25/03/2020
Delivery Units,Adults and Health,Other Agencies - Third Party P,90241752,THE BARNETGROUP LIMITED,"3,567.52",25/03/2020
Delivery Units,Adults and Health,Other Agencies - Third Party P,90241754,THE BARNETGROUP LIMITED,0.04,25/03/2020
Delivery Units,Adults and Health,Other Agencies - Third Party P,90241755,THE BARNETGROUP LIMITED,"2,144.00",25/03/2020
Delivery Units,Adults and Health,Other Agencies - Third Party P,90241756,THE BARNETGROUP LIMITED,"2,144.00",25/03/2020
Delivery Units,Adults and Health,Other Agencies - Third Party P,90241757,THE BARNETGROUP LIMITED,"2,304.00",25/03/2020
Delivery Units,Adults and Health,Other Agencies - Third Party P,90241758,THE BARNETGROUP LIMITED,"2,144.00",25/03/2020
Delivery Units,Adults and Health,Other Agencies - Third Party P,90241761,THE BARNETGROUP LIMITED,"2,304.00",25/03/2020
Delivery Units,Adults and Health,Other Agencies - Third Party P,90241762,THE BARNETGROUP LIMITED,"2,304.00",25/03/2020
Delivery Units,Adults and Health,Other Agencies - Third Party P,90241763,THE BARNETGROUP LIMITED,"2,144.00",25/03/2020
Delivery Units,Adults and Health,Other Agencies - Third Party P,90241764,THE BARNETGROUP LIMITED,"2,144.00",25/03/2020
Delivery Units,Adults and Health,Other Agencies - Third Party P,90241765,THE BARNETGROUP LIMITED,"2,144.00",25/03/2020
Delivery Units,Adults and Health,Other Agencies - Third Party P,90241766,THE BARNETGROUP LIMITED,"2,144.00",25/03/2020
Delivery Units,Adults and Health,Other Agencies - Third Party P,90241767,THE BARNETGROUP LIMITED,"2,144.00",25/03/2020
Delivery Units,Adults and Health,Other Agencies - Third Party P,90241769,THE BARNETGROUP LIMITED,"4,062.40",25/03/2020
Delivery Units,Adults and Health,Other Agencies - Third Party P,90241770,THE BARNETGROUP LIMITED,"2,304.00",25/03/2020
Delivery Units,Adults and Health,Other Agencies - Third Party P,90241771,THE BARNETGROUP LIMITED,"9,462.86",25/03/2020
Delivery Units,Adults and Health,Other Agencies - Third Party P,90241772,THE BARNETGROUP LIMITED,"2,633.14",25/03/2020
Delivery Units,Adults and Health,Other Agencies - Third Party P,90241774,THE BARNETGROUP LIMITED,"2,144.00",25/03/2020
Delivery Units,Adults and Health,Other Agencies - Third Party P,90241775,THE BARNETGROUP LIMITED,"2,144.00",25/03/2020
Delivery Units,Adults and Health,Other Agencies - Third Party P,90241777,THE BARNETGROUP LIMITED,"2,304.00",25/03/2020
Delivery Units,Adults and Health,Other Agencies - Third Party P,90241779,THE BARNETGROUP LIMITED,"2,144.00",25/03/2020
Delivery Units,Adults and Health,Other Agencies - Third Party P,90241780,THE BARNETGROUP LIMITED,"2,144.00",25/03/2020
Delivery Units,Adults and Health,Other Agencies - Third Party P,90241781,THE BARNETGROUP LIMITED,"2,144.00",25/03/2020
Delivery Units,Adults and Health,Other Agencies - Third Party P,90241782,THE BARNETGROUP LIMITED,"2,144.00",25/03/2020
Delivery Units,Adults and Health,Other Agencies - Third Party P,90241784,THE BARNETGROUP LIMITED,"2,144.00",25/03/2020
Delivery Units,Adults and Health,Other Agencies - Third Party P,90241785,THE BARNETGROUP LIMITED,"2,144.00",25/03/2020
Delivery Units,Adults and Health,Other Agencies - Third Party P,90241786,THE BARNETGROUP LIMITED,"2,144.00",25/03/2020
Delivery Units,Adults and Health,Other Agencies - Third Party P,90241788,THE BARNETGROUP LIMITED,"4,080.00",25/03/2020
Delivery Units,Adults and Health,Other Agencies - Third Party P,90241789,THE BARNETGROUP LIMITED,"2,144.00",25/03/2020
Delivery Units,Adults and Health,Other Agencies - Third Party P,90241790,THE BARNETGROUP LIMITED,"2,144.00",25/03/2020
Delivery Units,Adults and Health,Other Agencies - Third Party P,90241791,THE BARNETGROUP LIMITED,"2,144.00",25/03/2020
Delivery Units,Adults and Health,Other Agencies - Third Party P,90241792,THE BARNETGROUP LIMITED,"2,304.00",25/03/2020
Delivery Units,Adults and Health,Other Agencies - Third Party P,90241793,THE BARNETGROUP LIMITED,"2,144.00",25/03/2020
Delivery Units,Adults and Health,Other Agencies - Third Party P,90241794,THE BARNETGROUP LIMITED,"2,304.00",25/03/2020
Delivery Units,Adults and Health,Other Agencies - Third Party P,90241795,THE BARNETGROUP LIMITED,"2,144.00",25/03/2020
Delivery Units,Adults and Health,Other Agencies - Third Party P,90241796,THE BARNETGROUP LIMITED,"2,144.00",25/03/2020
Delivery Units,Adults and Health,Other Agencies - Third Party P,90241797,THE BARNETGROUP LIMITED,"2,144.00",25/03/2020
Delivery Units,Adults and Health,Other Agencies - Third Party P,90241798,THE BARNETGROUP LIMITED,"2,400.00",25/03/2020
Delivery Units,Adults and Health,Other Agencies - Third Party P,90241799,THE BARNETGROUP LIMITED,"2,144.00",25/03/2020
Delivery Units,Adults and Health,Other Agencies - Third Party P,90241800,THE BARNETGROUP LIMITED,"2,304.00",25/03/2020
Delivery Units,Adults and Health,Other Agencies - Third Party P,90241801,THE BARNETGROUP LIMITED,"2,144.00",25/03/2020
Delivery Units,Adults and Health,Other Agencies - Third Party P,90241802,THE BARNETGROUP LIMITED,"2,304.00",25/03/2020
Delivery Units,Adults and Health,Other Agencies - Third Party P,90241803,THE BARNETGROUP LIMITED,"2,304.00",25/03/2020
Delivery Units,Adults and Health,Other Agencies - Third Party P,90241804,THE BARNETGROUP LIMITED,"2,694.00",25/03/2020
Delivery Units,Adults and Health,Other Agencies - Third Party P,90241805,THE BARNETGROUP LIMITED,"2,144.00",25/03/2020
Delivery Units,Adults and Health,Other Agencies - Third Party P,90241806,THE BARNETGROUP LIMITED,"2,144.00",25/03/2020
Delivery Units,Adults and Health,Other Agencies - Third Party P,90241807,THE BARNETGROUP LIMITED,"2,144.00",25/03/2020
Delivery Units,Adults and Health,Other Agencies - Third Party P,90241808,THE BARNETGROUP LIMITED,"2,304.00",25/03/2020
Delivery Units,Adults and Health,Other Agencies - Third Party P,90241809,THE BARNETGROUP LIMITED,"2,144.00",25/03/2020
Delivery Units,Adults and Health,Other Agencies - Third Party P,90241810,THE BARNETGROUP LIMITED,"2,144.00",25/03/2020
Delivery Units,Adults and Health,Other Agencies - Third Party P,90241811,THE BARNETGROUP LIMITED,"2,304.00",25/03/2020
Delivery Units,Adults and Health,Other Agencies - Third Party P,90241813,THE BARNETGROUP LIMITED,"2,304.00",25/03/2020
Delivery Units,Adults and Health,Other Agencies - Third Party P,90241814,THE BARNETGROUP LIMITED,"2,304.00",25/03/2020
Delivery Units,Adults and Health,Other Agencies - Third Party P,90241815,THE BARNETGROUP LIMITED,"2,144.00",25/03/2020
Delivery Units,Adults and Health,Other Agencies - Third Party P,90241816,THE BARNETGROUP LIMITED,"2,304.00",25/03/2020
Delivery Units,Adults and Health,Other Agencies - Third Party P,90241817,THE BARNETGROUP LIMITED,"2,144.00",25/03/2020
Delivery Units,Adults and Health,Other Agencies - Third Party P,90241818,THE BARNETGROUP LIMITED,"2,144.00",25/03/2020
Delivery Units,Adults and Health,Other Agencies - Third Party P,90241819,THE BARNETGROUP LIMITED,468.62,25/03/2020
Delivery Units,Adults and Health,Other Agencies - Third Party P,90241820,THE BARNETGROUP LIMITED,"2,304.00",25/03/2020
Delivery Units,Adults and Health,Other Agencies - Third Party P,90241821,THE BARNETGROUP LIMITED,"2,304.00",25/03/2020
Delivery Units,Adults and Health,Other Agencies - Third Party P,90241823,THE BARNETGROUP LIMITED,"2,304.00",25/03/2020
Delivery Units,Adults and Health,Other Agencies - Third Party P,90241824,THE BARNETGROUP LIMITED,"2,304.00",25/03/2020
Delivery Units,Adults and Health,Other Agencies - Third Party P,90241825,THE BARNETGROUP LIMITED,"2,304.00",25/03/2020
Delivery Units,Adults and Health,Other Agencies - Third Party P,90241826,THE BARNETGROUP LIMITED,"2,304.00",25/03/2020
Delivery Units,Adults and Health,Other Agencies - Third Party P,90241827,THE BARNETGROUP LIMITED,"2,304.00",25/03/2020
Delivery Units,Adults and Health,Other Agencies - Third Party P,90241828,THE BARNETGROUP LIMITED,"2,144.00",25/03/2020
Delivery Units,Adults and Health,Other Agencies - Third Party P,90241829,THE BARNETGROUP LIMITED,"2,144.00",25/03/2020
Delivery Units,Adults and Health,Other Agencies - Third Party P,90241830,THE BARNETGROUP LIMITED,"2,304.00",25/03/2020
Delivery Units,Adults and Health,Other Agencies - Third Party P,90241831,THE BARNETGROUP LIMITED,"2,144.00",25/03/2020
Delivery Units,Adults and Health,Other Agencies - Third Party P,90241832,THE BARNETGROUP LIMITED,"3,000.00",25/03/2020
Delivery Units,Adults and Health,Other Agencies - Third Party P,90241833,THE BARNETGROUP LIMITED,0.04,25/03/2020
Delivery Units,Adults and Health,Other Agencies - Third Party P,90241834,THE BARNETGROUP LIMITED,"2,304.00",25/03/2020
Delivery Units,Adults and Health,Other Agencies - Third Party P,90241835,THE BARNETGROUP LIMITED,"2,144.00",25/03/2020
Delivery Units,Adults and Health,Other Agencies - Third Party P,90241836,THE BARNETGROUP LIMITED,"2,304.00",25/03/2020
Delivery Units,Adults and Health,Other Agencies - Third Party P,90241837,THE BARNETGROUP LIMITED,"24,219.14",25/03/2020
Delivery Units,Adults and Health,Other Agencies - Third Party P,90241838,THE BARNETGROUP LIMITED,"21,902.94",25/03/2020
Delivery Units,Adults and Health,Other Agencies - Third Party P,90241966,Z & M CARE LTD,"2,600.00",18/03/2020
Delivery Units,Adults and Health,Other Agencies - Third Party P,90242024,Belmont Lodge Care Centre,"2,418.04",18/03/2020
Delivery Units,Adults and Health,Other Agencies - Third Party P,90241927,Karuna Manor,"4,207.14",18/03/2020
Delivery Units,Adults and Health,Other Agencies - Third Party P,90240268,Alexandra House (Runwood Homes),"2,116.71",12/03/2020
Delivery Units,Adults and Health,Other Agencies - Third Party P,90238434,The Windmill Care Home,"1,872.40",09/03/2020
Delivery Units,Adults and Health,Other Agencies - Third Party P,90241948,Sonnet Care Homes (Essex) Ltd,"4,871.43",18/03/2020
Delivery Units,Adults and Health,Other Agencies - Third Party P,90240008,GCH (Hertfordshire) Ltd T/A,"2,414.68",11/03/2020
Delivery Units,Adults and Health,Other Agencies - Third Party P,90235687,Heathcote Care Home,"4,039.29",02/03/2020
Delivery Units,Adults and Health,Other Agencies - Third Party P,90241874,Heathcote Care Home,"4,317.86",18/03/2020
Delivery Units,Adults and Health,Other Agencies - Third Party P,90240254,GCH (North London) t/a The Tudors,"2,300.00",12/03/2020
Delivery Units,Adults and Health,Other Agencies - Third Party P,90241446,GCH (North London) t/a The Tudors,"2,300.00",17/03/2020
Delivery Units,Adults and Health,Other Agencies - Third Party P,90240238,Wilton House Ltd,"2,548.69",12/03/2020
Delivery Units,Adults and Health,Other Agencies - Third Party P,90240239,Wilton House Ltd,"2,443.00",12/03/2020
Delivery Units,Adults and Health,Other Agencies - Third Party P,90240240,Wilton House Ltd,"2,451.91",12/03/2020
Delivery Units,Adults and Health,Other Agencies - Third Party P,90241951,Wilton House Ltd,"2,724.46",18/03/2020
Delivery Units,Adults and Health,Other Agencies - Third Party P,90241952,Wilton House Ltd,"2,621.01",18/03/2020
Delivery Units,Adults and Health,Other Agencies - Third Party P,90241953,Wilton House Ltd,"2,611.48",18/03/2020
Delivery Units,Adults and Health,Other Agencies - Third Party P,90235702,HC-One Oval LTD,"2,178.32",02/03/2020
Delivery Units,Adults and Health,Other Agencies - Third Party P,90235703,HC-One Oval LTD,"2,178.32",05/03/2020
Delivery Units,Adults and Health,Other Agencies - Third Party P,90238441,Amron Premier Care,"2,449.51",09/03/2020
Delivery Units,Adults and Health,Other Agencies - Third Party P,90241464,REDACTED - PERSONAL DATA,"27,200.00",17/03/2020
Delivery Units,Adults and Health,Other Agencies - Third Party P,90238450,Wordsworth House Care Home,"2,657.14",09/03/2020
Delivery Units,Adults and Health,Other Agencies - Third Party P,90241947,Wordsworth House Care Home,"2,657.14",18/03/2020
Delivery Units,Adults and Health,Other Agencies - Third Party P,90240473,Jackson Care Limited,"5,314.29",17/03/2020
Delivery Units,Adults and Health,Other Agencies - Third Party P,90240483,Jackson Care Limited,"4,971.43",17/03/2020
Delivery Units,Adults and Health,Other Agencies - Third Party P,90240242,A.H.J. David Ltd t/a Florence House,"3,200.00",12/03/2020
Delivery Units,Adults and Health,Other Agencies - Third Party P,90240243,A.H.J. David Ltd t/a Florence House,"3,200.00",12/03/2020
Delivery Units,Adults and Health,Other Agencies - Third Party P,90242734,A.H.J. David Ltd t/a Florence House,"3,200.00",20/03/2020
Delivery Units,Adults and Health,Other Agencies - Third Party P,90235688,Safequarter South Ltd,"2,434.01",02/03/2020
Delivery Units,Adults and Health,Other Agencies - Third Party P,90241875,Safequarter South Ltd,"2,601.87",18/03/2020
Delivery Units,Adults and Health,Fees and Charges,90237916,REDACTED - PERSONAL DATA,307.20,03/03/2020
Delivery Units,Adults and Health,Fees and Charges,90241851,REDACTED - PERSONAL DATA,186.52,18/03/2020
Delivery Units,Adults and Health,Direct Transfer Payments to So,90237537,REDACTED - PERSONAL DATA,"2,931.21",03/03/2020
Delivery Units,Adults and Health,Direct Transfer Payments to So,90237315,REDACTED - PERSONAL DATA,"3,846.39",03/03/2020
Delivery Units,Adults and Health,Direct Transfer Payments to So,90237068,REDACTED - PERSONAL DATA,"3,834.43",03/03/2020
Delivery Units,Adults and Health,Direct Transfer Payments to So,90237482,REDACTED - PERSONAL DATA,"1,209.26",03/03/2020
Delivery Units,Adults and Health,Direct Transfer Payments to So,90236901,REDACTED - PERSONAL DATA,295.68,03/03/2020
Delivery Units,Adults and Health,Direct Transfer Payments to So,90237600,REDACTED - PERSONAL DATA,"1,560.72",03/03/2020
Delivery Units,Adults and Health,Direct Transfer Payments to So,90236944,REDACTED - PERSONAL DATA,961.60,03/03/2020
Delivery Units,Adults and Health,Direct Transfer Payments to So,90237389,REDACTED - PERSONAL DATA,144.23,03/03/2020
Delivery Units,Adults and Health,Direct Transfer Payments to So,90236969,REDACTED - PERSONAL DATA,"2,027.37",03/03/2020
Delivery Units,Adults and Health,Direct Transfer Payments to So,90236881,REDACTED - PERSONAL DATA,"2,638.75",03/03/2020
Delivery Units,Adults and Health,Direct Transfer Payments to So,90237286,REDACTED - PERSONAL DATA,"1,185.32",03/03/2020
Delivery Units,Adults and Health,Direct Transfer Payments to So,90237305,REDACTED - PERSONAL DATA,795.56,03/03/2020
Delivery Units,Adults and Health,Direct Transfer Payments to So,90237069,REDACTED - PERSONAL DATA,852.77,03/03/2020
Delivery Units,Adults and Health,Direct Transfer Payments to So,90237555,REDACTED - PERSONAL DATA,889.48,03/03/2020
Delivery Units,Adults and Health,Direct Transfer Payments to So,90236887,REDACTED - PERSONAL DATA,611.41,03/03/2020
Delivery Units,Adults and Health,Direct Transfer Payments to So,90237125,REDACTED - PERSONAL DATA,"2,703.12",03/03/2020
Delivery Units,Adults and Health,Direct Transfer Payments to So,90237763,REDACTED - PERSONAL DATA,349.13,03/03/2020
Delivery Units,Adults and Health,Direct Transfer Payments to So,90237497,REDACTED - PERSONAL DATA,377.89,03/03/2020
Delivery Units,Adults and Health,Direct Transfer Payments to So,90237029,REDACTED - PERSONAL DATA,"2,056.85",03/03/2020
Delivery Units,Adults and Health,Direct Transfer Payments to So,90237102,REDACTED - PERSONAL DATA,"1,143.16",03/03/2020
Delivery Units,Adults and Health,Direct Transfer Payments to So,90237917,REDACTED - PERSONAL DATA,"1,324.22",03/03/2020
Delivery Units,Adults and Health,Direct Transfer Payments to So,90236927,REDACTED - PERSONAL DATA,"1,238.92",03/03/2020
Delivery Units,Adults and Health,Direct Transfer Payments to So,90237323,REDACTED - PERSONAL DATA,"1,545.49",03/03/2020
Delivery Units,Adults and Health,Direct Transfer Payments to So,90236978,REDACTED - PERSONAL DATA,"1,699.71",03/03/2020
Delivery Units,Adults and Health,Direct Transfer Payments to So,90237765,REDACTED - PERSONAL DATA,"1,260.00",03/03/2020
Delivery Units,Adults and Health,Direct Transfer Payments to So,90237678,REDACTED - PERSONAL DATA,640.00,03/03/2020
Delivery Units,Adults and Health,Direct Transfer Payments to So,90237356,REDACTED - PERSONAL DATA,"1,029.76",03/03/2020
Delivery Units,Adults and Health,Direct Transfer Payments to So,90237332,REDACTED - PERSONAL DATA,351.51,03/03/2020
Delivery Units,Adults and Health,Direct Transfer Payments to So,90237649,REDACTED - PERSONAL DATA,"1,497.05",03/03/2020
Delivery Units,Adults and Health,Direct Transfer Payments to So,90237046,REDACTED - PERSONAL DATA,490.03,03/03/2020
Delivery Units,Adults and Health,Direct Transfer Payments to So,90237429,REDACTED - PERSONAL DATA,975.35,03/03/2020
Delivery Units,Adults and Health,Direct Transfer Payments to So,90237214,REDACTED - PERSONAL DATA,799.99,03/03/2020
Delivery Units,Adults and Health,Fees and Charges,90237909,REDACTED - PERSONAL DATA,-300.39,03/03/2020
Delivery Units,Adults and Health,Direct Transfer Payments to So,90237435,REDACTED - PERSONAL DATA,"2,349.17",03/03/2020
Delivery Units,Adults and Health,Direct Transfer Payments to So,90237700,REDACTED - PERSONAL DATA,966.39,03/03/2020
Delivery Units,Adults and Health,Direct Transfer Payments to So,90237346,REDACTED - PERSONAL DATA,480.79,03/03/2020
Delivery Units,Adults and Health,Direct Transfer Payments to So,90237701,REDACTED - PERSONAL DATA,"3,444.00",03/03/2020
Delivery Units,Adults and Health,Direct Transfer Payments to So,90237348,REDACTED - PERSONAL DATA,451.92,03/03/2020
Delivery Units,Adults and Health,Direct Transfer Payments to So,90237543,REDACTED - PERSONAL DATA,649.07,03/03/2020
Delivery Units,Adults and Health,Direct Transfer Payments to So,90237448,REDACTED - PERSONAL DATA,348.01,03/03/2020
Delivery Units,Adults and Health,Direct Transfer Payments to So,90237182,REDACTED - PERSONAL DATA,547.09,03/03/2020
Delivery Units,Adults and Health,Direct Transfer Payments to So,90237351,REDACTED - PERSONAL DATA,"4,093.85",03/03/2020
Delivery Units,Adults and Health,Direct Transfer Payments to So,90237242,REDACTED - PERSONAL DATA,700.00,03/03/2020
Delivery Units,Adults and Health,Direct Transfer Payments to So,90237264,REDACTED - PERSONAL DATA,"1,560.72",03/03/2020
Delivery Units,Adults and Health,Direct Transfer Payments to So,90237186,REDACTED - PERSONAL DATA,560.00,03/03/2020
Delivery Units,Adults and Health,Direct Transfer Payments to So,90237650,REDACTED - PERSONAL DATA,"2,316.97",03/03/2020
Delivery Units,Adults and Health,Direct Transfer Payments to So,90237454,REDACTED - PERSONAL DATA,"1,431.95",03/03/2020
Delivery Units,Adults and Health,Direct Transfer Payments to So,90237247,REDACTED - PERSONAL DATA,410.96,03/03/2020
Delivery Units,Adults and Health,Direct Transfer Payments to So,90237246,REDACTED - PERSONAL DATA,360.61,03/03/2020
Delivery Units,Adults and Health,Direct Transfer Payments to So,90237383,REDACTED - PERSONAL DATA,"1,208.00",03/03/2020
Delivery Units,Adults and Health,Direct Transfer Payments to So,90237262,REDACTED - PERSONAL DATA,"4,022.51",03/03/2020
Delivery Units,Adults and Health,Direct Transfer Payments to So,90237361,REDACTED - PERSONAL DATA,844.40,03/03/2020
Delivery Units,Adults and Health,Direct Transfer Payments to So,90237463,REDACTED - PERSONAL DATA,960.01,03/03/2020
Delivery Units,Adults and Health,Direct Transfer Payments to So,90237254,REDACTED - PERSONAL DATA,"2,066.01",03/03/2020
Delivery Units,Adults and Health,Direct Transfer Payments to So,90237366,REDACTED - PERSONAL DATA,"3,488.02",03/03/2020
Delivery Units,Adults and Health,Direct Transfer Payments to So,90237556,REDACTED - PERSONAL DATA,231.39,03/03/2020
Delivery Units,Adults and Health,Direct Transfer Payments to So,90237594,REDACTED - PERSONAL DATA,810.01,03/03/2020
Delivery Units,Adults and Health,Direct Transfer Payments to So,90237258,REDACTED - PERSONAL DATA,478.49,03/03/2020
Delivery Units,Adults and Health,Direct Transfer Payments to So,90237737,REDACTED - PERSONAL DATA,943.99,03/03/2020
Delivery Units,Adults and Health,Direct Transfer Payments to So,90237468,REDACTED - PERSONAL DATA,"2,399.99",03/03/2020
Delivery Units,Adults and Health,Direct Transfer Payments to So,90237202,REDACTED - PERSONAL DATA,772.32,03/03/2020
Delivery Units,Adults and Health,Direct Transfer Payments to So,90237268,REDACTED - PERSONAL DATA,"2,518.49",03/03/2020
Delivery Units,Adults and Health,Direct Transfer Payments to So,90237372,REDACTED - PERSONAL DATA,"1,351.56",03/03/2020
Delivery Units,Adults and Health,Direct Transfer Payments to So,90237416,REDACTED - PERSONAL DATA,792.88,03/03/2020
Delivery Units,Adults and Health,Direct Transfer Payments to So,90237685,REDACTED - PERSONAL DATA,384.64,03/03/2020
Delivery Units,Adults and Health,Direct Transfer Payments to So,90237579,REDACTED - PERSONAL DATA,675.81,03/03/2020
Delivery Units,Adults and Health,Direct Transfer Payments to So,90237476,REDACTED - PERSONAL DATA,"1,582.00",03/03/2020
Delivery Units,Adults and Health,Direct Transfer Payments to So,90237273,REDACTED - PERSONAL DATA,136.00,03/03/2020
Delivery Units,Adults and Health,Direct Transfer Payments to So,90237477,REDACTED - PERSONAL DATA,"4,608.04",03/03/2020
Delivery Units,Adults and Health,Direct Transfer Payments to So,90237480,REDACTED - PERSONAL DATA,"2,520.00",03/03/2020
Delivery Units,Adults and Health,Direct Transfer Payments to So,90237390,REDACTED - PERSONAL DATA,"1,351.56",03/03/2020
Delivery Units,Adults and Health,Direct Transfer Payments to So,90237485,REDACTED - PERSONAL DATA,"2,300.00",03/03/2020
Delivery Units,Adults and Health,Fees and Charges,90237913,REDACTED - PERSONAL DATA,"1,272.96",03/03/2020
Delivery Units,Adults and Health,Direct Transfer Payments to So,90237619,REDACTED - PERSONAL DATA,589.68,03/03/2020
Delivery Units,Adults and Health,Direct Transfer Payments to So,90237743,REDACTED - PERSONAL DATA,730.91,03/03/2020
Delivery Units,Adults and Health,Direct Transfer Payments to So,90237748,REDACTED - PERSONAL DATA,"1,346.13",03/03/2020
Delivery Units,Adults and Health,Direct Transfer Payments to So,90237672,REDACTED - PERSONAL DATA,140.00,03/03/2020
Delivery Units,Adults and Health,Direct Transfer Payments to So,90237398,REDACTED - PERSONAL DATA,112.00,03/03/2020
Delivery Units,Adults and Health,Direct Transfer Payments to So,90237633,REDACTED - PERSONAL DATA,"1,238.92",03/03/2020
Delivery Units,Adults and Health,Direct Transfer Payments to So,90237671,REDACTED - PERSONAL DATA,903.92,03/03/2020
Delivery Units,Adults and Health,Direct Transfer Payments to So,90237502,REDACTED - PERSONAL DATA,"2,796.44",03/03/2020
Delivery Units,Adults and Health,Direct Transfer Payments to So,90237636,REDACTED - PERSONAL DATA,482.72,03/03/2020
Delivery Units,Adults and Health,Direct Transfer Payments to So,90237498,REDACTED - PERSONAL DATA,"1,238.92",03/03/2020
Delivery Units,Adults and Health,Direct Transfer Payments to So,90237411,REDACTED - PERSONAL DATA,"1,194.23",03/03/2020
Delivery Units,Adults and Health,Direct Transfer Payments to So,90237509,REDACTED - PERSONAL DATA,"3,000.00",03/03/2020
Delivery Units,Adults and Health,Direct Transfer Payments to So,90237513,REDACTED - PERSONAL DATA,"2,843.23",03/03/2020
Delivery Units,Adults and Health,Direct Transfer Payments to So,90237675,REDACTED - PERSONAL DATA,"2,751.31",03/03/2020
Delivery Units,Adults and Health,Direct Transfer Payments to So,90237516,REDACTED - PERSONAL DATA,"2,781.72",03/03/2020
Delivery Units,Adults and Health,Direct Transfer Payments to So,90237687,REDACTED - PERSONAL DATA,586.96,03/03/2020
Delivery Units,Adults and Health,Direct Transfer Payments to So,90237652,REDACTED - PERSONAL DATA,675.81,03/03/2020
Delivery Units,Adults and Health,Direct Transfer Payments to So,90237768,REDACTED - PERSONAL DATA,"2,331.59",03/03/2020
Delivery Units,Adults and Health,Direct Transfer Payments to So,90237519,REDACTED - PERSONAL DATA,"1,802.08",03/03/2020
Delivery Units,Adults and Health,Direct Transfer Payments to So,90237688,REDACTED - PERSONAL DATA,"7,004.64",03/03/2020
Delivery Units,Adults and Health,Direct Transfer Payments to So,90237774,REDACTED - PERSONAL DATA,"1,350.80",03/03/2020
Delivery Units,Adults and Health,Direct Transfer Payments to So,90237657,REDACTED - PERSONAL DATA,"3,200.01",03/03/2020
Delivery Units,Adults and Health,Direct Transfer Payments to So,90237660,REDACTED - PERSONAL DATA,"-21,450.00",03/03/2020
Delivery Units,Adults and Health,Direct Transfer Payments to So,90237424,REDACTED - PERSONAL DATA,804.52,05/03/2020
Delivery Units,Adults and Health,Direct Transfer Payments to So,90236877,REDACTED - PERSONAL DATA,-629.13,03/03/2020
Delivery Units,Adults and Health,Direct Transfer Payments to So,90237904,REDACTED - PERSONAL DATA,500.00,03/03/2020
Delivery Units,Adults and Health,Fees and Charges,90237915,REDACTED - PERSONAL DATA,0.03,03/03/2020
Delivery Units,Adults and Health,Other Agencies - Third Party P,90239787,WESTMINSTER HOMECARE LTD,931.63,11/03/2020
Delivery Units,Adults and Health,Other Agencies - Third Party P,90239788,WESTMINSTER HOMECARE LTD,871.06,11/03/2020
Delivery Units,Adults and Health,Other Agencies - Third Party P,90239789,WESTMINSTER HOMECARE LTD,253.00,11/03/2020
Delivery Units,Adults and Health,Other Agencies - Third Party P,90239790,WESTMINSTER HOMECARE LTD,685.70,11/03/2020
Delivery Units,Adults and Health,Other Agencies - Third Party P,90239791,WESTMINSTER HOMECARE LTD,354.20,11/03/2020
Delivery Units,Adults and Health,Other Agencies - Third Party P,90239792,WESTMINSTER HOMECARE LTD,168.60,11/03/2020
Delivery Units,Adults and Health,Other Agencies - Third Party P,90239793,WESTMINSTER HOMECARE LTD,323.34,11/03/2020
Delivery Units,Adults and Health,Other Agencies - Third Party P,90239795,WESTMINSTER HOMECARE LTD,691.24,11/03/2020
Delivery Units,Adults and Health,Other Agencies - Third Party P,90239796,WESTMINSTER HOMECARE LTD,809.42,11/03/2020
Delivery Units,Adults and Health,Other Agencies - Third Party P,90239797,WESTMINSTER HOMECARE LTD,67.44,11/03/2020
Delivery Units,Adults and Health,Other Agencies - Third Party P,90239798,WESTMINSTER HOMECARE LTD,497.51,11/03/2020
Delivery Units,Adults and Health,Other Agencies - Third Party P,90239799,WESTMINSTER HOMECARE LTD,67.45,11/03/2020
Delivery Units,Adults and Health,Other Agencies - Third Party P,90239800,WESTMINSTER HOMECARE LTD,"1,117.41",11/03/2020
Delivery Units,Adults and Health,Other Agencies - Third Party P,90239801,WESTMINSTER HOMECARE LTD,282.52,11/03/2020
Delivery Units,Adults and Health,Other Agencies - Third Party P,90239802,WESTMINSTER HOMECARE LTD,518.60,11/03/2020
Delivery Units,Adults and Health,Other Agencies - Third Party P,90239803,WESTMINSTER HOMECARE LTD,33.72,11/03/2020
Delivery Units,Adults and Health,Other Agencies - Third Party P,90239806,WESTMINSTER HOMECARE LTD,180.78,11/03/2020
Delivery Units,Adults and Health,Other Agencies - Third Party P,90239807,WESTMINSTER HOMECARE LTD,"1,399.05",11/03/2020
Delivery Units,Adults and Health,Other Agencies - Third Party P,90239808,WESTMINSTER HOMECARE LTD,"1,407.24",11/03/2020
Delivery Units,Adults and Health,Other Agencies - Third Party P,90239809,WESTMINSTER HOMECARE LTD,573.37,11/03/2020
Delivery Units,Adults and Health,Other Agencies - Third Party P,90239810,WESTMINSTER HOMECARE LTD,822.07,11/03/2020
Delivery Units,Adults and Health,Other Agencies - Third Party P,90239811,WESTMINSTER HOMECARE LTD,63.25,11/03/2020
Delivery Units,Adults and Health,Other Agencies - Third Party P,90239812,WESTMINSTER HOMECARE LTD,227.61,11/03/2020
Delivery Units,Adults and Health,Other Agencies - Third Party P,90239813,WESTMINSTER HOMECARE LTD,236.04,11/03/2020
Delivery Units,Adults and Health,Other Agencies - Third Party P,90239814,WESTMINSTER HOMECARE LTD,455.49,11/03/2020
Delivery Units,Adults and Health,Other Agencies - Third Party P,90239815,WESTMINSTER HOMECARE LTD,493.17,11/03/2020
Delivery Units,Adults and Health,Other Agencies - Third Party P,90239816,WESTMINSTER HOMECARE LTD,231.11,11/03/2020
Delivery Units,Adults and Health,Other Agencies - Third Party P,90239817,WESTMINSTER HOMECARE LTD,678.87,11/03/2020
Delivery Units,Adults and Health,Other Agencies - Third Party P,90239818,WESTMINSTER HOMECARE LTD,809.41,11/03/2020
Delivery Units,Adults and Health,Other Agencies - Third Party P,90239819,WESTMINSTER HOMECARE LTD,438.37,11/03/2020
Delivery Units,Adults and Health,Other Agencies - Third Party P,90239820,WESTMINSTER HOMECARE LTD,303.56,11/03/2020
Delivery Units,Adults and Health,Other Agencies - Third Party P,90239821,WESTMINSTER HOMECARE LTD,212.22,11/03/2020
Delivery Units,Adults and Health,Other Agencies - Third Party P,90239826,WESTMINSTER HOMECARE LTD,"1,644.40",11/03/2020
Delivery Units,Adults and Health,Other Agencies - Third Party P,90239827,WESTMINSTER HOMECARE LTD,215.05,11/03/2020
Delivery Units,Adults and Health,Other Agencies - Third Party P,90239829,WESTMINSTER HOMECARE LTD,50.58,11/03/2020
Delivery Units,Adults and Health,Other Agencies - Third Party P,90239830,WESTMINSTER HOMECARE LTD,396.30,11/03/2020
Delivery Units,Adults and Health,Other Agencies - Third Party P,90239831,WESTMINSTER HOMECARE LTD,"1,058.10",11/03/2020
Delivery Units,Adults and Health,Other Agencies - Third Party P,1000920102,ENARA COMMUNITY CARE,"2,527.00",20/03/2020
Delivery Units,Adults and Health,Other Agencies - Third Party P,1000923402,ENARA COMMUNITY CARE,"2,707.40",20/03/2020
Delivery Units,Adults and Health,Other Agencies - Third Party P,1000923802,ENARA COMMUNITY CARE,"2,527.00",20/03/2020
Delivery Units,Adults and Health,Other Agencies - Third Party P,1000923902,ENARA COMMUNITY CARE,"2,707.40",20/03/2020
Delivery Units,Adults and Health,Other Agencies - Third Party P,1000924102,ENARA COMMUNITY CARE,"2,617.20",20/03/2020
Delivery Units,Adults and Health,Other Agencies - Third Party P,1000925102,ENARA COMMUNITY CARE,"2,527.00",20/03/2020
Delivery Units,Adults and Health,Other Agencies - Third Party P,1000992902,ENARA COMMUNITY CARE,"2,527.00",30/03/2020
Delivery Units,Adults and Health,Other Agencies - Third Party P,1000993602,ENARA COMMUNITY CARE,"2,527.00",30/03/2020
Delivery Units,Adults and Health,Other Agencies - Third Party P,1000996002,ENARA COMMUNITY CARE,"2,617.20",30/03/2020
Delivery Units,Adults and Health,Other Agencies - Third Party P,90236004,DYNAMIC PEOPLE LTD,140.84,02/03/2020
Delivery Units,Adults and Health,Other Agencies - Third Party P,90236005,DYNAMIC PEOPLE LTD,253.47,02/03/2020
Delivery Units,Adults and Health,Other Agencies - Third Party P,90236006,DYNAMIC PEOPLE LTD,60.35,02/03/2020
Delivery Units,Adults and Health,Other Agencies - Third Party P,90236008,DYNAMIC PEOPLE LTD,225.33,02/03/2020
Delivery Units,Adults and Health,Other Agencies - Third Party P,90236009,DYNAMIC PEOPLE LTD,197.12,02/03/2020
Delivery Units,Adults and Health,Other Agencies - Third Party P,90236010,DYNAMIC PEOPLE LTD,84.49,02/03/2020
Delivery Units,Adults and Health,Other Agencies - Third Party P,90236011,DYNAMIC PEOPLE LTD,156.93,02/03/2020
Delivery Units,Adults and Health,Other Agencies - Third Party P,90236012,DYNAMIC PEOPLE LTD,197.19,02/03/2020
Delivery Units,Adults and Health,Other Agencies - Third Party P,90236015,DYNAMIC PEOPLE LTD,309.75,02/03/2020
Delivery Units,Adults and Health,Other Agencies - Third Party P,90236016,DYNAMIC PEOPLE LTD,253.54,02/03/2020
Delivery Units,Adults and Health,Other Agencies - Third Party P,90236017,DYNAMIC PEOPLE LTD,168.98,02/03/2020
Delivery Units,Adults and Health,Other Agencies - Third Party P,90236018,DYNAMIC PEOPLE LTD,140.84,02/03/2020
Delivery Units,Adults and Health,Other Agencies - Third Party P,90236019,DYNAMIC PEOPLE LTD,84.49,02/03/2020
Delivery Units,Adults and Health,Other Agencies - Third Party P,90236022,DYNAMIC PEOPLE LTD,72.40,02/03/2020
Delivery Units,Adults and Health,Other Agencies - Third Party P,90236023,DYNAMIC PEOPLE LTD,32.18,02/03/2020
Delivery Units,Adults and Health,Other Agencies - Third Party P,90236024,DYNAMIC PEOPLE LTD,92.55,02/03/2020
Delivery Units,Adults and Health,Other Agencies - Third Party P,90236025,DYNAMIC PEOPLE LTD,84.49,02/03/2020
Delivery Units,Adults and Health,Other Agencies - Third Party P,90236026,DYNAMIC PEOPLE LTD,253.50,02/03/2020
Delivery Units,Adults and Health,Other Agencies - Third Party P,90236027,DYNAMIC PEOPLE LTD,84.49,02/03/2020
Delivery Units,Adults and Health,Other Agencies - Third Party P,90236029,DYNAMIC PEOPLE LTD,96.54,02/03/2020
Delivery Units,Adults and Health,Other Agencies - Third Party P,90236030,DYNAMIC PEOPLE LTD,60.36,02/03/2020
Delivery Units,Adults and Health,Other Agencies - Third Party P,90236033,DYNAMIC PEOPLE LTD,52.29,02/03/2020
Delivery Units,Adults and Health,Other Agencies - Third Party P,90236034,DYNAMIC PEOPLE LTD,56.35,02/03/2020
Delivery Units,Adults and Health,Other Agencies - Third Party P,90236036,DYNAMIC PEOPLE LTD,140.84,02/03/2020
Delivery Units,Adults and Health,Other Agencies - Third Party P,90236037,DYNAMIC PEOPLE LTD,112.70,02/03/2020
Delivery Units,Adults and Health,Other Agencies - Third Party P,90236038,DYNAMIC PEOPLE LTD,112.70,02/03/2020
Delivery Units,Adults and Health,Other Agencies - Third Party P,90236040,DYNAMIC PEOPLE LTD,225.33,02/03/2020
Delivery Units,Adults and Health,Other Agencies - Third Party P,90236041,DYNAMIC PEOPLE LTD,40.23,02/03/2020
Delivery Units,Adults and Health,Other Agencies - Third Party P,90236043,DYNAMIC PEOPLE LTD,124.70,02/03/2020
Delivery Units,Adults and Health,Other Agencies - Third Party P,90236044,DYNAMIC PEOPLE LTD,128.76,02/03/2020
Delivery Units,Adults and Health,Other Agencies - Third Party P,90236045,DYNAMIC PEOPLE LTD,249.45,02/03/2020
Delivery Units,Adults and Health,Other Agencies - Third Party P,90236046,DYNAMIC PEOPLE LTD,68.39,02/03/2020
Delivery Units,Adults and Health,Other Agencies - Third Party P,90236047,DYNAMIC PEOPLE LTD,36.21,02/03/2020
Delivery Units,Adults and Health,Other Agencies - Third Party P,90236048,DYNAMIC PEOPLE LTD,832.71,02/03/2020
Delivery Units,Adults and Health,Other Agencies - Third Party P,90236049,DYNAMIC PEOPLE LTD,112.63,02/03/2020
Delivery Units,Adults and Health,Other Agencies - Third Party P,90236051,DYNAMIC PEOPLE LTD,80.45,02/03/2020
Delivery Units,Adults and Health,Other Agencies - Third Party P,90236054,DYNAMIC PEOPLE LTD,36.21,02/03/2020
Delivery Units,Adults and Health,Other Agencies - Third Party P,90236057,DYNAMIC PEOPLE LTD,64.36,02/03/2020
Delivery Units,Adults and Health,Other Agencies - Third Party P,90236058,DYNAMIC PEOPLE LTD,197.19,02/03/2020
Delivery Units,Adults and Health,Other Agencies - Third Party P,90236059,DYNAMIC PEOPLE LTD,140.84,02/03/2020
Delivery Units,Adults and Health,Other Agencies - Third Party P,90236060,DYNAMIC PEOPLE LTD,253.47,02/03/2020
Delivery Units,Adults and Health,Other Agencies - Third Party P,90236061,DYNAMIC PEOPLE LTD,60.35,02/03/2020
Delivery Units,Adults and Health,Other Agencies - Third Party P,90236062,DYNAMIC PEOPLE LTD,84.49,02/03/2020
Delivery Units,Adults and Health,Other Agencies - Third Party P,90236063,DYNAMIC PEOPLE LTD,156.93,02/03/2020
Delivery Units,Adults and Health,Other Agencies - Third Party P,90236064,DYNAMIC PEOPLE LTD,197.19,02/03/2020
Delivery Units,Adults and Health,Other Agencies - Third Party P,90236067,DYNAMIC PEOPLE LTD,253.54,02/03/2020
Delivery Units,Adults and Health,Other Agencies - Third Party P,90236068,DYNAMIC PEOPLE LTD,84.49,02/03/2020
Delivery Units,Adults and Health,Other Agencies - Third Party P,90236070,DYNAMIC PEOPLE LTD,140.84,02/03/2020
Delivery Units,Adults and Health,Other Agencies - Third Party P,90236071,DYNAMIC PEOPLE LTD,281.68,02/03/2020
Delivery Units,Adults and Health,Other Agencies - Third Party P,90236072,DYNAMIC PEOPLE LTD,225.33,02/03/2020
Delivery Units,Adults and Health,Other Agencies - Third Party P,90236074,DYNAMIC PEOPLE LTD,140.84,02/03/2020
Delivery Units,Adults and Health,Other Agencies - Third Party P,90236076,DYNAMIC PEOPLE LTD,281.68,02/03/2020
Delivery Units,Adults and Health,Other Agencies - Third Party P,90236077,DYNAMIC PEOPLE LTD,32.18,02/03/2020
Delivery Units,Adults and Health,Other Agencies - Third Party P,90236078,DYNAMIC PEOPLE LTD,140.84,02/03/2020
Delivery Units,Adults and Health,Other Agencies - Third Party P,90236079,DYNAMIC PEOPLE LTD,253.47,02/03/2020
Delivery Units,Adults and Health,Other Agencies - Third Party P,90236081,DYNAMIC PEOPLE LTD,112.63,02/03/2020
Delivery Units,Adults and Health,Other Agencies - Third Party P,90236082,DYNAMIC PEOPLE LTD,394.38,02/03/2020
Delivery Units,Adults and Health,Other Agencies - Third Party P,90236083,DYNAMIC PEOPLE LTD,337.96,02/03/2020
Delivery Units,Adults and Health,Other Agencies - Third Party P,90236084,DYNAMIC PEOPLE LTD,225.33,02/03/2020
Delivery Units,Adults and Health,Other Agencies - Third Party P,90236085,DYNAMIC PEOPLE LTD,253.54,02/03/2020
Delivery Units,Adults and Health,Other Agencies - Third Party P,90236086,DYNAMIC PEOPLE LTD,84.49,02/03/2020
Delivery Units,Adults and Health,Other Agencies - Third Party P,90236087,DYNAMIC PEOPLE LTD,309.82,02/03/2020
Delivery Units,Adults and Health,Other Agencies - Third Party P,90236088,DYNAMIC PEOPLE LTD,56.35,02/03/2020
Delivery Units,Adults and Health,Other Agencies - Third Party P,90236089,DYNAMIC PEOPLE LTD,56.35,02/03/2020
Delivery Units,Adults and Health,Other Agencies - Third Party P,90236090,DYNAMIC PEOPLE LTD,140.84,02/03/2020
Delivery Units,Adults and Health,Other Agencies - Third Party P,90236091,DYNAMIC PEOPLE LTD,209.19,02/03/2020
Delivery Units,Adults and Health,Other Agencies - Third Party P,90236093,DYNAMIC PEOPLE LTD,36.21,02/03/2020
Delivery Units,Adults and Health,Other Agencies - Third Party P,90236094,DYNAMIC PEOPLE LTD,84.49,02/03/2020
Delivery Units,Adults and Health,Other Agencies - Third Party P,90236097,DYNAMIC PEOPLE LTD,181.05,02/03/2020
Delivery Units,Adults and Health,Other Agencies - Third Party P,90236098,DYNAMIC PEOPLE LTD,225.33,02/03/2020
Delivery Units,Adults and Health,Other Agencies - Third Party P,90236099,DYNAMIC PEOPLE LTD,281.68,02/03/2020
Delivery Units,Adults and Health,Other Agencies - Third Party P,90236100,DYNAMIC PEOPLE LTD,173.00,02/03/2020
Delivery Units,Adults and Health,Other Agencies - Third Party P,90236101,DYNAMIC PEOPLE LTD,181.11,02/03/2020
Delivery Units,Adults and Health,Other Agencies - Third Party P,90236102,DYNAMIC PEOPLE LTD,48.27,02/03/2020
Delivery Units,Adults and Health,Other Agencies - Third Party P,90236103,DYNAMIC PEOPLE LTD,305.82,02/03/2020
Delivery Units,Adults and Health,Other Agencies - Third Party P,90236104,DYNAMIC PEOPLE LTD,64.39,02/03/2020
Delivery Units,Adults and Health,Other Agencies - Third Party P,90236106,DYNAMIC PEOPLE LTD,507.08,02/03/2020
Delivery Units,Adults and Health,Other Agencies - Third Party P,90236107,DYNAMIC PEOPLE LTD,197.19,02/03/2020
Delivery Units,Adults and Health,Other Agencies - Third Party P,90236109,DYNAMIC PEOPLE LTD,197.12,02/03/2020
Delivery Units,Adults and Health,Other Agencies - Third Party P,90236111,DYNAMIC PEOPLE LTD,84.49,02/03/2020
Delivery Units,Adults and Health,Other Agencies - Third Party P,90236113,DYNAMIC PEOPLE LTD,185.14,02/03/2020
Delivery Units,Adults and Health,Other Agencies - Third Party P,90236114,DYNAMIC PEOPLE LTD,305.79,02/03/2020
Delivery Units,Adults and Health,Other Agencies - Third Party P,90236119,DYNAMIC PEOPLE LTD,337.89,02/03/2020
Delivery Units,Adults and Health,Other Agencies - Third Party P,90236120,DYNAMIC PEOPLE LTD,60.37,02/03/2020
Delivery Units,Adults and Health,Other Agencies - Third Party P,90236121,DYNAMIC PEOPLE LTD,80.47,02/03/2020
Delivery Units,Adults and Health,Other Agencies - Third Party P,90236123,DYNAMIC PEOPLE LTD,112.63,02/03/2020
Delivery Units,Adults and Health,Other Agencies - Third Party P,90236124,DYNAMIC PEOPLE LTD,140.84,02/03/2020
Delivery Units,Adults and Health,Other Agencies - Third Party P,90236126,DYNAMIC PEOPLE LTD,84.49,02/03/2020
Delivery Units,Adults and Health,Other Agencies - Third Party P,90236127,DYNAMIC PEOPLE LTD,40.24,02/03/2020
Delivery Units,Adults and Health,Other Agencies - Third Party P,90236128,DYNAMIC PEOPLE LTD,168.98,02/03/2020
Delivery Units,Adults and Health,Other Agencies - Third Party P,90236130,DYNAMIC PEOPLE LTD,124.73,02/03/2020
Delivery Units,Adults and Health,Other Agencies - Third Party P,90236131,DYNAMIC PEOPLE LTD,140.84,02/03/2020
Delivery Units,Adults and Health,Other Agencies - Third Party P,90236132,DYNAMIC PEOPLE LTD,209.17,02/03/2020
Delivery Units,Adults and Health,Other Agencies - Third Party P,90236133,DYNAMIC PEOPLE LTD,277.58,02/03/2020
Delivery Units,Adults and Health,Other Agencies - Third Party P,90236134,DYNAMIC PEOPLE LTD,84.49,02/03/2020
Delivery Units,Adults and Health,Other Agencies - Third Party P,90236135,DYNAMIC PEOPLE LTD,112.63,02/03/2020
Delivery Units,Adults and Health,Other Agencies - Third Party P,90236136,DYNAMIC PEOPLE LTD,16.10,02/03/2020
Delivery Units,Adults and Health,Other Agencies - Third Party P,90236137,DYNAMIC PEOPLE LTD,80.50,02/03/2020
Delivery Units,Adults and Health,Other Agencies - Third Party P,90236138,DYNAMIC PEOPLE LTD,48.28,02/03/2020
Delivery Units,Adults and Health,Other Agencies - Third Party P,90236139,DYNAMIC PEOPLE LTD,225.33,02/03/2020
Delivery Units,Adults and Health,Other Agencies - Third Party P,90236140,DYNAMIC PEOPLE LTD,88.55,02/03/2020
Delivery Units,Adults and Health,Other Agencies - Third Party P,90236141,DYNAMIC PEOPLE LTD,36.21,02/03/2020
Delivery Units,Adults and Health,Other Agencies - Third Party P,90236142,DYNAMIC PEOPLE LTD,84.49,02/03/2020
Delivery Units,Adults and Health,Other Agencies - Third Party P,90236143,DYNAMIC PEOPLE LTD,112.63,02/03/2020
Delivery Units,Adults and Health,Other Agencies - Third Party P,90236144,DYNAMIC PEOPLE LTD,458.70,02/03/2020
Delivery Units,Adults and Health,Other Agencies - Third Party P,90236146,DYNAMIC PEOPLE LTD,253.47,02/03/2020
Delivery Units,Adults and Health,Other Agencies - Third Party P,90236147,DYNAMIC PEOPLE LTD,60.35,02/03/2020
Delivery Units,Adults and Health,Other Agencies - Third Party P,90236149,DYNAMIC PEOPLE LTD,394.38,02/03/2020
Delivery Units,Adults and Health,Other Agencies - Third Party P,90236150,DYNAMIC PEOPLE LTD,337.96,02/03/2020
Delivery Units,Adults and Health,Other Agencies - Third Party P,90236152,DYNAMIC PEOPLE LTD,225.33,02/03/2020
Delivery Units,Adults and Health,Other Agencies - Third Party P,90236153,DYNAMIC PEOPLE LTD,253.54,02/03/2020
Delivery Units,Adults and Health,Other Agencies - Third Party P,90236154,DYNAMIC PEOPLE LTD,144.81,02/03/2020
Delivery Units,Adults and Health,Other Agencies - Third Party P,90236155,DYNAMIC PEOPLE LTD,56.35,02/03/2020
Delivery Units,Adults and Health,Other Agencies - Third Party P,90236156,DYNAMIC PEOPLE LTD,56.35,02/03/2020
Delivery Units,Adults and Health,Other Agencies - Third Party P,90236157,DYNAMIC PEOPLE LTD,140.84,02/03/2020
Delivery Units,Adults and Health,Other Agencies - Third Party P,90236159,DYNAMIC PEOPLE LTD,36.21,02/03/2020
Delivery Units,Adults and Health,Other Agencies - Third Party P,90236160,DYNAMIC PEOPLE LTD,84.49,02/03/2020
Delivery Units,Adults and Health,Other Agencies - Third Party P,90236163,DYNAMIC PEOPLE LTD,309.82,02/03/2020
Delivery Units,Adults and Health,Other Agencies - Third Party P,90236164,DYNAMIC PEOPLE LTD,189.09,02/03/2020
Delivery Units,Adults and Health,Other Agencies - Third Party P,90236165,DYNAMIC PEOPLE LTD,225.33,02/03/2020
Delivery Units,Adults and Health,Other Agencies - Third Party P,90236166,DYNAMIC PEOPLE LTD,96.54,02/03/2020
Delivery Units,Adults and Health,Other Agencies - Third Party P,90236167,DYNAMIC PEOPLE LTD,281.68,02/03/2020
Delivery Units,Adults and Health,Other Agencies - Third Party P,90236168,DYNAMIC PEOPLE LTD,173.00,02/03/2020
Delivery Units,Adults and Health,Other Agencies - Third Party P,90236169,DYNAMIC PEOPLE LTD,181.11,02/03/2020
Delivery Units,Adults and Health,Other Agencies - Third Party P,90236170,DYNAMIC PEOPLE LTD,48.27,02/03/2020
Delivery Units,Adults and Health,Other Agencies - Third Party P,90236171,DYNAMIC PEOPLE LTD,64.39,02/03/2020
Delivery Units,Adults and Health,Other Agencies - Third Party P,90236172,DYNAMIC PEOPLE LTD,112.63,02/03/2020
Delivery Units,Adults and Health,Other Agencies - Third Party P,90236174,DYNAMIC PEOPLE LTD,507.08,02/03/2020
Delivery Units,Adults and Health,Other Agencies - Third Party P,90236175,DYNAMIC PEOPLE LTD,24.15,02/03/2020
Delivery Units,Adults and Health,Other Agencies - Third Party P,90236177,DYNAMIC PEOPLE LTD,80.50,02/03/2020
Delivery Units,Adults and Health,Other Agencies - Third Party P,90236178,DYNAMIC PEOPLE LTD,197.12,02/03/2020
Delivery Units,Adults and Health,Other Agencies - Third Party P,90236179,DYNAMIC PEOPLE LTD,225.33,02/03/2020
Delivery Units,Adults and Health,Other Agencies - Third Party P,90236180,DYNAMIC PEOPLE LTD,84.49,02/03/2020
Delivery Units,Adults and Health,Other Agencies - Third Party P,90236183,DYNAMIC PEOPLE LTD,72.40,02/03/2020
Delivery Units,Adults and Health,Other Agencies - Third Party P,90236185,DYNAMIC PEOPLE LTD,221.34,02/03/2020
Delivery Units,Adults and Health,Other Agencies - Third Party P,90236186,DYNAMIC PEOPLE LTD,197.12,02/03/2020
Delivery Units,Adults and Health,Other Agencies - Third Party P,90236187,DYNAMIC PEOPLE LTD,32.18,02/03/2020
Delivery Units,Adults and Health,Other Agencies - Third Party P,90236188,DYNAMIC PEOPLE LTD,96.57,02/03/2020
Delivery Units,Adults and Health,Other Agencies - Third Party P,90236189,DYNAMIC PEOPLE LTD,84.49,02/03/2020
Delivery Units,Adults and Health,Other Agencies - Third Party P,90236190,DYNAMIC PEOPLE LTD,281.68,02/03/2020
Delivery Units,Adults and Health,Other Agencies - Third Party P,90236191,DYNAMIC PEOPLE LTD,84.49,02/03/2020
Delivery Units,Adults and Health,Other Agencies - Third Party P,90236193,DYNAMIC PEOPLE LTD,96.54,02/03/2020
Delivery Units,Adults and Health,Other Agencies - Third Party P,90236194,DYNAMIC PEOPLE LTD,60.36,02/03/2020
Delivery Units,Adults and Health,Other Agencies - Third Party P,90236195,DYNAMIC PEOPLE LTD,309.75,02/03/2020
Delivery Units,Adults and Health,Other Agencies - Third Party P,90236196,DYNAMIC PEOPLE LTD,168.98,02/03/2020
Delivery Units,Adults and Health,Other Agencies - Third Party P,90236197,DYNAMIC PEOPLE LTD,140.84,02/03/2020
Delivery Units,Adults and Health,Other Agencies - Third Party P,90236199,DYNAMIC PEOPLE LTD,52.29,02/03/2020
Delivery Units,Adults and Health,Other Agencies - Third Party P,90236200,DYNAMIC PEOPLE LTD,56.35,02/03/2020
Delivery Units,Adults and Health,Other Agencies - Third Party P,90236203,DYNAMIC PEOPLE LTD,104.65,02/03/2020
Delivery Units,Adults and Health,Other Agencies - Third Party P,90236204,DYNAMIC PEOPLE LTD,112.70,02/03/2020
Delivery Units,Adults and Health,Other Agencies - Third Party P,90236206,DYNAMIC PEOPLE LTD,32.18,02/03/2020
Delivery Units,Adults and Health,Other Agencies - Third Party P,90236207,DYNAMIC PEOPLE LTD,48.29,02/03/2020
Delivery Units,Adults and Health,Other Agencies - Third Party P,90236208,DYNAMIC PEOPLE LTD,96.54,02/03/2020
Delivery Units,Adults and Health,Other Agencies - Third Party P,90236209,DYNAMIC PEOPLE LTD,124.74,02/03/2020
Delivery Units,Adults and Health,Other Agencies - Third Party P,90236210,DYNAMIC PEOPLE LTD,257.50,02/03/2020
Delivery Units,Adults and Health,Other Agencies - Third Party P,90236211,DYNAMIC PEOPLE LTD,36.21,02/03/2020
Delivery Units,Adults and Health,Other Agencies - Third Party P,90236212,DYNAMIC PEOPLE LTD,112.63,02/03/2020
Delivery Units,Adults and Health,Other Agencies - Third Party P,90236213,DYNAMIC PEOPLE LTD,683.88,02/03/2020
Delivery Units,Adults and Health,Other Agencies - Third Party P,90236214,DYNAMIC PEOPLE LTD,112.63,02/03/2020
Delivery Units,Adults and Health,Other Agencies - Third Party P,90236216,DYNAMIC PEOPLE LTD,80.45,02/03/2020
Delivery Units,Adults and Health,Other Agencies - Third Party P,90236218,DYNAMIC PEOPLE LTD,36.21,02/03/2020
Delivery Units,Adults and Health,Other Agencies - Third Party P,90236220,DYNAMIC PEOPLE LTD,84.49,02/03/2020
Delivery Units,Adults and Health,Other Agencies - Third Party P,90236221,DYNAMIC PEOPLE LTD,293.72,02/03/2020
Delivery Units,Adults and Health,Other Agencies - Third Party P,90236222,DYNAMIC PEOPLE LTD,197.19,02/03/2020
Delivery Units,Adults and Health,Other Agencies - Third Party P,90236223,DYNAMIC PEOPLE LTD,185.13,02/03/2020
Delivery Units,Adults and Health,Other Agencies - Third Party P,90236224,DYNAMIC PEOPLE LTD,301.77,02/03/2020
Delivery Units,Adults and Health,Other Agencies - Third Party P,90236229,DYNAMIC PEOPLE LTD,321.80,02/03/2020
Delivery Units,Adults and Health,Other Agencies - Third Party P,90236230,DYNAMIC PEOPLE LTD,209.18,02/03/2020
Delivery Units,Adults and Health,Other Agencies - Third Party P,90236231,DYNAMIC PEOPLE LTD,60.37,02/03/2020
Delivery Units,Adults and Health,Other Agencies - Third Party P,90236232,DYNAMIC PEOPLE LTD,88.51,02/03/2020
Delivery Units,Adults and Health,Other Agencies - Third Party P,90236234,DYNAMIC PEOPLE LTD,112.63,02/03/2020
Delivery Units,Adults and Health,Other Agencies - Third Party P,90236236,DYNAMIC PEOPLE LTD,84.49,02/03/2020
Delivery Units,Adults and Health,Other Agencies - Third Party P,90236237,DYNAMIC PEOPLE LTD,40.24,02/03/2020
Delivery Units,Adults and Health,Other Agencies - Third Party P,90236238,DYNAMIC PEOPLE LTD,144.84,02/03/2020
Delivery Units,Adults and Health,Other Agencies - Third Party P,90236241,DYNAMIC PEOPLE LTD,140.84,02/03/2020
Delivery Units,Adults and Health,Other Agencies - Third Party P,90236242,DYNAMIC PEOPLE LTD,209.17,02/03/2020
Delivery Units,Adults and Health,Other Agencies - Third Party P,90236243,DYNAMIC PEOPLE LTD,305.82,02/03/2020
Delivery Units,Adults and Health,Other Agencies - Third Party P,90236244,DYNAMIC PEOPLE LTD,273.56,02/03/2020
Delivery Units,Adults and Health,Other Agencies - Third Party P,90236245,DYNAMIC PEOPLE LTD,84.49,02/03/2020
Delivery Units,Adults and Health,Other Agencies - Third Party P,90236246,DYNAMIC PEOPLE LTD,197.19,02/03/2020
Delivery Units,Adults and Health,Other Agencies - Third Party P,90236248,DYNAMIC PEOPLE LTD,48.28,02/03/2020
Delivery Units,Adults and Health,Other Agencies - Third Party P,90236250,DYNAMIC PEOPLE LTD,100.61,02/03/2020
Delivery Units,Adults and Health,Other Agencies - Third Party P,90236251,DYNAMIC PEOPLE LTD,84.49,02/03/2020
Delivery Units,Adults and Health,Other Agencies - Third Party P,90236252,DYNAMIC PEOPLE LTD,112.63,02/03/2020
Delivery Units,Adults and Health,Other Agencies - Third Party P,90236253,DYNAMIC PEOPLE LTD,474.79,02/03/2020
Delivery Units,Adults and Health,Other Agencies - Third Party P,90236738,DYNAMIC PEOPLE LTD,140.84,03/03/2020
Delivery Units,Adults and Health,Other Agencies - Third Party P,90236739,DYNAMIC PEOPLE LTD,253.47,03/03/2020
Delivery Units,Adults and Health,Other Agencies - Third Party P,90236740,DYNAMIC PEOPLE LTD,60.35,03/03/2020
Delivery Units,Adults and Health,Other Agencies - Third Party P,90236741,DYNAMIC PEOPLE LTD,225.33,03/03/2020
Delivery Units,Adults and Health,Other Agencies - Third Party P,90236742,DYNAMIC PEOPLE LTD,156.93,03/03/2020
Delivery Units,Adults and Health,Other Agencies - Third Party P,90236743,DYNAMIC PEOPLE LTD,197.19,03/03/2020
Delivery Units,Adults and Health,Other Agencies - Third Party P,90236744,DYNAMIC PEOPLE LTD,281.68,03/03/2020
Delivery Units,Adults and Health,Other Agencies - Third Party P,90236746,DYNAMIC PEOPLE LTD,140.84,03/03/2020
Delivery Units,Adults and Health,Other Agencies - Third Party P,90236747,DYNAMIC PEOPLE LTD,60.36,03/03/2020
Delivery Units,Adults and Health,Other Agencies - Third Party P,90236749,DYNAMIC PEOPLE LTD,309.75,03/03/2020
Delivery Units,Adults and Health,Other Agencies - Third Party P,90236750,DYNAMIC PEOPLE LTD,253.54,03/03/2020
Delivery Units,Adults and Health,Other Agencies - Third Party P,90236751,DYNAMIC PEOPLE LTD,140.84,03/03/2020
Delivery Units,Adults and Health,Other Agencies - Third Party P,90236752,DYNAMIC PEOPLE LTD,84.49,03/03/2020
Delivery Units,Adults and Health,Other Agencies - Third Party P,90236754,DYNAMIC PEOPLE LTD,140.84,03/03/2020
Delivery Units,Adults and Health,Other Agencies - Third Party P,90236755,DYNAMIC PEOPLE LTD,225.33,03/03/2020
Delivery Units,Adults and Health,Other Agencies - Third Party P,90236757,DYNAMIC PEOPLE LTD,140.84,03/03/2020
Delivery Units,Adults and Health,Other Agencies - Third Party P,90236758,DYNAMIC PEOPLE LTD,253.47,03/03/2020
Delivery Units,Adults and Health,Other Agencies - Third Party P,90236759,DYNAMIC PEOPLE LTD,60.35,03/03/2020
Delivery Units,Adults and Health,Other Agencies - Third Party P,90236761,DYNAMIC PEOPLE LTD,225.33,03/03/2020
Delivery Units,Adults and Health,Other Agencies - Third Party P,90236762,DYNAMIC PEOPLE LTD,281.69,03/03/2020
Delivery Units,Adults and Health,Other Agencies - Third Party P,90236763,DYNAMIC PEOPLE LTD,394.38,03/03/2020
Delivery Units,Adults and Health,Other Agencies - Third Party P,90236764,DYNAMIC PEOPLE LTD,337.96,03/03/2020
Delivery Units,Adults and Health,Other Agencies - Third Party P,90236766,DYNAMIC PEOPLE LTD,80.45,03/03/2020
Delivery Units,Adults and Health,Other Agencies - Third Party P,90236767,DYNAMIC PEOPLE LTD,225.33,03/03/2020
Delivery Units,Adults and Health,Other Agencies - Third Party P,90236768,DYNAMIC PEOPLE LTD,309.82,03/03/2020
Delivery Units,Adults and Health,Other Agencies - Third Party P,90236769,DYNAMIC PEOPLE LTD,56.35,03/03/2020
Delivery Units,Adults and Health,Other Agencies - Third Party P,90236770,DYNAMIC PEOPLE LTD,177.04,03/03/2020
Delivery Units,Adults and Health,Other Agencies - Third Party P,90236771,DYNAMIC PEOPLE LTD,56.35,03/03/2020
Delivery Units,Adults and Health,Other Agencies - Third Party P,90236773,DYNAMIC PEOPLE LTD,209.19,03/03/2020
Delivery Units,Adults and Health,Other Agencies - Third Party P,90236774,DYNAMIC PEOPLE LTD,84.49,03/03/2020
Delivery Units,Adults and Health,Other Agencies - Third Party P,90236775,DYNAMIC PEOPLE LTD,225.33,03/03/2020
Delivery Units,Adults and Health,Other Agencies - Third Party P,90236776,DYNAMIC PEOPLE LTD,281.61,03/03/2020
Delivery Units,Adults and Health,Other Agencies - Third Party P,90236777,DYNAMIC PEOPLE LTD,104.60,03/03/2020
Delivery Units,Adults and Health,Other Agencies - Third Party P,90236778,DYNAMIC PEOPLE LTD,140.84,03/03/2020
Delivery Units,Adults and Health,Other Agencies - Third Party P,90236779,DYNAMIC PEOPLE LTD,281.68,03/03/2020
Delivery Units,Adults and Health,Other Agencies - Third Party P,90236780,DYNAMIC PEOPLE LTD,173.00,03/03/2020
Delivery Units,Adults and Health,Other Agencies - Third Party P,90236781,DYNAMIC PEOPLE LTD,181.11,03/03/2020
Delivery Units,Adults and Health,Other Agencies - Third Party P,90236782,DYNAMIC PEOPLE LTD,48.27,03/03/2020
Delivery Units,Adults and Health,Other Agencies - Third Party P,90236783,DYNAMIC PEOPLE LTD,305.82,03/03/2020
Delivery Units,Adults and Health,Other Agencies - Third Party P,90236784,DYNAMIC PEOPLE LTD,64.39,03/03/2020
Delivery Units,Adults and Health,Other Agencies - Third Party P,90236785,DYNAMIC PEOPLE LTD,112.63,03/03/2020
Delivery Units,Adults and Health,Other Agencies - Third Party P,90236787,DYNAMIC PEOPLE LTD,507.08,03/03/2020
Delivery Units,Adults and Health,Other Agencies - Third Party P,90236788,DYNAMIC PEOPLE LTD,197.19,03/03/2020
Delivery Units,Adults and Health,Other Agencies - Third Party P,90236790,DYNAMIC PEOPLE LTD,197.12,03/03/2020
Delivery Units,Adults and Health,Other Agencies - Third Party P,90236791,DYNAMIC PEOPLE LTD,225.33,03/03/2020
Delivery Units,Adults and Health,Other Agencies - Third Party P,90236792,DYNAMIC PEOPLE LTD,84.49,03/03/2020
Delivery Units,Adults and Health,Other Agencies - Third Party P,90236793,DYNAMIC PEOPLE LTD,112.63,03/03/2020
Delivery Units,Adults and Health,Other Agencies - Third Party P,90236795,DYNAMIC PEOPLE LTD,72.40,03/03/2020
Delivery Units,Adults and Health,Other Agencies - Third Party P,90236797,DYNAMIC PEOPLE LTD,197.12,03/03/2020
Delivery Units,Adults and Health,Other Agencies - Third Party P,90236798,DYNAMIC PEOPLE LTD,32.18,03/03/2020
Delivery Units,Adults and Health,Other Agencies - Third Party P,90236799,DYNAMIC PEOPLE LTD,84.49,03/03/2020
Delivery Units,Adults and Health,Other Agencies - Third Party P,90236800,DYNAMIC PEOPLE LTD,88.53,03/03/2020
Delivery Units,Adults and Health,Other Agencies - Third Party P,90236801,DYNAMIC PEOPLE LTD,84.49,03/03/2020
Delivery Units,Adults and Health,Other Agencies - Third Party P,90236802,DYNAMIC PEOPLE LTD,84.49,03/03/2020
Delivery Units,Adults and Health,Other Agencies - Third Party P,90236804,DYNAMIC PEOPLE LTD,100.56,03/03/2020
Delivery Units,Adults and Health,Other Agencies - Third Party P,90236805,DYNAMIC PEOPLE LTD,168.98,03/03/2020
Delivery Units,Adults and Health,Other Agencies - Third Party P,90236807,DYNAMIC PEOPLE LTD,48.27,03/03/2020
Delivery Units,Adults and Health,Other Agencies - Third Party P,90236808,DYNAMIC PEOPLE LTD,52.29,03/03/2020
Delivery Units,Adults and Health,Other Agencies - Third Party P,90236809,DYNAMIC PEOPLE LTD,56.35,03/03/2020
Delivery Units,Adults and Health,Other Agencies - Third Party P,90236811,DYNAMIC PEOPLE LTD,281.68,03/03/2020
Delivery Units,Adults and Health,Other Agencies - Third Party P,90236812,DYNAMIC PEOPLE LTD,96.60,03/03/2020
Delivery Units,Adults and Health,Other Agencies - Third Party P,90236813,DYNAMIC PEOPLE LTD,116.72,03/03/2020
Delivery Units,Adults and Health,Other Agencies - Third Party P,90236815,DYNAMIC PEOPLE LTD,32.18,03/03/2020
Delivery Units,Adults and Health,Other Agencies - Third Party P,90236816,DYNAMIC PEOPLE LTD,144.85,03/03/2020
Delivery Units,Adults and Health,Other Agencies - Third Party P,90236817,DYNAMIC PEOPLE LTD,120.68,03/03/2020
Delivery Units,Adults and Health,Other Agencies - Third Party P,90236818,DYNAMIC PEOPLE LTD,116.69,03/03/2020
Delivery Units,Adults and Health,Other Agencies - Third Party P,90236819,DYNAMIC PEOPLE LTD,257.49,03/03/2020
Delivery Units,Adults and Health,Other Agencies - Third Party P,90236820,DYNAMIC PEOPLE LTD,36.21,03/03/2020
Delivery Units,Adults and Health,Other Agencies - Third Party P,90236821,DYNAMIC PEOPLE LTD,108.61,03/03/2020
Delivery Units,Adults and Health,Other Agencies - Third Party P,90236822,DYNAMIC PEOPLE LTD,100.57,03/03/2020
Delivery Units,Adults and Health,Other Agencies - Third Party P,90236824,DYNAMIC PEOPLE LTD,76.43,03/03/2020
Delivery Units,Adults and Health,Other Agencies - Third Party P,90236827,DYNAMIC PEOPLE LTD,36.21,03/03/2020
Delivery Units,Adults and Health,Other Agencies - Third Party P,90236830,DYNAMIC PEOPLE LTD,269.62,03/03/2020
Delivery Units,Adults and Health,Other Agencies - Third Party P,90236831,DYNAMIC PEOPLE LTD,144.81,03/03/2020
Delivery Units,Adults and Health,Other Agencies - Third Party P,90236832,DYNAMIC PEOPLE LTD,44.26,03/03/2020
Delivery Units,Adults and Health,Other Agencies - Third Party P,90236833,DYNAMIC PEOPLE LTD,197.19,03/03/2020
Delivery Units,Adults and Health,Other Agencies - Third Party P,90236834,DYNAMIC PEOPLE LTD,193.17,03/03/2020
Delivery Units,Adults and Health,Other Agencies - Third Party P,90236835,DYNAMIC PEOPLE LTD,140.84,03/03/2020
Delivery Units,Adults and Health,Other Agencies - Third Party P,90236840,DYNAMIC PEOPLE LTD,140.79,03/03/2020
Delivery Units,Adults and Health,Other Agencies - Third Party P,90236842,DYNAMIC PEOPLE LTD,132.79,03/03/2020
Delivery Units,Adults and Health,Other Agencies - Third Party P,90236843,DYNAMIC PEOPLE LTD,84.49,03/03/2020
Delivery Units,Adults and Health,Other Agencies - Third Party P,90236844,DYNAMIC PEOPLE LTD,213.24,03/03/2020
Delivery Units,Adults and Health,Other Agencies - Third Party P,90236845,DYNAMIC PEOPLE LTD,36.21,03/03/2020
Delivery Units,Adults and Health,Other Agencies - Third Party P,90236847,DYNAMIC PEOPLE LTD,112.63,03/03/2020
Delivery Units,Adults and Health,Other Agencies - Third Party P,90236850,DYNAMIC PEOPLE LTD,84.49,03/03/2020
Delivery Units,Adults and Health,Other Agencies - Third Party P,90236852,DYNAMIC PEOPLE LTD,40.23,03/03/2020
Delivery Units,Adults and Health,Other Agencies - Third Party P,90236853,DYNAMIC PEOPLE LTD,28.17,03/03/2020
Delivery Units,Adults and Health,Other Agencies - Third Party P,90236855,DYNAMIC PEOPLE LTD,112.63,03/03/2020
Delivery Units,Adults and Health,Other Agencies - Third Party P,90236856,DYNAMIC PEOPLE LTD,309.82,03/03/2020
Delivery Units,Adults and Health,Other Agencies - Third Party P,90236857,DYNAMIC PEOPLE LTD,12.07,03/03/2020
Delivery Units,Adults and Health,Other Agencies - Third Party P,90236859,DYNAMIC PEOPLE LTD,84.48,03/03/2020
Delivery Units,Adults and Health,Other Agencies - Third Party P,90236860,DYNAMIC PEOPLE LTD,209.17,03/03/2020
Delivery Units,Adults and Health,Other Agencies - Third Party P,90236861,DYNAMIC PEOPLE LTD,265.51,03/03/2020
Delivery Units,Adults and Health,Other Agencies - Third Party P,90236862,DYNAMIC PEOPLE LTD,84.49,03/03/2020
Delivery Units,Adults and Health,Other Agencies - Third Party P,90236863,DYNAMIC PEOPLE LTD,16.10,03/03/2020
Delivery Units,Adults and Health,Other Agencies - Third Party P,90236864,DYNAMIC PEOPLE LTD,80.50,03/03/2020
Delivery Units,Adults and Health,Other Agencies - Third Party P,90236866,DYNAMIC PEOPLE LTD,48.28,03/03/2020
Delivery Units,Adults and Health,Other Agencies - Third Party P,90236868,DYNAMIC PEOPLE LTD,88.55,03/03/2020
Delivery Units,Adults and Health,Other Agencies - Third Party P,90236869,DYNAMIC PEOPLE LTD,36.21,03/03/2020
Delivery Units,Adults and Health,Other Agencies - Third Party P,90236870,DYNAMIC PEOPLE LTD,84.49,03/03/2020
Delivery Units,Adults and Health,Other Agencies - Third Party P,90236872,DYNAMIC PEOPLE LTD,458.70,03/03/2020
Delivery Units,Adults and Health,Other Agencies - Third Party P,90238681,DYNAMIC PEOPLE LTD,72.40,09/03/2020
Delivery Units,Adults and Health,Other Agencies - Third Party P,90238682,DYNAMIC PEOPLE LTD,128.73,09/03/2020
Delivery Units,Adults and Health,Other Agencies - Third Party P,90238683,DYNAMIC PEOPLE LTD,32.18,09/03/2020
Delivery Units,Adults and Health,Other Agencies - Third Party P,90238684,DYNAMIC PEOPLE LTD,88.53,09/03/2020
Delivery Units,Adults and Health,Other Agencies - Third Party P,90238685,DYNAMIC PEOPLE LTD,84.49,09/03/2020
Delivery Units,Adults and Health,Other Agencies - Third Party P,90238686,DYNAMIC PEOPLE LTD,84.49,09/03/2020
Delivery Units,Adults and Health,Other Agencies - Third Party P,90238688,DYNAMIC PEOPLE LTD,96.54,09/03/2020
Delivery Units,Adults and Health,Other Agencies - Third Party P,90238689,DYNAMIC PEOPLE LTD,60.36,09/03/2020
Delivery Units,Adults and Health,Other Agencies - Third Party P,90238690,DYNAMIC PEOPLE LTD,140.84,09/03/2020
Delivery Units,Adults and Health,Other Agencies - Third Party P,90238692,DYNAMIC PEOPLE LTD,64.36,09/03/2020
Delivery Units,Adults and Health,Other Agencies - Third Party P,90238694,DYNAMIC PEOPLE LTD,52.29,09/03/2020
Delivery Units,Adults and Health,Other Agencies - Third Party P,90238696,DYNAMIC PEOPLE LTD,140.84,09/03/2020
Delivery Units,Adults and Health,Other Agencies - Third Party P,90238697,DYNAMIC PEOPLE LTD,8.05,09/03/2020
Delivery Units,Adults and Health,Other Agencies - Third Party P,90238698,DYNAMIC PEOPLE LTD,40.25,09/03/2020
Delivery Units,Adults and Health,Other Agencies - Third Party P,90238700,DYNAMIC PEOPLE LTD,32.18,09/03/2020
Delivery Units,Adults and Health,Other Agencies - Third Party P,90238702,DYNAMIC PEOPLE LTD,120.68,09/03/2020
Delivery Units,Adults and Health,Other Agencies - Third Party P,90238703,DYNAMIC PEOPLE LTD,92.55,09/03/2020
Delivery Units,Adults and Health,Other Agencies - Third Party P,90238704,DYNAMIC PEOPLE LTD,265.54,09/03/2020
Delivery Units,Adults and Health,Other Agencies - Third Party P,90238705,DYNAMIC PEOPLE LTD,108.61,09/03/2020
Delivery Units,Adults and Health,Other Agencies - Third Party P,90238706,DYNAMIC PEOPLE LTD,112.63,09/03/2020
Delivery Units,Adults and Health,Other Agencies - Third Party P,90238708,DYNAMIC PEOPLE LTD,80.45,09/03/2020
Delivery Units,Adults and Health,Other Agencies - Third Party P,90238711,DYNAMIC PEOPLE LTD,36.21,09/03/2020
Delivery Units,Adults and Health,Other Agencies - Third Party P,90238714,DYNAMIC PEOPLE LTD,144.81,09/03/2020
Delivery Units,Adults and Health,Other Agencies - Third Party P,90238715,DYNAMIC PEOPLE LTD,68.39,09/03/2020
Delivery Units,Adults and Health,Other Agencies - Third Party P,90238716,DYNAMIC PEOPLE LTD,189.14,09/03/2020
Delivery Units,Adults and Health,Other Agencies - Third Party P,90238717,DYNAMIC PEOPLE LTD,197.19,09/03/2020
Delivery Units,Adults and Health,Other Agencies - Third Party P,90238718,DYNAMIC PEOPLE LTD,56.35,09/03/2020
Delivery Units,Adults and Health,Other Agencies - Third Party P,90238723,DYNAMIC PEOPLE LTD,144.86,09/03/2020
Delivery Units,Adults and Health,Other Agencies - Third Party P,90238724,DYNAMIC PEOPLE LTD,84.49,09/03/2020
Delivery Units,Adults and Health,Other Agencies - Third Party P,90238726,DYNAMIC PEOPLE LTD,112.63,09/03/2020
Delivery Units,Adults and Health,Other Agencies - Third Party P,90238727,DYNAMIC PEOPLE LTD,84.49,09/03/2020
Delivery Units,Adults and Health,Other Agencies - Third Party P,90238729,DYNAMIC PEOPLE LTD,96.54,09/03/2020
Delivery Units,Adults and Health,Other Agencies - Third Party P,90238730,DYNAMIC PEOPLE LTD,221.30,09/03/2020
